Body Name,Body,Service Label,Service Code,Service Division Label,Service Division Code,Expenditure Category,Expenditure Code,CIPFA Detailed Expenditure Type,CIPFA Detailed Expenditure Code,Date,Transaction Number,Net Amount,Capital and Revenue,Creditor Name
Brighton & Hove City Council,http://statistics.data.gov.uk/id/local-authority/00ML,Education Services,BVAEDU,Ed - Ed Other - Other,ENF,Supplies and Services,E,Equip't Furniture n Materials,EA,03/10/2012,PAY00510069,1543.20,Revenue,Gopak Ltd
Brighton & Hove City Council,http://statistics.data.gov.uk/id/local-authority/00ML,Non I&E,BVANON,Collection Fund,7WW,Unalalysed-Income,9998,Level not required,NR5037,03/10/2012,PAY00510070,7199.50,Collection Fund,Motoring & Leisure Services Ltd
Brighton & Hove City Council,http://statistics.data.gov.uk/id/local-authority/00ML,Housing General Fund,BVAHOG,Homelessness,HML,Premises Related,C,Rents Payable,CC,03/10/2012,PAY00510073,780.00,Revenue,Lincoln Estates Ltd
Brighton & Hove City Council,http://statistics.data.gov.uk/id/local-authority/00ML,Children�s Social Care,BVACSC,Child Srvcs - Yth Offender Tm,FYY,Third Party Payments,F,Other Establishments,FH,03/10/2012,PAY00510076,793.00,Revenue,G4S Care & Justice Services (UK) Limited
Brighton & Hove City Council,http://statistics.data.gov.uk/id/local-authority/00ML,Housing General Fund,BVAHOG,Homelessness,HML,Premises Related,C,Rents Payable,CC,03/10/2012,PAY00510079,1250.00,Revenue,Payment to Individual
Brighton & Hove City Council,http://statistics.data.gov.uk/id/local-authority/00ML,Housing General Fund,BVAHOG,Homelessness,HML,Premises Related,C,Rents Payable,CC,03/10/2012,PAY00510082,750.00,Revenue,Payment to Individual
Brighton & Hove City Council,http://statistics.data.gov.uk/id/local-authority/00ML,Housing General Fund,BVAHOG,Homelessness,HML,Premises Related,C,Rents Payable,CC,03/10/2012,PAY00510084,630.00,Revenue,Payment to Individual
Brighton & Hove City Council,http://statistics.data.gov.uk/id/local-authority/00ML,Adult Social Care,BVASOC,S Svcs - Older People Svcs,PPL,Supplies and Services,E,Miscellaneous Expenses,EM,03/10/2012,PAY00510085,535.06,Revenue,Department for Work & Pensions
Brighton & Hove City Council,http://statistics.data.gov.uk/id/local-authority/00ML,Housing General Fund,BVAHOG,Homelessness,HML,Premises Related,C,Rents Payable,CC,03/10/2012,PAY00510086,850.00,Revenue,Edmonds Letting
Brighton & Hove City Council,http://statistics.data.gov.uk/id/local-authority/00ML,Environment & Regulatory Serv,BVAERS,Management Services (DEC),MGT,Third Party Payments,F,Private Contractors,FJ,03/10/2012,PAY00510087,1124.33,Revenue,Southern Water Services Ltd
Brighton & Hove City Council,http://statistics.data.gov.uk/id/local-authority/00ML,Non I&E,BVANON,Collection Fund,7WW,Unalalysed-Income,9998,Level not required,NR5037,03/10/2012,PAY00510089,8306.07,Collection Fund,J D Wetherspoon Plc
Brighton & Hove City Council,http://statistics.data.gov.uk/id/local-authority/00ML,Central Support and Overheads,BVACEN,Support Services (SSC),PPT,Premises Related,C,Rents Payable,CC,03/10/2012,PAY00510092,3526.37,Revenue,Swedish Folk High School
Brighton & Hove City Council,http://statistics.data.gov.uk/id/local-authority/00ML,Housing General Fund,BVAHOG,Homelessness,HML,Premises Related,C,Rents Payable,CC,03/10/2012,PAY00510094,700.00,Revenue,Payment to Individual
Brighton & Hove City Council,http://statistics.data.gov.uk/id/local-authority/00ML,Non I&E,BVANON,Balance Sheet GFND,9ZZ,Current Assets,ZAB,Short Term Debtors,ZABC,03/10/2012,PAY00510095,0.00,Balance Sheet,Hangleton Junior School
Brighton & Hove City Council,http://statistics.data.gov.uk/id/local-authority/00ML,Non I&E,BVANON,Balance Sheet GFND,9ZZ,Current Assets,ZAB,Short Term Debtors,ZABC,03/10/2012,PAY00510096,0.00,Balance Sheet,Downs Infant School
Brighton & Hove City Council,http://statistics.data.gov.uk/id/local-authority/00ML,Non I&E,BVANON,Balance Sheet GFND,9ZZ,Current Assets,ZAB,Short Term Debtors,ZABC,03/10/2012,PAY00510097,0.00,Balance Sheet,St Bernadette`s RC Primary School
Brighton & Hove City Council,http://statistics.data.gov.uk/id/local-authority/00ML,Non I&E,BVANON,Balance Sheet GFND,9ZZ,Current Assets,ZAB,Short Term Debtors,ZABC,03/10/2012,PAY00510098,0.00,Balance Sheet,St John the Baptist RC Primary School
Brighton & Hove City Council,http://statistics.data.gov.uk/id/local-authority/00ML,Non I&E,BVANON,Balance Sheet GFND,9ZZ,Current Assets,ZAB,Short Term Debtors,ZABC,03/10/2012,PAY00510099,0.00,Balance Sheet,St Mary Magdalen RC Primary School
Brighton & Hove City Council,http://statistics.data.gov.uk/id/local-authority/00ML,Non I&E,BVANON,Balance Sheet GFND,9ZZ,Current Assets,ZAB,Short Term Debtors,ZABC,03/10/2012,PAY00510100,0.00,Balance Sheet,Saltdean Primary School
Brighton & Hove City Council,http://statistics.data.gov.uk/id/local-authority/00ML,Non I&E,BVANON,Balance Sheet GFND,9ZZ,Current Assets,ZAB,Short Term Debtors,ZABC,03/10/2012,PAY00510101,0.00,Balance Sheet,Stanford Infant School
Brighton & Hove City Council,http://statistics.data.gov.uk/id/local-authority/00ML,Non I&E,BVANON,Balance Sheet GFND,9ZZ,Current Assets,ZAB,Short Term Debtors,ZABC,03/10/2012,PAY00510102,0.00,Balance Sheet,Aldrington CE Primary School
Brighton & Hove City Council,http://statistics.data.gov.uk/id/local-authority/00ML,Non I&E,BVANON,Balance Sheet GFND,9ZZ,Current Assets,ZAB,Short Term Debtors,ZABC,03/10/2012,PAY00510103,0.00,Balance Sheet,Cottesmore St Mary`s RC Primary School
Brighton & Hove City Council,http://statistics.data.gov.uk/id/local-authority/00ML,Non I&E,BVANON,Balance Sheet GFND,9ZZ,Current Assets,ZAB,Short Term Debtors,ZABC,03/10/2012,PAY00510104,0.00,Balance Sheet,Benfield Junior School
Brighton & Hove City Council,http://statistics.data.gov.uk/id/local-authority/00ML,Non I&E,BVANON,Balance Sheet GFND,9ZZ,Current Assets,ZAB,Short Term Debtors,ZABC,03/10/2012,PAY00510105,0.00,Balance Sheet,Peter Gladwin Primary School
Brighton & Hove City Council,http://statistics.data.gov.uk/id/local-authority/00ML,Non I&E,BVANON,Balance Sheet GFND,9ZZ,Current Assets,ZAB,Short Term Debtors,ZABC,03/10/2012,PAY00510106,0.00,Balance Sheet,St Nicolas CE Junior School
Brighton & Hove City Council,http://statistics.data.gov.uk/id/local-authority/00ML,Adult Social Care,BVASOC,S Svcs - Mental Health,MHT,Customer n Client Receipts,M,Fees n Charges,MB,03/10/2012,PAY00510107,-60.00,Revenue,Mears Care
Brighton & Hove City Council,http://statistics.data.gov.uk/id/local-authority/00ML,Adult Social Care,BVASOC,S Svcs - Mental Health,MHT,Third Party Payments,F,Other Establishments,FH,03/10/2012,PAY00510107,83.38,Revenue,Mears Care
Brighton & Hove City Council,http://statistics.data.gov.uk/id/local-authority/00ML,Adult Social Care,BVASOC,S Svcs - Older People Svcs,PPL,Customer n Client Receipts,M,Fees n Charges,MB,03/10/2012,PAY00510107,-552.00,Revenue,Mears Care
Brighton & Hove City Council,http://statistics.data.gov.uk/id/local-authority/00ML,Adult Social Care,BVASOC,S Svcs - Older People Svcs,PPL,Third Party Payments,F,Other Establishments,FH,03/10/2012,PAY00510107,3563.70,Revenue,Mears Care
Brighton & Hove City Council,http://statistics.data.gov.uk/id/local-authority/00ML,Adult Social Care,BVASOC,S Svcs - Physical Disability,PDY,Third Party Payments,F,Other Establishments,FH,03/10/2012,PAY00510107,163.09,Revenue,Mears Care
Brighton & Hove City Council,http://statistics.data.gov.uk/id/local-authority/00ML,Children�s Social Care,BVACSC,Child Srvcs - Adoption,FAA,Supplies and Services,E,Miscellaneous Expenses,EM,03/10/2012,PAY00510108,435.00,Revenue,Adoption UK
Brighton & Hove City Council,http://statistics.data.gov.uk/id/local-authority/00ML,Housing General Fund,BVAHOG,Hsing Welfare,HGW,Transfer Payments,G,Supporting People,GF,03/10/2012,PAY00510109,1096.49,Revenue,Brighton & Hove Jewish Housing Assoc Ltd
Brighton & Hove City Council,http://statistics.data.gov.uk/id/local-authority/00ML,Central Support and Overheads,BVACEN,Support Services (SSC),PPT,Premises Related,C,Repair Maint n Alterations,CA,03/10/2012,PAY00510110,668.20,Revenue,TSS Facilities Ltd
Brighton & Hove City Council,http://statistics.data.gov.uk/id/local-authority/00ML,Education Services,BVAEDU,Ed - Ed Other - Other,ENF,Premises Related,C,Repair Maint n Alterations,CA,03/10/2012,PAY00510110,961.32,Revenue,TSS Facilities Ltd
Brighton & Hove City Council,http://statistics.data.gov.uk/id/local-authority/00ML,Adult Social Care,BVASOC,S Svcs - Older People Svcs,PPL,Customer n Client Receipts,M,Fees n Charges,MB,03/10/2012,PAY00510111,-772.21,Revenue,Jewish Care
Brighton & Hove City Council,http://statistics.data.gov.uk/id/local-authority/00ML,Adult Social Care,BVASOC,S Svcs - Older People Svcs,PPL,Third Party Payments,F,Other Establishments,FH,03/10/2012,PAY00510111,3948.23,Revenue,Jewish Care
Brighton & Hove City Council,http://statistics.data.gov.uk/id/local-authority/00ML,Adult Social Care,BVASOC,S Svcs - Learning Disability,LDY,Third Party Payments,F,Other Establishments,FH,03/10/2012,PAY00510115,6500.00,Revenue,Amaze Brighton & Hove
Brighton & Hove City Council,http://statistics.data.gov.uk/id/local-authority/00ML,Housing General Fund,BVAHOG,Hsing Welfare,HGW,Transfer Payments,G,Supporting People,GF,03/10/2012,PAY00510116,11537.00,Revenue,Brighton & Hove Mencap
Brighton & Hove City Council,http://statistics.data.gov.uk/id/local-authority/00ML,Non I&E,BVANON,Cap - Transport,4TR,New Construction n Conversion,PB,Level not required,NR5026,03/10/2012,PAY00510117,1452.30,Capital,Amey OW Limited
Brighton & Hove City Council,http://statistics.data.gov.uk/id/local-authority/00ML,Housing General Fund,BVAHOG,Hsing Welfare,HGW,Transfer Payments,G,Supporting People,GF,03/10/2012,PAY00510119,5774.00,Revenue,Care Co-operatives Ltd
Brighton & Hove City Council,http://statistics.data.gov.uk/id/local-authority/00ML,Children�s Social Care,BVACSC,Child Srvcs - Residential Svcs,FLR,Premises Related,C,Energy Costs,CB,03/10/2012,PAY00510124,12836.69,Revenue,British Gas Business
Brighton & Hove City Council,http://statistics.data.gov.uk/id/local-authority/00ML,Housing General Fund,BVAHOG,Homelessness,HML,Premises Related,C,Energy Costs,CB,03/10/2012,PAY00510124,1706.49,Revenue,British Gas Business
Brighton & Hove City Council,http://statistics.data.gov.uk/id/local-authority/00ML,Environment & Regulatory Serv,BVAERS,Management Services (DEC),MGT,Transport Related,D,Direct Transport Costs,DA,03/10/2012,PAY00510125,2050.30,Revenue,Comcir (Radio Communications)
Brighton & Hove City Council,http://statistics.data.gov.uk/id/local-authority/00ML,Housing General Fund,BVAHOG,Hsing Welfare,HGW,Transfer Payments,G,Supporting People,GF,03/10/2012,PAY00510126,54933.17,Revenue,Brighton YMCA
Brighton & Hove City Council,http://statistics.data.gov.uk/id/local-authority/00ML,Adult Social Care,BVASOC,S Svcs - Learning Disability,LDY,Customer n Client Receipts,M,Fees n Charges,MB,03/10/2012,PAY00510129,-240.00,Revenue,Caburn Support Services
Brighton & Hove City Council,http://statistics.data.gov.uk/id/local-authority/00ML,Adult Social Care,BVASOC,S Svcs - Learning Disability,LDY,Third Party Payments,F,Other Establishments,FH,03/10/2012,PAY00510129,4459.05,Revenue,Caburn Support Services
Brighton & Hove City Council,http://statistics.data.gov.uk/id/local-authority/00ML,Housing General Fund,BVAHOG,Hsing Welfare,HGW,Transfer Payments,G,Supporting People,GF,03/10/2012,PAY00510130,38312.84,Revenue,Southdown Housing Association
Brighton & Hove City Council,http://statistics.data.gov.uk/id/local-authority/00ML,Housing General Fund,BVAHOG,Hsing Benefits,HGB,Supplies and Services,E,Services,EF,03/10/2012,PAY00510131,1895.00,Revenue,Experian Ltd
Brighton & Hove City Council,http://statistics.data.gov.uk/id/local-authority/00ML,Cultural and Related Serv,BVACUL,Recreation and sport,REC,Supplies and Services,E,Equip't Furniture n Materials,EA,03/10/2012,PAY00510132,535.50,Revenue,Rapid Racking Ltd
Brighton & Hove City Council,http://statistics.data.gov.uk/id/local-authority/00ML,Non I&E,BVANON,Cap - Housing Services - HRA,4HR,New Construction n Conversion,PB,Level not required,NR5026,03/10/2012,PAY00510133,29676.55,Capital,Access Mobility
Brighton & Hove City Council,http://statistics.data.gov.uk/id/local-authority/00ML,Children�s Social Care,BVACSC,Child Srvcs - Other,FAX,Third Party Payments,F,Other Establishments,FH,03/10/2012,PAY00510135,600.00,Revenue,Junk TV Ltd
Brighton & Hove City Council,http://statistics.data.gov.uk/id/local-authority/00ML,Central Support and Overheads,BVACEN,Support Services (SSC),PPT,Premises Related,C,Repair Maint n Alterations,CA,03/10/2012,PAY00510138,31505.00,Revenue,Brighton Dome & Festival Ltd
Brighton & Hove City Council,http://statistics.data.gov.uk/id/local-authority/00ML,Non I&E,BVANON,Balance Sheet GFND,9ZZ,Current Assets,ZAB,Short Term Debtors,ZABC,03/10/2012,PAY00510140,0.00,Balance Sheet,Whitehawk Primary School
Brighton & Hove City Council,http://statistics.data.gov.uk/id/local-authority/00ML,Non I&E,BVANON,Balance Sheet GFND,9ZZ,Current Assets,ZAB,Short Term Debtors,ZABC,03/10/2012,PAY00510141,0.00,Balance Sheet,Moulsecoomb Primary School
Brighton & Hove City Council,http://statistics.data.gov.uk/id/local-authority/00ML,Non I&E,BVANON,Balance Sheet GFND,9ZZ,Current Assets,ZAB,Short Term Debtors,ZABC,03/10/2012,PAY00510142,0.00,Balance Sheet,Carden Primary School
Brighton & Hove City Council,http://statistics.data.gov.uk/id/local-authority/00ML,Housing General Fund,BVAHOG,Homelessness,HML,Premises Related,C,Rents Payable,CC,03/10/2012,PAY00510143,13196.42,Revenue,Forward Properties Limited
Brighton & Hove City Council,http://statistics.data.gov.uk/id/local-authority/00ML,Housing General Fund,BVAHOG,Support Services (SSC),PPT,Supplies and Services,E,Expenses,EJ,03/10/2012,PAY00510146,575.00,Revenue,SOLACE
Brighton & Hove City Council,http://statistics.data.gov.uk/id/local-authority/00ML,Adult Social Care,BVASOC,S Svcs - Older People Svcs,PPL,Customer n Client Receipts,M,Fees n Charges,MB,03/10/2012,PAY00510150,-566.08,Revenue,Claydon House Ltd
Brighton & Hove City Council,http://statistics.data.gov.uk/id/local-authority/00ML,Adult Social Care,BVASOC,S Svcs - Older People Svcs,PPL,Third Party Payments,F,Other Establishments,FH,03/10/2012,PAY00510150,1440.00,Revenue,Claydon House Ltd
Brighton & Hove City Council,http://statistics.data.gov.uk/id/local-authority/00ML,Planning and Development,BVAPLA,Community Development,CDV,Supplies and Services,E,Grants n Subscriptions,EK,03/10/2012,PAY00510151,50000.00,Revenue,The B & H Community & Voluntary Sector Forum
Brighton & Hove City Council,http://statistics.data.gov.uk/id/local-authority/00ML,Housing General Fund,BVAHOG,Hsing Welfare,HGW,Transfer Payments,G,Supporting People,GF,03/10/2012,PAY00510152,33834.67,Revenue,Riverside Group Ltd
Brighton & Hove City Council,http://statistics.data.gov.uk/id/local-authority/00ML,Cultural and Related Serv,BVACUL,Culture & Heritage,CHG,Supplies and Services,E,Goods for Resale,EG,03/10/2012,PAY00510157,514.30,Revenue,Bookspeed
Brighton & Hove City Council,http://statistics.data.gov.uk/id/local-authority/00ML,Central Support and Overheads,BVACEN,Support Services (SSC),PPT,Indirect Employees,B,Training,BM,03/10/2012,PAY00510159,375.00,Revenue,Hands-Free Computing Limited
Brighton & Hove City Council,http://statistics.data.gov.uk/id/local-authority/00ML,Central Support and Overheads,BVACEN,Support Services (SSC),PPT,Supplies and Services,E,Communications n Computing,EH,03/10/2012,PAY00510159,375.00,Revenue,Hands-Free Computing Limited
Brighton & Hove City Council,http://statistics.data.gov.uk/id/local-authority/00ML,Children�s Social Care,BVACSC,Child Srvcs - Leaving Care,FAL,Indirect Employees,B,Training,BM,03/10/2012,PAY00510159,375.00,Revenue,Hands-Free Computing Limited
Brighton & Hove City Council,http://statistics.data.gov.uk/id/local-authority/00ML,Cultural and Related Serv,BVACUL,Ed - Ed Other - Other,ENF,Supplies and Services,E,Communications n Computing,EH,03/10/2012,PAY00510159,124.99,Revenue,Hands-Free Computing Limited
Brighton & Hove City Council,http://statistics.data.gov.uk/id/local-authority/00ML,Highways and Transportation,BVAHRT,Highways and Roads - Mntnce,HRM,Premises Related,C,Repair Maint n Alterations,CA,03/10/2012,PAY00510160,500.00,Revenue,The Institution of Lighting Engineers
Brighton & Hove City Council,http://statistics.data.gov.uk/id/local-authority/00ML,Non I&E,BVANON,Balance Sheet GFND,9ZZ,Current Assets,ZAB,Short Term Debtors,ZABC,03/10/2012,PAY00510161,0.00,Balance Sheet,Alternative Centre for Education
Brighton & Hove City Council,http://statistics.data.gov.uk/id/local-authority/00ML,Children�s Social Care,BVACSC,Child Srvcs - Leaving Care,FAL,Direct Employees,A,Salaries,AA,03/10/2012,PAY00510162,20.00,Revenue,The Imprest Holder
Brighton & Hove City Council,http://statistics.data.gov.uk/id/local-authority/00ML,Children�s Social Care,BVACSC,Child Srvcs - Leaving Care,FAL,Supplies and Services,E,Catering,EB,03/10/2012,PAY00510162,77.98,Revenue,The Imprest Holder
Brighton & Hove City Council,http://statistics.data.gov.uk/id/local-authority/00ML,Children�s Social Care,BVACSC,Child Srvcs - Leaving Care,FAL,Supplies and Services,E,Communications n Computing,EH,03/10/2012,PAY00510162,5.50,Revenue,The Imprest Holder
Brighton & Hove City Council,http://statistics.data.gov.uk/id/local-authority/00ML,Children�s Social Care,BVACSC,Child Srvcs - Leaving Care,FAL,Supplies and Services,E,Equip't Furniture n Materials,EA,03/10/2012,PAY00510162,209.31,Revenue,The Imprest Holder
Brighton & Hove City Council,http://statistics.data.gov.uk/id/local-authority/00ML,Children�s Social Care,BVACSC,Child Srvcs - Leaving Care,FAL,Supplies and Services,E,Print Stat & Gen Office Exps,ED,03/10/2012,PAY00510162,15.86,Revenue,The Imprest Holder
Brighton & Hove City Council,http://statistics.data.gov.uk/id/local-authority/00ML,Children�s Social Care,BVACSC,Child Srvcs - Leaving Care,FAL,Third Party Payments,F,Other Establishments,FH,03/10/2012,PAY00510162,158.13,Revenue,The Imprest Holder
Brighton & Hove City Council,http://statistics.data.gov.uk/id/local-authority/00ML,Children�s Social Care,BVACSC,Child Srvcs - Leaving Care,FAL,Transfer Payments,G,Other Transfer Payments,GD,03/10/2012,PAY00510162,5612.77,Revenue,The Imprest Holder
Brighton & Hove City Council,http://statistics.data.gov.uk/id/local-authority/00ML,Housing General Fund,BVAHOG,Hsing Welfare,HGW,Transfer Payments,G,Supporting People,GF,03/10/2012,PAY00510163,15295.75,Revenue,Sanctuary Carr-Gomm
Brighton & Hove City Council,http://statistics.data.gov.uk/id/local-authority/00ML,Adult Social Care,BVASOC,S Svcs - Asylum Seekers,AYL,Third Party Payments,F,Other Establishments,FH,03/10/2012,PAY00510164,2912.80,Revenue,MACS
Brighton & Hove City Council,http://statistics.data.gov.uk/id/local-authority/00ML,Central Support and Overheads,BVACEN,Holding Accounts,PPH,Supplies and Services,E,Communications n Computing,EH,03/10/2012,PAY00510165,1718.43,Revenue,Royal Mail Group Ltd
Brighton & Hove City Council,http://statistics.data.gov.uk/id/local-authority/00ML,Housing General Fund,BVAHOG,Hsing Welfare,HGW,Transfer Payments,G,Supporting People,GF,03/10/2012,PAY00510166,2751.67,Revenue,Payment to Individual
Brighton & Hove City Council,http://statistics.data.gov.uk/id/local-authority/00ML,Housing General Fund,BVAHOG,Homelessness,HML,Premises Related,C,Rents Payable,CC,03/10/2012,PAY00510168,2090.00,Revenue,Payment to Individual
Brighton & Hove City Council,http://statistics.data.gov.uk/id/local-authority/00ML,Housing General Fund,BVAHOG,Homelessness,HML,Premises Related,C,Rents Payable,CC,03/10/2012,PAY00510170,925.00,Revenue,Payment to Individual
Brighton & Hove City Council,http://statistics.data.gov.uk/id/local-authority/00ML,Education Services,BVAEDU,Ed - EY - Central,EAE,Supplies and Services,E,Miscellaneous Expenses,EM,03/10/2012,PAY00510172,700.00,Revenue,Safety Net Ltd
Brighton & Hove City Council,http://statistics.data.gov.uk/id/local-authority/00ML,Non I&E,BVANON,Balance Sheet GFND,9ZZ,Current Assets,ZAB,Short Term Debtors,ZABC,03/10/2012,PAY00510175,0.00,Balance Sheet,Goldstone Primary School
Brighton & Hove City Council,http://statistics.data.gov.uk/id/local-authority/00ML,Non I&E,BVANON,Balance Sheet GFND,9ZZ,Current Assets,ZAB,Short Term Debtors,ZABC,03/10/2012,PAY00510176,0.00,Balance Sheet,Coldean Primary School
Brighton & Hove City Council,http://statistics.data.gov.uk/id/local-authority/00ML,Environment & Regulatory Serv,BVAERS,Community Safety,CMY,Third Party Payments,F,Other Establishments,FH,03/10/2012,PAY00510179,25000.00,Revenue,Survivors` Network Limited
Brighton & Hove City Council,http://statistics.data.gov.uk/id/local-authority/00ML,Adult Social Care,BVASOC,S Svcs - Mental Health,MHT,Third Party Payments,F,Other Establishments,FH,03/10/2012,PAY00510180,7.25,Revenue,Care UK Homecare
Brighton & Hove City Council,http://statistics.data.gov.uk/id/local-authority/00ML,Adult Social Care,BVASOC,S Svcs - Older People Svcs,PPL,Customer n Client Receipts,M,Fees n Charges,MB,03/10/2012,PAY00510180,-694.00,Revenue,Care UK Homecare
Brighton & Hove City Council,http://statistics.data.gov.uk/id/local-authority/00ML,Adult Social Care,BVASOC,S Svcs - Older People Svcs,PPL,Third Party Payments,F,Other Establishments,FH,03/10/2012,PAY00510180,3632.54,Revenue,Care UK Homecare
Brighton & Hove City Council,http://statistics.data.gov.uk/id/local-authority/00ML,Adult Social Care,BVASOC,S Svcs - Physical Disability,PDY,Customer n Client Receipts,M,Fees n Charges,MB,03/10/2012,PAY00510180,-61.00,Revenue,Care UK Homecare
Brighton & Hove City Council,http://statistics.data.gov.uk/id/local-authority/00ML,Adult Social Care,BVASOC,S Svcs - Physical Disability,PDY,Third Party Payments,F,Other Establishments,FH,03/10/2012,PAY00510180,715.43,Revenue,Care UK Homecare
Brighton & Hove City Council,http://statistics.data.gov.uk/id/local-authority/00ML,Housing Revenue Account,BVAHOU,Hsing Management - HRA,HGM,Premises Related,C,Repair Maint n Alterations,CA,03/10/2012,PAY00510181,905.00,Revenue,Greenacre Recycling Ltd
Brighton & Hove City Council,http://statistics.data.gov.uk/id/local-authority/00ML,Housing Revenue Account,BVAHOU,Hsing Management - HRA,HGM,Supplies and Services,E,Miscellaneous Expenses,EM,03/10/2012,PAY00510181,275.00,Revenue,Greenacre Recycling Ltd
Brighton & Hove City Council,http://statistics.data.gov.uk/id/local-authority/00ML,Non I&E,BVANON,Cap - Transport,4TR,Vehicles,PE1,Level not required,NR5032,03/10/2012,PAY00510182,549249.00,Capital,Dennis Eagle Ltd
Brighton & Hove City Council,http://statistics.data.gov.uk/id/local-authority/00ML,Housing General Fund,BVAHOG,Hsing Welfare,HGW,Transfer Payments,G,Supporting People,GF,03/10/2012,PAY00510183,57843.59,Revenue,Sussex Central YMCA
Brighton & Hove City Council,http://statistics.data.gov.uk/id/local-authority/00ML,Adult Social Care,BVASOC,S Svcs - Asylum Seekers,AYL,Third Party Payments,F,Other Establishments,FH,03/10/2012,PAY00510191,889.38,Revenue,Money Advice & Community Support Service
Brighton & Hove City Council,http://statistics.data.gov.uk/id/local-authority/00ML,Adult Social Care,BVASOC,S Svcs - Learning Disability,LDY,Third Party Payments,F,Other Establishments,FH,03/10/2012,PAY00510191,349.92,Revenue,Money Advice & Community Support Service
Brighton & Hove City Council,http://statistics.data.gov.uk/id/local-authority/00ML,Adult Social Care,BVASOC,S Svcs - Mental Health,MHT,Third Party Payments,F,Other Establishments,FH,03/10/2012,PAY00510191,349.92,Revenue,Money Advice & Community Support Service
Brighton & Hove City Council,http://statistics.data.gov.uk/id/local-authority/00ML,Adult Social Care,BVASOC,S Svcs - Older People Svcs,PPL,Third Party Payments,F,Other Establishments,FH,03/10/2012,PAY00510191,1078.92,Revenue,Money Advice & Community Support Service
Brighton & Hove City Council,http://statistics.data.gov.uk/id/local-authority/00ML,Adult Social Care,BVASOC,S Svcs - Physical Disability,PDY,Third Party Payments,F,Other Establishments,FH,03/10/2012,PAY00510191,1326.78,Revenue,Money Advice & Community Support Service
Brighton & Hove City Council,http://statistics.data.gov.uk/id/local-authority/00ML,Housing General Fund,BVAHOG,Hsing Welfare,HGW,Transfer Payments,G,Supporting People,GF,03/10/2012,PAY00510191,25820.42,Revenue,Money Advice & Community Support Service
Brighton & Hove City Council,http://statistics.data.gov.uk/id/local-authority/00ML,Planning and Development,BVAPLA,Economic Development,ECD,Supplies and Services,E,Grants n Subscriptions,EK,03/10/2012,PAY00510192,6700.00,Revenue,New Writing South
Brighton & Hove City Council,http://statistics.data.gov.uk/id/local-authority/00ML,Cultural and Related Serv,BVACUL,Culture & Heritage,CHG,Supplies and Services,E,Services,EF,03/10/2012,PAY00510195,521.70,Revenue,Payment to Individual
Brighton & Hove City Council,http://statistics.data.gov.uk/id/local-authority/00ML,Housing General Fund,BVAHOG,Homelessness,HML,Premises Related,C,Rents Payable,CC,03/10/2012,PAY00510196,620.00,Revenue,Payment to Individual
Brighton & Hove City Council,http://statistics.data.gov.uk/id/local-authority/00ML,Housing General Fund,BVAHOG,Hsing Welfare,HGW,Transfer Payments,G,Supporting People,GF,03/10/2012,PAY00510198,1109.33,Revenue,Raglan Housing Association Ltd
Brighton & Hove City Council,http://statistics.data.gov.uk/id/local-authority/00ML,Housing Revenue Account,BVAHOU,Hsing Management - HRA,HGM,Premises Related,C,Repair Maint n Alterations,CA,03/10/2012,PAY00510201,982.34,Revenue,Homebase Limited
Brighton & Hove City Council,http://statistics.data.gov.uk/id/local-authority/00ML,Non I&E,BVANON,Balance Sheet GFND,9ZZ,Current Assets,ZAB,Short Term Debtors,ZABC,03/10/2012,PAY00510202,0.00,Balance Sheet,St Peters Community Infant School
Brighton & Hove City Council,http://statistics.data.gov.uk/id/local-authority/00ML,Non I&E,BVANON,Balance Sheet GFND,9ZZ,Current Assets,ZAB,Short Term Debtors,ZABC,03/10/2012,PAY00510203,0.00,Balance Sheet,Elm Grove Primary School
Brighton & Hove City Council,http://statistics.data.gov.uk/id/local-authority/00ML,Adult Social Care,BVASOC,S Svcs - Older People Svcs,PPL,Customer n Client Receipts,M,Fees n Charges,MB,03/10/2012,PAY00510204,-335.14,Revenue,Saga Homecare
Brighton & Hove City Council,http://statistics.data.gov.uk/id/local-authority/00ML,Adult Social Care,BVASOC,S Svcs - Older People Svcs,PPL,Third Party Payments,F,Other Establishments,FH,03/10/2012,PAY00510204,2263.29,Revenue,Saga Homecare
Brighton & Hove City Council,http://statistics.data.gov.uk/id/local-authority/00ML,Adult Social Care,BVASOC,S Svcs - Physical Disability,PDY,Third Party Payments,F,Other Establishments,FH,03/10/2012,PAY00510204,135.05,Revenue,Saga Homecare
Brighton & Hove City Council,http://statistics.data.gov.uk/id/local-authority/00ML,Housing General Fund,BVAHOG,Hsing Welfare,HGW,Transfer Payments,G,Supporting People,GF,03/10/2012,PAY00510205,23977.75,Revenue,Crime Reduction Initiatives Ltd
Brighton & Hove City Council,http://statistics.data.gov.uk/id/local-authority/00ML,Adult Social Care,BVASOC,S Svcs - Older People Svcs,PPL,Customer n Client Receipts,M,Fees n Charges,MB,03/10/2012,PAY00510206,-2206.80,Revenue,Eastridge Manor
Brighton & Hove City Council,http://statistics.data.gov.uk/id/local-authority/00ML,Adult Social Care,BVASOC,S Svcs - Older People Svcs,PPL,Third Party Payments,F,Other Establishments,FH,03/10/2012,PAY00510206,4142.80,Revenue,Eastridge Manor
Brighton & Hove City Council,http://statistics.data.gov.uk/id/local-authority/00ML,Cultural and Related Serv,BVACUL,Management Services (DEC),MGT,Transport Related,D,Direct Transport Costs,DA,03/10/2012,PAY00510207,-35.86,Revenue,Haynes Bros Ltd
Brighton & Hove City Council,http://statistics.data.gov.uk/id/local-authority/00ML,Non I&E,BVANON,Cap - Transport,4TR,Vehicles,PE1,Level not required,NR5032,03/10/2012,PAY00510207,49585.48,Capital,Haynes Bros Ltd
Brighton & Hove City Council,http://statistics.data.gov.uk/id/local-authority/00ML,Housing General Fund,BVAHOG,Hsing Welfare,HGW,Transfer Payments,G,Supporting People,GF,03/10/2012,PAY00510208,7985.75,Revenue,Friends First
Brighton & Hove City Council,http://statistics.data.gov.uk/id/local-authority/00ML,Children�s Social Care,BVACSC,Child Srvcs - Fostering,FLF,Third Party Payments,F,Other Establishments,FH,03/10/2012,PAY00510209,800.00,Revenue,Robert Tyler Taxi Services
Brighton & Hove City Council,http://statistics.data.gov.uk/id/local-authority/00ML,Housing Revenue Account,BVAHOU,Hsing Management - HRA,HGM,Premises Related,C,Repair Maint n Alterations,CA,03/10/2012,PAY00510210,5052.60,Revenue,MDJ Light Brothers (SP) Ltd
Brighton & Hove City Council,http://statistics.data.gov.uk/id/local-authority/00ML,Housing General Fund,BVAHOG,Hsing Welfare,HGW,Transfer Payments,G,Supporting People,GF,03/10/2012,PAY00510211,5211.92,Revenue,Independent Living Company (Sussex) Ltd
Brighton & Hove City Council,http://statistics.data.gov.uk/id/local-authority/00ML,Housing General Fund,BVAHOG,Hsing Welfare,HGW,Transfer Payments,G,Supporting People,GF,03/10/2012,PAY00510213,16666.67,Revenue,Sussex Oakleaf Housing Association
Brighton & Hove City Council,http://statistics.data.gov.uk/id/local-authority/00ML,Housing General Fund,BVAHOG,Homelessness,HML,Premises Related,C,Rents Payable,CC,03/10/2012,PAY00510215,10911.15,Revenue,Sanctuary Housing Association
Brighton & Hove City Council,http://statistics.data.gov.uk/id/local-authority/00ML,Housing General Fund,BVAHOG,Homelessness,HML,Premises Related,C,Rents Payable,CC,03/10/2012,PAY00510216,82539.08,Revenue,KEM Property Services Ltd
Brighton & Hove City Council,http://statistics.data.gov.uk/id/local-authority/00ML,Adult Social Care,BVASOC,Management Services (DEC),MGT,Direct Employees,A,Salaries,AA,03/10/2012,PAY00510218,10577.27,Revenue,Carlisle Staffing Plc
Brighton & Hove City Council,http://statistics.data.gov.uk/id/local-authority/00ML,Adult Social Care,BVASOC,Management Services (DEC),MGT,Indirect Employees,B,Training,BM,03/10/2012,PAY00510218,9.01,Revenue,Carlisle Staffing Plc
Brighton & Hove City Council,http://statistics.data.gov.uk/id/local-authority/00ML,Adult Social Care,BVASOC,S Svcs - Learning Disability,LDY,Direct Employees,A,Salaries,AA,03/10/2012,PAY00510218,4339.17,Revenue,Carlisle Staffing Plc
Brighton & Hove City Council,http://statistics.data.gov.uk/id/local-authority/00ML,Adult Social Care,BVASOC,S Svcs - Mental Health,MHT,Direct Employees,A,Salaries,AA,03/10/2012,PAY00510218,144.22,Revenue,Carlisle Staffing Plc
Brighton & Hove City Council,http://statistics.data.gov.uk/id/local-authority/00ML,Adult Social Care,BVASOC,S Svcs - Older People Svcs,PPL,Direct Employees,A,Salaries,AA,03/10/2012,PAY00510218,10622.72,Revenue,Carlisle Staffing Plc
Brighton & Hove City Council,http://statistics.data.gov.uk/id/local-authority/00ML,Adult Social Care,BVASOC,S Svcs - Supported Employment,EMP,Direct Employees,A,Salaries,AA,03/10/2012,PAY00510218,2.75,Revenue,Carlisle Staffing Plc
Brighton & Hove City Council,http://statistics.data.gov.uk/id/local-authority/00ML,Adult Social Care,BVASOC,Support Services (SSC),PPT,Direct Employees,A,Salaries,AA,03/10/2012,PAY00510218,17.69,Revenue,Carlisle Staffing Plc
Brighton & Hove City Council,http://statistics.data.gov.uk/id/local-authority/00ML,Central Services to the Public,BVACEN,Reg - Birth Death and Marriage,RBD,Direct Employees,A,Salaries,AA,03/10/2012,PAY00510218,16.63,Revenue,Carlisle Staffing Plc
Brighton & Hove City Council,http://statistics.data.gov.uk/id/local-authority/00ML,Central Support and Overheads,BVACEN,Ed - EY - Central,EAE,Direct Employees,A,Salaries,AA,03/10/2012,PAY00510218,304.58,Revenue,Carlisle Staffing Plc
Brighton & Hove City Council,http://statistics.data.gov.uk/id/local-authority/00ML,Central Support and Overheads,BVACEN,Support Services (SSC),PPT,Direct Employees,A,Salaries,AA,03/10/2012,PAY00510218,10755.86,Revenue,Carlisle Staffing Plc
Brighton & Hove City Council,http://statistics.data.gov.uk/id/local-authority/00ML,Children�s Social Care,BVACSC,Child Srvcs - Com & Scl Work,FCW,Direct Employees,A,Salaries,AA,03/10/2012,PAY00510218,177.37,Revenue,Carlisle Staffing Plc
Brighton & Hove City Council,http://statistics.data.gov.uk/id/local-authority/00ML,Children�s Social Care,BVACSC,Child Srvcs - Family Centres,FFF,Direct Employees,A,Salaries,AA,03/10/2012,PAY00510218,72.16,Revenue,Carlisle Staffing Plc
Brighton & Hove City Council,http://statistics.data.gov.uk/id/local-authority/00ML,Children�s Social Care,BVACSC,Child Srvcs - Fostering,FLF,Direct Employees,A,Salaries,AA,03/10/2012,PAY00510218,187.78,Revenue,Carlisle Staffing Plc
Brighton & Hove City Council,http://statistics.data.gov.uk/id/local-authority/00ML,Children�s Social Care,BVACSC,Child Srvcs - Leaving Care,FAL,Direct Employees,A,Salaries,AA,03/10/2012,PAY00510218,77.79,Revenue,Carlisle Staffing Plc
Brighton & Hove City Council,http://statistics.data.gov.uk/id/local-authority/00ML,Children�s Social Care,BVACSC,Child Srvcs - Other,FAX,Direct Employees,A,Salaries,AA,03/10/2012,PAY00510218,211.65,Revenue,Carlisle Staffing Plc
Brighton & Hove City Council,http://statistics.data.gov.uk/id/local-authority/00ML,Children�s Social Care,BVACSC,Child Srvcs - Other Fam Supp,FFX,Direct Employees,A,Salaries,AA,03/10/2012,PAY00510218,1868.35,Revenue,Carlisle Staffing Plc
Brighton & Hove City Council,http://statistics.data.gov.uk/id/local-authority/00ML,Children�s Social Care,BVACSC,Child Srvcs - Other Yth Jstce,FYX,Direct Employees,A,Salaries,AA,03/10/2012,PAY00510218,2.25,Revenue,Carlisle Staffing Plc
Brighton & Hove City Council,http://statistics.data.gov.uk/id/local-authority/00ML,Children�s Social Care,BVACSC,Child Srvcs - Residential Svcs,FLR,Direct Employees,A,Salaries,AA,03/10/2012,PAY00510218,1053.47,Revenue,Carlisle Staffing Plc
Brighton & Hove City Council,http://statistics.data.gov.uk/id/local-authority/00ML,Children�s Social Care,BVACSC,Child Srvcs - Yth Offender Tm,FYY,Direct Employees,A,Salaries,AA,03/10/2012,PAY00510218,7.38,Revenue,Carlisle Staffing Plc
Brighton & Hove City Council,http://statistics.data.gov.uk/id/local-authority/00ML,Cultural and Related Serv,BVACUL,Culture & Heritage,CHG,Direct Employees,A,Salaries,AA,03/10/2012,PAY00510218,646.05,Revenue,Carlisle Staffing Plc
Brighton & Hove City Council,http://statistics.data.gov.uk/id/local-authority/00ML,Cultural and Related Serv,BVACUL,Management Services (DEC),MGT,Direct Employees,A,Salaries,AA,03/10/2012,PAY00510218,16.63,Revenue,Carlisle Staffing Plc
Brighton & Hove City Council,http://statistics.data.gov.uk/id/local-authority/00ML,Cultural and Related Serv,BVACUL,Open Spaces,PEN,Direct Employees,A,Salaries,AA,03/10/2012,PAY00510218,1578.43,Revenue,Carlisle Staffing Plc
Brighton & Hove City Council,http://statistics.data.gov.uk/id/local-authority/00ML,Cultural and Related Serv,BVACUL,Recreation and sport,REC,Direct Employees,A,Salaries,AA,03/10/2012,PAY00510218,9.01,Revenue,Carlisle Staffing Plc
Brighton & Hove City Council,http://statistics.data.gov.uk/id/local-authority/00ML,Education Services,BVAEDU,Ed - Ed Other - LA Attrib Sch,ELA,Direct Employees,A,Salaries,AA,03/10/2012,PAY00510218,7.51,Revenue,Carlisle Staffing Plc
Brighton & Hove City Council,http://statistics.data.gov.uk/id/local-authority/00ML,Education Services,BVAEDU,Ed - Ed Other - Other,ENF,Direct Employees,A,Salaries,AA,03/10/2012,PAY00510218,8.06,Revenue,Carlisle Staffing Plc
Brighton & Hove City Council,http://statistics.data.gov.uk/id/local-authority/00ML,Education Services,BVAEDU,Ed - EY - Central,EAE,Direct Employees,A,Salaries,AA,03/10/2012,PAY00510218,1927.96,Revenue,Carlisle Staffing Plc
Brighton & Hove City Council,http://statistics.data.gov.uk/id/local-authority/00ML,Education Services,BVAEDU,Ed - Mgmt & Support Services,EMG,Direct Employees,A,Salaries,AA,03/10/2012,PAY00510218,441.26,Revenue,Carlisle Staffing Plc
Brighton & Hove City Council,http://statistics.data.gov.uk/id/local-authority/00ML,Education Services,BVAEDU,Ed - Special Ed,EKE,Direct Employees,A,Salaries,AA,03/10/2012,PAY00510218,13.13,Revenue,Carlisle Staffing Plc
Brighton & Hove City Council,http://statistics.data.gov.uk/id/local-authority/00ML,Education Services,BVAEDU,Management Services (DEC),MGT,Direct Employees,A,Salaries,AA,03/10/2012,PAY00510218,92.38,Revenue,Carlisle Staffing Plc
Brighton & Hove City Council,http://statistics.data.gov.uk/id/local-authority/00ML,Environment & Regulatory Serv,BVAERS,Cem Crem and Mortuary Services,CCM,Direct Employees,A,Salaries,AA,03/10/2012,PAY00510218,382.30,Revenue,Carlisle Staffing Plc
Brighton & Hove City Council,http://statistics.data.gov.uk/id/local-authority/00ML,Environment & Regulatory Serv,BVAERS,Environmental Health,EVH,Direct Employees,A,Salaries,AA,03/10/2012,PAY00510218,948.74,Revenue,Carlisle Staffing Plc
Brighton & Hove City Council,http://statistics.data.gov.uk/id/local-authority/00ML,Environment & Regulatory Serv,BVAERS,Management Services (DEC),MGT,Direct Employees,A,Salaries,AA,03/10/2012,PAY00510218,1378.60,Revenue,Carlisle Staffing Plc
Brighton & Hove City Council,http://statistics.data.gov.uk/id/local-authority/00ML,Environment & Regulatory Serv,BVAERS,Street Cleansing,CLE,Direct Employees,A,Salaries,AA,03/10/2012,PAY00510218,12629.99,Revenue,Carlisle Staffing Plc
Brighton & Hove City Council,http://statistics.data.gov.uk/id/local-authority/00ML,Environment & Regulatory Serv,BVAERS,Waste Management,WMT,Direct Employees,A,Salaries,AA,03/10/2012,PAY00510218,5740.36,Revenue,Carlisle Staffing Plc
Brighton & Hove City Council,http://statistics.data.gov.uk/id/local-authority/00ML,Highways and Transportation,BVAHRT,Highways and Roads - Mntnce,HRM,Direct Employees,A,Salaries,AA,03/10/2012,PAY00510218,18.70,Revenue,Carlisle Staffing Plc
Brighton & Hove City Council,http://statistics.data.gov.uk/id/local-authority/00ML,Highways and Transportation,BVAHRT,Management Services (DEC),MGT,Direct Employees,A,Salaries,AA,03/10/2012,PAY00510218,2994.15,Revenue,Carlisle Staffing Plc
Brighton & Hove City Council,http://statistics.data.gov.uk/id/local-authority/00ML,Highways and Transportation,BVAHRT,Parking Services,PRK,Direct Employees,A,Salaries,AA,03/10/2012,PAY00510218,1354.18,Revenue,Carlisle Staffing Plc
Brighton & Hove City Council,http://statistics.data.gov.uk/id/local-authority/00ML,Highways and Transportation,BVAHRT,Transport plan policy strategy,TPP,Direct Employees,A,Salaries,AA,03/10/2012,PAY00510218,360.36,Revenue,Carlisle Staffing Plc
Brighton & Hove City Council,http://statistics.data.gov.uk/id/local-authority/00ML,Housing General Fund,BVAHOG,Homelessness,HML,Direct Employees,A,Salaries,AA,03/10/2012,PAY00510218,4478.88,Revenue,Carlisle Staffing Plc
Brighton & Hove City Council,http://statistics.data.gov.uk/id/local-authority/00ML,Housing General Fund,BVAHOG,Hsing Benefits,HGB,Direct Employees,A,Salaries,AA,03/10/2012,PAY00510218,18.19,Revenue,Carlisle Staffing Plc
Brighton & Hove City Council,http://statistics.data.gov.uk/id/local-authority/00ML,Housing General Fund,BVAHOG,Hsing Strat Advice and RSLs,HGR,Direct Employees,A,Salaries,AA,03/10/2012,PAY00510218,7.06,Revenue,Carlisle Staffing Plc
Brighton & Hove City Council,http://statistics.data.gov.uk/id/local-authority/00ML,Housing General Fund,BVAHOG,Hsing Welfare,HGW,Direct Employees,A,Salaries,AA,03/10/2012,PAY00510218,498.83,Revenue,Carlisle Staffing Plc
Brighton & Hove City Council,http://statistics.data.gov.uk/id/local-authority/00ML,Housing Revenue Account,BVAHOU,Hsing Management - HRA,HGM,Direct Employees,A,Salaries,AA,03/10/2012,PAY00510218,13119.62,Revenue,Carlisle Staffing Plc
Brighton & Hove City Council,http://statistics.data.gov.uk/id/local-authority/00ML,Non I&E,BVANON,Cap - Mgmnt & Support Services,4PT,Plant Machinery n Equipment,PE2,Level not required,NR5025,03/10/2012,PAY00510218,-428.37,Capital,Carlisle Staffing Plc
Brighton & Hove City Council,http://statistics.data.gov.uk/id/local-authority/00ML,Non I&E,BVANON,Cap - Transport,4TR,New Construction n Conversion,PB,Level not required,NR5026,03/10/2012,PAY00510218,956.25,Capital,Carlisle Staffing Plc
Brighton & Hove City Council,http://statistics.data.gov.uk/id/local-authority/00ML,Planning and Development,BVAPLA,Development Control,DEV,Direct Employees,A,Salaries,AA,03/10/2012,PAY00510218,2028.68,Revenue,Carlisle Staffing Plc
Brighton & Hove City Council,http://statistics.data.gov.uk/id/local-authority/00ML,Housing General Fund,BVAHOG,Homelessness,HML,Premises Related,C,Rents Payable,CC,03/10/2012,PAY00510220,12850.00,Revenue,W P Properties Ltd
Brighton & Hove City Council,http://statistics.data.gov.uk/id/local-authority/00ML,Housing General Fund,BVAHOG,Homelessness,HML,Premises Related,C,Rents Payable,CC,03/10/2012,PAY00510221,1165.00,Revenue,Payment to Individual
Brighton & Hove City Council,http://statistics.data.gov.uk/id/local-authority/00ML,Planning and Development,BVAPLA,Community Development,CDV,Supplies and Services,E,Miscellaneous Expenses,EM,03/10/2012,PAY00510222,6000.00,Revenue,Brighton & Hove Black History
Brighton & Hove City Council,http://statistics.data.gov.uk/id/local-authority/00ML,Housing General Fund,BVAHOG,Homelessness,HML,Premises Related,C,Rents Payable,CC,03/10/2012,PAY00510225,775.00,Revenue,Payment to Individual
Brighton & Hove City Council,http://statistics.data.gov.uk/id/local-authority/00ML,Cultural and Related Serv,BVACUL,Management Services (DEC),MGT,Supplies and Services,E,Equip't Furniture n Materials,EA,03/10/2012,PAY00510226,737.23,Revenue,Ball Colegrave Ltd
Brighton & Hove City Council,http://statistics.data.gov.uk/id/local-authority/00ML,Cultural and Related Serv,BVACUL,Culture & Heritage,CHG,Supplies and Services,E,Miscellaneous Expenses,EM,03/10/2012,PAY00510227,610.00,Revenue,Format Display Ltd
Brighton & Hove City Council,http://statistics.data.gov.uk/id/local-authority/00ML,Cultural and Related Serv,BVACUL,Culture & Heritage,CHG,Supplies and Services,E,Print Stat & Gen Office Exps,ED,03/10/2012,PAY00510227,182.00,Revenue,Format Display Ltd
Brighton & Hove City Council,http://statistics.data.gov.uk/id/local-authority/00ML,Cultural and Related Serv,BVACUL,Culture & Heritage,CHG,Supplies and Services,E,Services,EF,03/10/2012,PAY00510227,244.00,Revenue,Format Display Ltd
Brighton & Hove City Council,http://statistics.data.gov.uk/id/local-authority/00ML,Environment & Regulatory Serv,BVAERS,Cem Crem and Mortuary Services,CCM,Supplies and Services,E,Goods for Resale,EG,03/10/2012,PAY00510228,537.00,Revenue,Tilleys Stonemasons Ltd
Brighton & Hove City Council,http://statistics.data.gov.uk/id/local-authority/00ML,Housing General Fund,BVAHOG,Hsing Welfare,HGW,Transfer Payments,G,Supporting People,GF,03/10/2012,PAY00510231,3001.58,Revenue,Anchor Trust Rent Account
Brighton & Hove City Council,http://statistics.data.gov.uk/id/local-authority/00ML,Central Support and Overheads,BVACEN,Support Services (SSC),PPT,Indirect Employees,B,Training,BM,03/10/2012,PAY00510232,625.00,Revenue,Roland Webster Associates Ltd
Brighton & Hove City Council,http://statistics.data.gov.uk/id/local-authority/00ML,Planning and Development,BVAPLA,Economic Development,ECD,Supplies and Services,E,Grants n Subscriptions,EK,03/10/2012,PAY00510234,5000.00,Revenue,Photoworks Ltd
Brighton & Hove City Council,http://statistics.data.gov.uk/id/local-authority/00ML,Non I&E,BVANON,Balance Sheet GFND,9ZZ,Current Assets,ZAB,Short Term Debtors,ZABC,03/10/2012,PAY00510237,0.00,Balance Sheet,B & H CC Royal Spa Nursery Sch
Brighton & Hove City Council,http://statistics.data.gov.uk/id/local-authority/00ML,Housing General Fund,BVAHOG,Homelessness,HML,Premises Related,C,Rents Payable,CC,03/10/2012,PAY00510241,900.00,Revenue,Avon Estates (London) Ltd
Brighton & Hove City Council,http://statistics.data.gov.uk/id/local-authority/00ML,Adult Social Care,BVASOC,S Svcs - Older People Svcs,PPL,Customer n Client Receipts,M,Fees n Charges,MB,03/10/2012,PAY00510242,3065.14,Revenue,Glentworth Nursing Home
Brighton & Hove City Council,http://statistics.data.gov.uk/id/local-authority/00ML,Central Support and Overheads,BVACEN,Support Services (SSC),PPT,Premises Related,C,Cleaning n Domestic Supps,CH,03/10/2012,PAY00510243,145045.14,Revenue,Nviro
Brighton & Hove City Council,http://statistics.data.gov.uk/id/local-authority/00ML,Central Support and Overheads,BVACEN,Support Services (SSC),PPT,Supplies and Services,E,Equip't Furniture n Materials,EA,03/10/2012,PAY00510244,461.00,Revenue,OCE Finance Ltd
Brighton & Hove City Council,http://statistics.data.gov.uk/id/local-authority/00ML,Non I&E,BVANON,Balance Sheet GFND,9ZZ,Current Assets,ZAB,Short Term Debtors,ZABC,03/10/2012,PAY00510245,0.00,Balance Sheet,Hove Park School
Brighton & Hove City Council,http://statistics.data.gov.uk/id/local-authority/00ML,Education Services,BVAEDU,Ed - Srvcs YP - Ad & Cmty Ln,ENA,Third Party Payments,F,Other Establishments,FH,03/10/2012,PAY00510246,5040.00,Revenue,Dv8 Training (Brighton) Limited
Brighton & Hove City Council,http://statistics.data.gov.uk/id/local-authority/00ML,Education Services,BVAEDU,Ed - EY - Central,EAE,Supplies and Services,E,Miscellaneous Expenses,EM,03/10/2012,PAY00510248,675.00,Revenue,St George`s Neighbourhood Nursery
Brighton & Hove City Council,http://statistics.data.gov.uk/id/local-authority/00ML,Non I&E,BVANON,Collection Fund,7WW,Unalalysed-Income,9998,Level not required,NR5037,03/10/2012,PAY00510249,4991.41,Collection Fund,Furniture Village Ltd
Brighton & Hove City Council,http://statistics.data.gov.uk/id/local-authority/00ML,Environment & Regulatory Serv,BVAERS,Agricultural and Fisheries,AGF,Third Party Payments,F,Independent Units of Council,FA,03/10/2012,PAY00510250,14892.71,Revenue,Smiths Gore
Brighton & Hove City Council,http://statistics.data.gov.uk/id/local-authority/00ML,Housing General Fund,BVAHOG,Homelessness,HML,Premises Related,C,Rents Payable,CC,03/10/2012,PAY00510253,6068.21,Revenue,West Pier Services Limited
Brighton & Hove City Council,http://statistics.data.gov.uk/id/local-authority/00ML,Adult Social Care,BVASOC,S Svcs - Learning Disability,LDY,Premises Related,C,Cleaning n Domestic Supps,CH,03/10/2012,PAY00510255,84.22,Revenue,The Imprest Holder
Brighton & Hove City Council,http://statistics.data.gov.uk/id/local-authority/00ML,Adult Social Care,BVASOC,S Svcs - Learning Disability,LDY,Supplies and Services,E,Catering,EB,03/10/2012,PAY00510255,1120.34,Revenue,The Imprest Holder
Brighton & Hove City Council,http://statistics.data.gov.uk/id/local-authority/00ML,Adult Social Care,BVASOC,S Svcs - Learning Disability,LDY,Supplies and Services,E,Communications n Computing,EH,03/10/2012,PAY00510255,4.35,Revenue,The Imprest Holder
Brighton & Hove City Council,http://statistics.data.gov.uk/id/local-authority/00ML,Adult Social Care,BVASOC,S Svcs - Learning Disability,LDY,Supplies and Services,E,Equip't Furniture n Materials,EA,03/10/2012,PAY00510255,156.12,Revenue,The Imprest Holder
Brighton & Hove City Council,http://statistics.data.gov.uk/id/local-authority/00ML,Adult Social Care,BVASOC,S Svcs - Learning Disability,LDY,Supplies and Services,E,Print Stat & Gen Office Exps,ED,03/10/2012,PAY00510255,70.35,Revenue,The Imprest Holder
Brighton & Hove City Council,http://statistics.data.gov.uk/id/local-authority/00ML,Adult Social Care,BVASOC,S Svcs - Learning Disability,LDY,Third Party Payments,F,Other Establishments,FH,03/10/2012,PAY00510255,5.33,Revenue,The Imprest Holder
Brighton & Hove City Council,http://statistics.data.gov.uk/id/local-authority/00ML,Adult Social Care,BVASOC,S Svcs - Learning Disability,LDY,Transport Related,D,Direct Transport Costs,DA,03/10/2012,PAY00510255,232.93,Revenue,The Imprest Holder
Brighton & Hove City Council,http://statistics.data.gov.uk/id/local-authority/00ML,Adult Social Care,BVASOC,S Svcs - Learning Disability,LDY,Transport Related,D,Other Transport Costs,DG,03/10/2012,PAY00510255,22.00,Revenue,The Imprest Holder
Brighton & Hove City Council,http://statistics.data.gov.uk/id/local-authority/00ML,Adult Social Care,BVASOC,S Svcs - Learning Disability,LDY,Transport Related,D,Public Transport,DD,03/10/2012,PAY00510255,91.75,Revenue,The Imprest Holder
Brighton & Hove City Council,http://statistics.data.gov.uk/id/local-authority/00ML,Housing Revenue Account,BVAHOU,Hsing Management - HRA,HGM,Supplies and Services,E,Equip't Furniture n Materials,EA,03/10/2012,PAY00510259,8.99,Revenue,Clearwell Mobility Ltd
Brighton & Hove City Council,http://statistics.data.gov.uk/id/local-authority/00ML,Non I&E,BVANON,Cap - Housing Services - HRA,4HR,New Construction n Conversion,PB,Level not required,NR5026,03/10/2012,PAY00510259,2122.00,Capital,Clearwell Mobility Ltd
Brighton & Hove City Council,http://statistics.data.gov.uk/id/local-authority/00ML,Central Support and Overheads,BVACEN,Support Services (SSC),PPT,Supplies and Services,E,Communications n Computing,EH,03/10/2012,PAY00510260,15.00,Revenue,Posture People Ltd
Brighton & Hove City Council,http://statistics.data.gov.uk/id/local-authority/00ML,Central Support and Overheads,BVACEN,Support Services (SSC),PPT,Supplies and Services,E,Equip't Furniture n Materials,EA,03/10/2012,PAY00510260,405.90,Revenue,Posture People Ltd
Brighton & Hove City Council,http://statistics.data.gov.uk/id/local-authority/00ML,Central Support and Overheads,BVACEN,Support Services (SSC),PPT,Indirect Employees,B,Training,BM,03/10/2012,PAY00510262,1650.00,Revenue,SMART Consultancy (Southern) Ltd
Brighton & Hove City Council,http://statistics.data.gov.uk/id/local-authority/00ML,Central Support and Overheads,BVACEN,Support Services (SSC),PPT,Supplies and Services,E,Services,EF,03/10/2012,PAY00510263,22386.40,Revenue,NPS South East Ltd
Brighton & Hove City Council,http://statistics.data.gov.uk/id/local-authority/00ML,Housing Revenue Account,BVAHOU,Hsing Management - HRA,HGM,Supplies and Services,E,Services,EF,03/10/2012,PAY00510263,904.50,Revenue,NPS South East Ltd
Brighton & Hove City Council,http://statistics.data.gov.uk/id/local-authority/00ML,Housing General Fund,BVAHOG,Homelessness,HML,Premises Related,C,Rents Payable,CC,03/10/2012,PAY00510267,1900.00,Revenue,Payment to Individual
Brighton & Hove City Council,http://statistics.data.gov.uk/id/local-authority/00ML,Non I&E,BVANON,Cap - Housing Services - HRA,4HR,New Construction n Conversion,PB,Level not required,NR5026,03/10/2012,PAY00510268,4949.13,Capital,Mears Limited
Brighton & Hove City Council,http://statistics.data.gov.uk/id/local-authority/00ML,Adult Social Care,BVASOC,S Svcs - Learning Disability,LDY,Premises Related,C,Rents Payable,CC,03/10/2012,PAY00510269,875.00,Revenue,Payment to Individual
Brighton & Hove City Council,http://statistics.data.gov.uk/id/local-authority/00ML,Highways and Transportation,BVAHRT,Parking Services,PRK,Supplies and Services,E,Equip't Furniture n Materials,EA,03/10/2012,PAY00510270,2163.00,Revenue,Parkeon Ltd
Brighton & Hove City Council,http://statistics.data.gov.uk/id/local-authority/00ML,Children�s Social Care,BVACSC,Child Srvcs - Direct Pymts,FFD,Third Party Payments,F,Other Establishments,FH,03/10/2012,PAY00510273,919.20,Revenue,Payment to Individual
Brighton & Hove City Council,http://statistics.data.gov.uk/id/local-authority/00ML,Housing General Fund,BVAHOG,Hsing Welfare,HGW,Transfer Payments,G,Supporting People,GF,03/10/2012,PAY00510275,12733.91,Revenue,In Touch 
Brighton & Hove City Council,http://statistics.data.gov.uk/id/local-authority/00ML,Environment & Regulatory Serv,BVAERS,Community Safety,CMY,Supplies and Services,E,Miscellaneous Expenses,EM,03/10/2012,PAY00510276,950.00,Revenue,IDOX Software Ltd
Brighton & Hove City Council,http://statistics.data.gov.uk/id/local-authority/00ML,Non I&E,BVANON,Cap - Housing Services - HRA,4HR,New Construction n Conversion,PB,Level not required,NR5026,03/10/2012,PAY00510277,750.00,Capital,E N V Surveys Ltd
Brighton & Hove City Council,http://statistics.data.gov.uk/id/local-authority/00ML,Environment & Regulatory Serv,BVAERS,Management Services (DEC),MGT,Transport Related,D,Direct Transport Costs,DA,03/10/2012,PAY00510278,20167.75,Revenue,Farid UK Ltd
Brighton & Hove City Council,http://statistics.data.gov.uk/id/local-authority/00ML,Central Support and Overheads,BVACEN,Support Services (SSC),PPT,Premises Related,C,Repair Maint n Alterations,CA,03/10/2012,PAY00510281,733.00,Revenue,Orion Lightning Protection Ltd
Brighton & Hove City Council,http://statistics.data.gov.uk/id/local-authority/00ML,Children�s Social Care,BVACSC,Child Srvcs - Leaving Care,FAL,Transfer Payments,G,Other Transfer Payments,GD,03/10/2012,PAY00510283,620.00,Revenue,Payment to Individual
Brighton & Hove City Council,http://statistics.data.gov.uk/id/local-authority/00ML,Adult Social Care,BVASOC,Management Services (DEC),MGT,Supplies and Services,E,Expenses,EJ,03/10/2012,PAY00510284,1793.00,Revenue,Hanover Housing Association
Brighton & Hove City Council,http://statistics.data.gov.uk/id/local-authority/00ML,Housing General Fund,BVAHOG,Hsing Welfare,HGW,Transfer Payments,G,Supporting People,GF,03/10/2012,PAY00510284,2802.67,Revenue,Hanover Housing Association
Brighton & Hove City Council,http://statistics.data.gov.uk/id/local-authority/00ML,Housing General Fund,BVAHOG,Homelessness,HML,Premises Related,C,Rents Payable,CC,03/10/2012,PAY00510285,600.00,Revenue,Home & Coastal Developments Limited
Brighton & Hove City Council,http://statistics.data.gov.uk/id/local-authority/00ML,Non I&E,BVANON,Balance Sheet GFND,9ZZ,Current Assets,ZAB,Short Term Debtors,ZABC,03/10/2012,PAY00510287,0.00,Balance Sheet,Cedar Centre (Secondary)
Brighton & Hove City Council,http://statistics.data.gov.uk/id/local-authority/00ML,Central Support and Overheads,BVACEN,Support Services (SSC),PPT,Premises Related,C,Repair Maint n Alterations,CA,03/10/2012,PAY00510293,1320.64,Revenue,J P Garrett Electrical Ltd
Brighton & Hove City Council,http://statistics.data.gov.uk/id/local-authority/00ML,Highways and Transportation,BVAHRT,Parking Services,PRK,Premises Related,C,Repair Maint n Alterations,CA,03/10/2012,PAY00510294,1575.00,Revenue,Lee Hire Ltd
Brighton & Hove City Council,http://statistics.data.gov.uk/id/local-authority/00ML,Non I&E,BVANON,Balance Sheet GFND,9ZZ,Current Assets,ZAB,Short Term Debtors,ZABC,03/10/2012,PAY00510295,0.00,Balance Sheet,Somerhill Junior School
Brighton & Hove City Council,http://statistics.data.gov.uk/id/local-authority/00ML,Cultural and Related Serv,BVACUL,Recreation and sport,REC,Premises Related,C,Repair Maint n Alterations,CA,03/10/2012,PAY00510296,615.00,Revenue,Abacus Property Maintenance Ltd
Brighton & Hove City Council,http://statistics.data.gov.uk/id/local-authority/00ML,Cultural and Related Serv,BVACUL,Culture & Heritage,CHG,Premises Related,C,Repair Maint n Alterations,CA,03/10/2012,PAY00510297,0.00,Revenue,A G M Floors Ltd
Brighton & Hove City Council,http://statistics.data.gov.uk/id/local-authority/00ML,Central Support and Overheads,BVACEN,Support Services (SSC),PPT,Premises Related,C,Repair Maint n Alterations,CA,03/10/2012,PAY00510299,8562.08,Revenue,AM Fire & Security Group
Brighton & Hove City Council,http://statistics.data.gov.uk/id/local-authority/00ML,Non I&E,BVANON,Balance Sheet GFND,9ZZ,Current Assets,ZAB,Short Term Debtors,ZABC,03/10/2012,PAY00510301,0.00,Balance Sheet,Blatchington Mill School & Sixth Form College
Brighton & Hove City Council,http://statistics.data.gov.uk/id/local-authority/00ML,Cultural and Related Serv,BVACUL,Tourism,TRM,Supplies and Services,E,Miscellaneous Expenses,EM,03/10/2012,PAY00510303,4950.00,Revenue,Visit Britain
Brighton & Hove City Council,http://statistics.data.gov.uk/id/local-authority/00ML,Children�s Social Care,BVACSC,Child Srvcs - Other Fam Supp,FFX,Transfer Payments,G,Other Transfer Payments,GD,03/10/2012,PAY00510306,488.00,Revenue,Brighton & Sussex University Hospitals NHS Trust
Brighton & Hove City Council,http://statistics.data.gov.uk/id/local-authority/00ML,Cultural and Related Serv,BVACUL,Management Services (DEC),MGT,Supplies and Services,E,Clothing Uniforms n Laundry,EC,03/10/2012,PAY00510306,224.95,Revenue,Brighton & Sussex University Hospitals NHS Trust
Brighton & Hove City Council,http://statistics.data.gov.uk/id/local-authority/00ML,Housing General Fund,BVAHOG,Hsing Welfare,HGW,Transfer Payments,G,Supporting People,GF,03/10/2012,PAY00510307,194509.00,Revenue,Brighton Housing Trust
Brighton & Hove City Council,http://statistics.data.gov.uk/id/local-authority/00ML,Housing Revenue Account,BVAHOU,Hsing Management - HRA,HGM,Premises Related,C,Repair Maint n Alterations,CA,03/10/2012,PAY00510310,418.91,Revenue,C Brewer & Sons Ltd
Brighton & Hove City Council,http://statistics.data.gov.uk/id/local-authority/00ML,Housing Revenue Account,BVAHOU,Hsing Management - HRA,HGM,Supplies and Services,E,Equip't Furniture n Materials,EA,03/10/2012,PAY00510310,213.69,Revenue,C Brewer & Sons Ltd
Brighton & Hove City Council,http://statistics.data.gov.uk/id/local-authority/00ML,Housing General Fund,BVAHOG,Hsing Strat Advice and RSLs,HGR,Supplies and Services,E,Print Stat & Gen Office Exps,ED,03/10/2012,PAY00510311,859.20,Revenue,Chartered Institute Of Housing
Brighton & Hove City Council,http://statistics.data.gov.uk/id/local-authority/00ML,Adult Social Care,BVASOC,S Svcs - Older People Svcs,PPL,Third Party Payments,F,Other Establishments,FH,03/10/2012,PAY00510312,68.40,Revenue,Community Transport (Bton Hove & Area) Ltd
Brighton & Hove City Council,http://statistics.data.gov.uk/id/local-authority/00ML,Education Services,BVAEDU,Ed - Ed Other - LA Attrib Sch,ELA,Transport Related,D,Other Transport Costs,DG,03/10/2012,PAY00510312,5085.15,Revenue,Community Transport (Bton Hove & Area) Ltd
Brighton & Hove City Council,http://statistics.data.gov.uk/id/local-authority/00ML,Highways and Transportation,BVAHRT,Public transport,PTR,Transport Related,D,Public Transport,DD,03/10/2012,PAY00510312,27.50,Revenue,Community Transport (Bton Hove & Area) Ltd
Brighton & Hove City Council,http://statistics.data.gov.uk/id/local-authority/00ML,Central Support and Overheads,BVACEN,Support Services (SSC),PPT,Premises Related,C,Repair Maint n Alterations,CA,03/10/2012,PAY00510313,1031.00,Revenue,C & S Rubbish Clearance
Brighton & Hove City Council,http://statistics.data.gov.uk/id/local-authority/00ML,Housing General Fund,BVAHOG,Homelessness,HML,Premises Related,C,Rents Payable,CC,03/10/2012,PAY00510314,900.00,Revenue,Payment to Individual
Brighton & Hove City Council,http://statistics.data.gov.uk/id/local-authority/00ML,Housing General Fund,BVAHOG,Hsing Welfare,HGW,Transfer Payments,G,Supporting People,GF,03/10/2012,PAY00510315,8333.33,Revenue,Affinity Sutton Homes Ltd
Brighton & Hove City Council,http://statistics.data.gov.uk/id/local-authority/00ML,Housing General Fund,BVAHOG,Hsing Welfare,HGW,Transfer Payments,G,Supporting People,GF,03/10/2012,PAY00510317,9135.00,Revenue,Equinox Care
Brighton & Hove City Council,http://statistics.data.gov.uk/id/local-authority/00ML,Non I&E,BVANON,Cap - Other Env Services,4EV,Plant Machinery n Equipment,PE2,Level not required,NR5025,03/10/2012,PAY00510318,2521.50,Capital,Egbert H Taylor & Company Ltd
Brighton & Hove City Council,http://statistics.data.gov.uk/id/local-authority/00ML,Housing General Fund,BVAHOG,Hsing Welfare,HGW,Transfer Payments,G,Supporting People,GF,03/10/2012,PAY00510323,5940.00,Revenue,Friends Centre
Brighton & Hove City Council,http://statistics.data.gov.uk/id/local-authority/00ML,Cultural and Related Serv,BVACUL,Recreation and sport,REC,Premises Related,C,Repair Maint n Alterations,CA,03/10/2012,PAY00510325,532.84,Revenue,Gochers Laundry Ltd
Brighton & Hove City Council,http://statistics.data.gov.uk/id/local-authority/00ML,Non I&E,BVANON,Cap - Education Services,4ED,New Construction n Conversion,PB,Level not required,NR5026,03/10/2012,PAY00510326,376.10,Capital,Gyoury Self Partnership
Brighton & Hove City Council,http://statistics.data.gov.uk/id/local-authority/00ML,Non I&E,BVANON,Cap - Housing Services - HRA,4HR,New Construction n Conversion,PB,Level not required,NR5026,03/10/2012,PAY00510326,245.00,Capital,Gyoury Self Partnership
Brighton & Hove City Council,http://statistics.data.gov.uk/id/local-authority/00ML,Environment & Regulatory Serv,BVAERS,Consumer Protection,CNP,Supplies and Services,E,Miscellaneous Expenses,EM,03/10/2012,PAY00510327,420.00,Revenue,Hampshire County Council
Brighton & Hove City Council,http://statistics.data.gov.uk/id/local-authority/00ML,Education Services,BVAEDU,Ed - Ed Other - Other,ENF,Premises Related,C,Repair Maint n Alterations,CA,03/10/2012,PAY00510328,90.88,Revenue,H A Pocock Ltd
Brighton & Hove City Council,http://statistics.data.gov.uk/id/local-authority/00ML,Education Services,BVAEDU,Ed - Srvcs YP - Youth Srvcs,ENY,Premises Related,C,Repair Maint n Alterations,CA,03/10/2012,PAY00510328,1000.00,Revenue,H A Pocock Ltd
Brighton & Hove City Council,http://statistics.data.gov.uk/id/local-authority/00ML,Cultural and Related Serv,BVACUL,Culture & Heritage,CHG,Supplies and Services,E,Goods for Resale,EG,03/10/2012,PAY00510330,656.25,Revenue,Into Design (Brighton) Ltd
Brighton & Hove City Council,http://statistics.data.gov.uk/id/local-authority/00ML,Non I&E,BVANON,Cap - Education Services,4ED,New Construction n Conversion,PB,Level not required,NR5026,03/10/2012,PAY00510331,4140.00,Capital,J Davies Building Ltd
Brighton & Hove City Council,http://statistics.data.gov.uk/id/local-authority/00ML,Non I&E,BVANON,Cap - Housing Services - HRA,4HR,New Construction n Conversion,PB,Level not required,NR5026,03/10/2012,PAY00510331,13984.94,Capital,J Davies Building Ltd
Brighton & Hove City Council,http://statistics.data.gov.uk/id/local-authority/00ML,Non I&E,BVANON,Cap - Housing Services - HRA,4HR,New Construction n Conversion,PB,Level not required,NR5026,03/10/2012,PAY00510332,7095.43,Capital,Payment to Individual
Brighton & Hove City Council,http://statistics.data.gov.uk/id/local-authority/00ML,Adult Social Care,BVASOC,S Svcs - Older People Svcs,PPL,Supplies and Services,E,Equip't Furniture n Materials,EA,03/10/2012,PAY00510334,391.20,Revenue,Kent County Council (KCS)
Brighton & Hove City Council,http://statistics.data.gov.uk/id/local-authority/00ML,Adult Social Care,BVASOC,S Svcs - Older People Svcs,PPL,Supplies and Services,E,Print Stat & Gen Office Exps,ED,03/10/2012,PAY00510334,85.70,Revenue,Kent County Council (KCS)
Brighton & Hove City Council,http://statistics.data.gov.uk/id/local-authority/00ML,Central Support and Overheads,BVACEN,Holding Accounts,PPH,Transport Related,D,Direct Transport Costs,DA,03/10/2012,PAY00510334,4735.02,Revenue,Kent County Council (KCS)
Brighton & Hove City Council,http://statistics.data.gov.uk/id/local-authority/00ML,Non I&E,BVANON,Collection Fund,7WW,Unalalysed-Income,9998,Level not required,NR5037,03/10/2012,PAY00510335,12937.60,Collection Fund,Kensett Ltd
Brighton & Hove City Council,http://statistics.data.gov.uk/id/local-authority/00ML,Planning and Development,BVAPLA,Planning policy,PLP,Supplies and Services,E,Services,EF,03/10/2012,PAY00510336,4835.71,Revenue,Lewes District Council
Brighton & Hove City Council,http://statistics.data.gov.uk/id/local-authority/00ML,Non I&E,BVANON,Balance Sheet GFND,9ZZ,Current Assets,ZAB,Short Term Debtors,ZABC,03/10/2012,PAY00510337,0.00,Balance Sheet,Longhill School
Brighton & Hove City Council,http://statistics.data.gov.uk/id/local-authority/00ML,Non I&E,BVANON,Cap - Housing Services - HRA,4HR,New Construction n Conversion,PB,Level not required,NR5026,03/10/2012,PAY00510338,591.75,Capital,Macconvilles Ltd
Brighton & Hove City Council,http://statistics.data.gov.uk/id/local-authority/00ML,Non I&E,BVANON,Balance Sheet GFND,9ZZ,Current Assets,ZAB,Short Term Debtors,ZABC,03/10/2012,PAY00510340,0.00,Balance Sheet,Middle Street Primary School
Brighton & Hove City Council,http://statistics.data.gov.uk/id/local-authority/00ML,Central Support and Overheads,BVACEN,Support Services (SSC),PPT,Supplies and Services,E,Equip't Furniture n Materials,EA,03/10/2012,PAY00510343,451.11,Revenue,OCE (UK) Limited
Brighton & Hove City Council,http://statistics.data.gov.uk/id/local-authority/00ML,Housing General Fund,BVAHOG,Hsing Welfare,HGW,Transfer Payments,G,Supporting People,GF,03/10/2012,PAY00510344,12241.17,Revenue,Impact Initiatives
Brighton & Hove City Council,http://statistics.data.gov.uk/id/local-authority/00ML,Education Services,BVAEDU,Ed - EY - Central,EAE,Supplies and Services,E,Print Stat & Gen Office Exps,ED,03/10/2012,PAY00510346,655.88,Revenue,PHS Group Plc
Brighton & Hove City Council,http://statistics.data.gov.uk/id/local-authority/00ML,Highways and Transportation,BVAHRT,Highways and Roads - Mntnce,HRM,Supplies and Services,E,Print Stat & Gen Office Exps,ED,03/10/2012,PAY00510346,112.27,Revenue,PHS Group Plc
Brighton & Hove City Council,http://statistics.data.gov.uk/id/local-authority/00ML,Housing Revenue Account,BVAHOU,Hsing Management - HRA,HGM,Supplies and Services,E,Print Stat & Gen Office Exps,ED,03/10/2012,PAY00510346,112.27,Revenue,PHS Group Plc
Brighton & Hove City Council,http://statistics.data.gov.uk/id/local-authority/00ML,Housing Revenue Account,BVAHOU,Hsing Management - HRA,HGM,Third Party Payments,F,Independent Units of Council,FA,03/10/2012,PAY00510346,149.30,Revenue,PHS Group Plc
Brighton & Hove City Council,http://statistics.data.gov.uk/id/local-authority/00ML,Central Support and Overheads,BVACEN,Support Services (SSC),PPT,Supplies and Services,E,Equip't Furniture n Materials,EA,03/10/2012,PAY00510347,2357.35,Revenue,Pitney Bowes Finance Plc
Brighton & Hove City Council,http://statistics.data.gov.uk/id/local-authority/00ML,Non I&E,BVANON,Cap - Education Services,4ED,New Construction n Conversion,PB,Level not required,NR5026,03/10/2012,PAY00510349,1054.80,Capital,P & R Building Contractors Ltd
Brighton & Hove City Council,http://statistics.data.gov.uk/id/local-authority/00ML,Housing General Fund,BVAHOG,Hsing Welfare,HGW,Transfer Payments,G,Supporting People,GF,03/10/2012,PAY00510351,37670.83,Revenue,Sanctuary Housing Association
Brighton & Hove City Council,http://statistics.data.gov.uk/id/local-authority/00ML,Housing General Fund,BVAHOG,Homelessness,HML,Premises Related,C,Repair Maint n Alterations,CA,03/10/2012,PAY00510353,1029.00,Revenue,Securitel Service Ltd
Brighton & Hove City Council,http://statistics.data.gov.uk/id/local-authority/00ML,Central Support and Overheads,BVACEN,Support Services (SSC),PPT,Premises Related,C,Repair Maint n Alterations,CA,03/10/2012,PAY00510354,1469.25,Revenue,Thomas Door & Window Controls Ltd
Brighton & Hove City Council,http://statistics.data.gov.uk/id/local-authority/00ML,Adult Social Care,BVASOC,S Svcs - Older People Svcs,PPL,Third Party Payments,F,Health Authorities,FC,03/10/2012,PAY00510355,42147.00,Revenue,Sussex Community NHS Trust
Brighton & Hove City Council,http://statistics.data.gov.uk/id/local-authority/00ML,Environment & Regulatory Serv,BVAERS,Cem Crem and Mortuary Services,CCM,Premises Related,C,Cleaning n Domestic Supps,CH,03/10/2012,PAY00510356,159.35,Revenue,Southern Counties Janitorial Supplies Ld
Brighton & Hove City Council,http://statistics.data.gov.uk/id/local-authority/00ML,Housing Revenue Account,BVAHOU,Hsing Management - HRA,HGM,Premises Related,C,Cleaning n Domestic Supps,CH,03/10/2012,PAY00510356,620.24,Revenue,Southern Counties Janitorial Supplies Ld
Brighton & Hove City Council,http://statistics.data.gov.uk/id/local-authority/00ML,Cultural and Related Serv,BVACUL,Recreation and sport,REC,Supplies and Services,E,Miscellaneous Expenses,EM,03/10/2012,PAY00510360,2891.13,Revenue,Sussex County Cricket Club
Brighton & Hove City Council,http://statistics.data.gov.uk/id/local-authority/00ML,Adult Social Care,BVASOC,S Svcs - Learning Disability,LDY,Premises Related,C,Cleaning n Domestic Supps,CH,03/10/2012,PAY00510366,251.98,Revenue,Wightman & Parrish Ltd
Brighton & Hove City Council,http://statistics.data.gov.uk/id/local-authority/00ML,Adult Social Care,BVASOC,S Svcs - Older People Svcs,PPL,Premises Related,C,Cleaning n Domestic Supps,CH,03/10/2012,PAY00510366,207.52,Revenue,Wightman & Parrish Ltd
Brighton & Hove City Council,http://statistics.data.gov.uk/id/local-authority/00ML,Education Services,BVAEDU,Ed - EY - Central,EAE,Premises Related,C,Cleaning n Domestic Supps,CH,03/10/2012,PAY00510366,358.10,Revenue,Wightman & Parrish Ltd
Brighton & Hove City Council,http://statistics.data.gov.uk/id/local-authority/00ML,Housing General Fund,BVAHOG,Homelessness,HML,Premises Related,C,Cleaning n Domestic Supps,CH,03/10/2012,PAY00510366,66.49,Revenue,Wightman & Parrish Ltd
Brighton & Hove City Council,http://statistics.data.gov.uk/id/local-authority/00ML,Housing General Fund,BVAHOG,Hsing Welfare,HGW,Transfer Payments,G,Supporting People,GF,03/10/2012,PAY00510367,20086.08,Revenue,"R.I.S.E (Refuge, Information, Support & Education)"
Brighton & Hove City Council,http://statistics.data.gov.uk/id/local-authority/00ML,Non I&E,BVANON,Balance Sheet GFND,9ZZ,Current Assets,ZAB,Short Term Debtors,ZABC,03/10/2012,PAY00510371,0.00,Balance Sheet,Bevendean Primary School
Brighton & Hove City Council,http://statistics.data.gov.uk/id/local-authority/00ML,Non I&E,BVANON,Balance Sheet GFND,9ZZ,Current Assets,ZAB,Short Term Debtors,ZABC,03/10/2012,PAY00510373,0.00,Balance Sheet,Carlton Hill Primary School
Brighton & Hove City Council,http://statistics.data.gov.uk/id/local-authority/00ML,Adult Social Care,BVASOC,S Svcs - Learning Disability,LDY,Third Party Payments,F,Other Establishments,FH,03/10/2012,PAY00510374,42.00,Revenue,Enara Community Care
Brighton & Hove City Council,http://statistics.data.gov.uk/id/local-authority/00ML,Adult Social Care,BVASOC,S Svcs - Older People Svcs,PPL,Customer n Client Receipts,M,Fees n Charges,MB,03/10/2012,PAY00510374,-1865.86,Revenue,Enara Community Care
Brighton & Hove City Council,http://statistics.data.gov.uk/id/local-authority/00ML,Adult Social Care,BVASOC,S Svcs - Older People Svcs,PPL,Third Party Payments,F,Other Establishments,FH,03/10/2012,PAY00510374,13795.82,Revenue,Enara Community Care
Brighton & Hove City Council,http://statistics.data.gov.uk/id/local-authority/00ML,Adult Social Care,BVASOC,S Svcs - Physical Disability,PDY,Customer n Client Receipts,M,Fees n Charges,MB,03/10/2012,PAY00510374,-187.00,Revenue,Enara Community Care
Brighton & Hove City Council,http://statistics.data.gov.uk/id/local-authority/00ML,Adult Social Care,BVASOC,S Svcs - Physical Disability,PDY,Third Party Payments,F,Other Establishments,FH,03/10/2012,PAY00510374,3118.89,Revenue,Enara Community Care
Brighton & Hove City Council,http://statistics.data.gov.uk/id/local-authority/00ML,Non I&E,BVANON,Balance Sheet GFND,9ZZ,Current Assets,ZAB,Short Term Debtors,ZABC,03/10/2012,PAY00510375,0.00,Balance Sheet,Coombe Road Primary School
Brighton & Hove City Council,http://statistics.data.gov.uk/id/local-authority/00ML,Non I&E,BVANON,Balance Sheet GFND,9ZZ,Current Assets,ZAB,Short Term Debtors,ZABC,03/10/2012,PAY00510376,0.00,Balance Sheet,Davigdor Infant School
Brighton & Hove City Council,http://statistics.data.gov.uk/id/local-authority/00ML,Non I&E,BVANON,Balance Sheet GFND,9ZZ,Current Assets,ZAB,Short Term Debtors,ZABC,03/10/2012,PAY00510377,0.00,Balance Sheet,Downs Park School
Brighton & Hove City Council,http://statistics.data.gov.uk/id/local-authority/00ML,Adult Social Care,BVASOC,S Svcs - Learning Disability,LDY,Third Party Payments,F,Other Establishments,FH,03/10/2012,PAY00510379,7026.00,Revenue,Grace Eyre Foundation Ltd
Brighton & Hove City Council,http://statistics.data.gov.uk/id/local-authority/00ML,Non I&E,BVANON,Balance Sheet GFND,9ZZ,Current Assets,ZAB,Short Term Debtors,ZABC,03/10/2012,PAY00510381,0.00,Balance Sheet,Hertford Infant School
Brighton & Hove City Council,http://statistics.data.gov.uk/id/local-authority/00ML,Non I&E,BVANON,Balance Sheet GFND,9ZZ,Current Assets,ZAB,Short Term Debtors,ZABC,03/10/2012,PAY00510382,0.00,Balance Sheet,Hertford Junior School
Brighton & Hove City Council,http://statistics.data.gov.uk/id/local-authority/00ML,Non I&E,BVANON,Balance Sheet GFND,9ZZ,Current Assets,ZAB,Short Term Debtors,ZABC,03/10/2012,PAY00510384,0.00,Balance Sheet,Mile Oak Primary School
Brighton & Hove City Council,http://statistics.data.gov.uk/id/local-authority/00ML,Non I&E,BVANON,Cap - Education Services,4ED,New Construction n Conversion,PB,Level not required,NR5026,03/10/2012,PAY00510385,1514.20,Capital,Morgan Carn Partnership
Brighton & Hove City Council,http://statistics.data.gov.uk/id/local-authority/00ML,Education Services,BVAEDU,Ed - EY - Central,EAE,Supplies and Services,E,Miscellaneous Expenses,EM,03/10/2012,PAY00510387,2012.50,Revenue,Oak Cottage Nursery
Brighton & Hove City Council,http://statistics.data.gov.uk/id/local-authority/00ML,Non I&E,BVANON,Balance Sheet GFND,9ZZ,Current Assets,ZAB,Short Term Debtors,ZABC,03/10/2012,PAY00510388,0.00,Balance Sheet,Our Lady Of Lourdes R C School
Brighton & Hove City Council,http://statistics.data.gov.uk/id/local-authority/00ML,Non I&E,BVANON,Balance Sheet GFND,9ZZ,Current Assets,ZAB,Short Term Debtors,ZABC,03/10/2012,PAY00510389,0.00,Balance Sheet,Patcham High School
Brighton & Hove City Council,http://statistics.data.gov.uk/id/local-authority/00ML,Non I&E,BVANON,Balance Sheet GFND,9ZZ,Current Assets,ZAB,Short Term Debtors,ZABC,03/10/2012,PAY00510390,0.00,Balance Sheet,Patcham Infant School
Brighton & Hove City Council,http://statistics.data.gov.uk/id/local-authority/00ML,Non I&E,BVANON,Balance Sheet GFND,9ZZ,Current Assets,ZAB,Short Term Debtors,ZABC,03/10/2012,PAY00510392,0.00,Balance Sheet,Portslade Infants School
Brighton & Hove City Council,http://statistics.data.gov.uk/id/local-authority/00ML,Non I&E,BVANON,Balance Sheet GFND,9ZZ,Current Assets,ZAB,Short Term Debtors,ZABC,03/10/2012,PAY00510393,0.00,Balance Sheet,Queens Park Primary School
Brighton & Hove City Council,http://statistics.data.gov.uk/id/local-authority/00ML,Non I&E,BVANON,Balance Sheet GFND,9ZZ,Current Assets,ZAB,Short Term Debtors,ZABC,03/10/2012,PAY00510394,0.00,Balance Sheet,St Margarets CE School
Brighton & Hove City Council,http://statistics.data.gov.uk/id/local-authority/00ML,Non I&E,BVANON,Balance Sheet GFND,9ZZ,Current Assets,ZAB,Short Term Debtors,ZABC,03/10/2012,PAY00510395,0.00,Balance Sheet,Rudyard Kipling Primary School
Brighton & Hove City Council,http://statistics.data.gov.uk/id/local-authority/00ML,Adult Social Care,BVASOC,S Svcs - Older People Svcs,PPL,Customer n Client Receipts,M,Fees n Charges,MB,03/10/2012,PAY00510396,-3011.41,Revenue,Gracewell Healthcare 2 Limited
Brighton & Hove City Council,http://statistics.data.gov.uk/id/local-authority/00ML,Adult Social Care,BVASOC,S Svcs - Older People Svcs,PPL,Supplies and Services,E,Miscellaneous Expenses,EM,03/10/2012,PAY00510396,27.80,Revenue,Gracewell Healthcare 2 Limited
Brighton & Hove City Council,http://statistics.data.gov.uk/id/local-authority/00ML,Adult Social Care,BVASOC,S Svcs - Older People Svcs,PPL,Third Party Payments,F,Other Establishments,FH,03/10/2012,PAY00510396,5535.71,Revenue,Gracewell Healthcare 2 Limited
Brighton & Hove City Council,http://statistics.data.gov.uk/id/local-authority/00ML,Non I&E,BVANON,Balance Sheet GFND,9ZZ,Current Assets,ZAB,Short Term Debtors,ZABC,03/10/2012,PAY00510397,0.00,Balance Sheet,St Andrew`s CE Primary School
Brighton & Hove City Council,http://statistics.data.gov.uk/id/local-authority/00ML,Non I&E,BVANON,Balance Sheet GFND,9ZZ,Current Assets,ZAB,Short Term Debtors,ZABC,03/10/2012,PAY00510398,0.00,Balance Sheet,St Bartholomews CE Primary School
Brighton & Hove City Council,http://statistics.data.gov.uk/id/local-authority/00ML,Non I&E,BVANON,Balance Sheet GFND,9ZZ,Current Assets,ZAB,Short Term Debtors,ZABC,03/10/2012,PAY00510400,0.00,Balance Sheet,St Mark`s CE Primary School
Brighton & Hove City Council,http://statistics.data.gov.uk/id/local-authority/00ML,Non I&E,BVANON,Balance Sheet GFND,9ZZ,Current Assets,ZAB,Short Term Debtors,ZABC,03/10/2012,PAY00510401,0.00,Balance Sheet,St Martin`s CE Primary & Nursery School
Brighton & Hove City Council,http://statistics.data.gov.uk/id/local-authority/00ML,Non I&E,BVANON,Balance Sheet GFND,9ZZ,Current Assets,ZAB,Short Term Debtors,ZABC,03/10/2012,PAY00510402,0.00,Balance Sheet,St Mary`s Catholic Primary School
Brighton & Hove City Council,http://statistics.data.gov.uk/id/local-authority/00ML,Non I&E,BVANON,Balance Sheet GFND,9ZZ,Current Assets,ZAB,Short Term Debtors,ZABC,03/10/2012,PAY00510403,0.00,Balance Sheet,St Paul`s CE Primary School
Brighton & Hove City Council,http://statistics.data.gov.uk/id/local-authority/00ML,Non I&E,BVANON,Balance Sheet GFND,9ZZ,Current Assets,ZAB,Short Term Debtors,ZABC,03/10/2012,PAY00510404,0.00,Balance Sheet,Stanford Junior School
Brighton & Hove City Council,http://statistics.data.gov.uk/id/local-authority/00ML,Non I&E,BVANON,Balance Sheet GFND,9ZZ,Current Assets,ZAB,Short Term Debtors,ZABC,03/10/2012,PAY00510405,0.00,Balance Sheet,Dorothy Stringer School
Brighton & Hove City Council,http://statistics.data.gov.uk/id/local-authority/00ML,Non I&E,BVANON,Balance Sheet GFND,9ZZ,Current Assets,ZAB,Short Term Debtors,ZABC,03/10/2012,PAY00510406,0.00,Balance Sheet,West Hove Infant School
Brighton & Hove City Council,http://statistics.data.gov.uk/id/local-authority/00ML,Education Services,BVAEDU,Ed - EY - Central,EAE,Supplies and Services,E,Miscellaneous Expenses,EM,03/10/2012,PAY00510407,720.00,Revenue,Meadowview Pre-School
Brighton & Hove City Council,http://statistics.data.gov.uk/id/local-authority/00ML,Adult Social Care,BVASOC,S Svcs - Older People Svcs,PPL,Third Party Payments,F,Other Establishments,FH,03/10/2012,PAY00510409,2268.00,Revenue,"East Sussex, Brighton & Hove Crossroads"
Brighton & Hove City Council,http://statistics.data.gov.uk/id/local-authority/00ML,Adult Social Care,BVASOC,S Svcs - Older People Svcs,PPL,Third Party Payments,F,Other Establishments,FH,03/10/2012,PAY00510410,759.66,Revenue,Royal Masonic Benevolent Inst
Brighton & Hove City Council,http://statistics.data.gov.uk/id/local-authority/00ML,Education Services,BVAEDU,Ed - EY - Central,EAE,Supplies and Services,E,Miscellaneous Expenses,EM,03/10/2012,PAY00510411,675.00,Revenue,Puffin Pre-School Nursery
Brighton & Hove City Council,http://statistics.data.gov.uk/id/local-authority/00ML,Non I&E,BVANON,Balance Sheet GFND,9ZZ,Current Assets,ZAB,Short Term Debtors,ZABC,03/10/2012,PAY00510413,0.00,Balance Sheet,Woodingdean Primary School
Brighton & Hove City Council,http://statistics.data.gov.uk/id/local-authority/00ML,Adult Social Care,BVASOC,S Svcs - Older People Svcs,PPL,Indirect Employees,B,Misc Employee Costs,BP,03/10/2012,PAY00510414,941.52,Revenue,Optima Low Vision Services Ltd
Brighton & Hove City Council,http://statistics.data.gov.uk/id/local-authority/00ML,Non I&E,BVANON,Balance Sheet GFND,9ZZ,Current Assets,ZAB,Short Term Debtors,ZABC,03/10/2012,PAY00510415,0.00,Balance Sheet,Cardinal Newman Catholic School
Brighton & Hove City Council,http://statistics.data.gov.uk/id/local-authority/00ML,Non I&E,BVANON,Balance Sheet GFND,9ZZ,Current Assets,ZAB,Short Term Debtors,ZABC,03/10/2012,PAY00510416,0.00,Balance Sheet,Patcham House (Day Special) School
Brighton & Hove City Council,http://statistics.data.gov.uk/id/local-authority/00ML,Adult Social Care,BVASOC,S Svcs - Learning Disability,LDY,Third Party Payments,F,Other Establishments,FH,03/10/2012,PAY00510417,17092.24,Revenue,Aspirations Active
Brighton & Hove City Council,http://statistics.data.gov.uk/id/local-authority/00ML,Housing General Fund,BVAHOG,Hsing Welfare,HGW,Transfer Payments,G,Supporting People,GF,03/10/2012,PAY00510419,2500.00,Revenue,About Me Care & Support
Brighton & Hove City Council,http://statistics.data.gov.uk/id/local-authority/00ML,Non I&E,BVANON,Balance Sheet GFND,9ZZ,Current Assets,ZAB,Short Term Debtors,ZABC,03/10/2012,PAY00510420,0.00,Balance Sheet,Hangleton Infant School
Brighton & Hove City Council,http://statistics.data.gov.uk/id/local-authority/00ML,Non I&E,BVANON,Balance Sheet GFND,9ZZ,Current Assets,ZAB,Short Term Debtors,ZABC,03/10/2012,PAY00510421,0.00,Balance Sheet,Downs View School
Brighton & Hove City Council,http://statistics.data.gov.uk/id/local-authority/00ML,Non I&E,BVANON,Balance Sheet GFND,9ZZ,Current Assets,ZAB,Short Term Debtors,ZABC,03/10/2012,PAY00510422,0.00,Balance Sheet,West Hove Junior School
Brighton & Hove City Council,http://statistics.data.gov.uk/id/local-authority/00ML,Non I&E,BVANON,Balance Sheet GFND,9ZZ,Current Assets,ZAB,Short Term Debtors,ZABC,03/10/2012,PAY00510424,0.00,Balance Sheet,Hillside School
Brighton & Hove City Council,http://statistics.data.gov.uk/id/local-authority/00ML,Non I&E,BVANON,Collection Fund,7WW,Unalalysed-Income,9998,Level not required,NR5037,03/10/2012,PAY00510425,1349.22,Collection Fund,Brighton College Nursery & Pre-Prep School
Brighton & Hove City Council,http://statistics.data.gov.uk/id/local-authority/00ML,Non I&E,BVANON,Balance Sheet GFND,9ZZ,Current Assets,ZAB,Short Term Debtors,ZABC,03/10/2012,PAY00510426,0.00,Balance Sheet,Downs Junior School
Brighton & Hove City Council,http://statistics.data.gov.uk/id/local-authority/00ML,Non I&E,BVANON,Balance Sheet GFND,9ZZ,Current Assets,ZAB,Short Term Debtors,ZABC,03/10/2012,PAY00510427,0.00,Balance Sheet,Varndean School
Brighton & Hove City Council,http://statistics.data.gov.uk/id/local-authority/00ML,Non I&E,BVANON,Cap - Education Services,4ED,New Construction n Conversion,PB,Level not required,NR5026,03/10/2012,PAY00510428,64790.00,Capital,Rivercrest Ltd 
Brighton & Hove City Council,http://statistics.data.gov.uk/id/local-authority/00ML,Highways and Transportation,BVAHRT,Highways and Roads - Mntnce,HRM,Premises Related,C,Repair Maint n Alterations,CA,03/10/2012,PAY00510429,6140.81,Revenue,Siemens PLC
Brighton & Hove City Council,http://statistics.data.gov.uk/id/local-authority/00ML,Highways and Transportation,BVAHRT,Highways and Roads - Mntnce,HRM,Supplies and Services,E,Services,EF,03/10/2012,PAY00510429,2414.50,Revenue,Siemens PLC
Brighton & Hove City Council,http://statistics.data.gov.uk/id/local-authority/00ML,Cultural and Related Serv,BVACUL,Recreation and sport,REC,Premises Related,C,Repair Maint n Alterations,CA,03/10/2012,PAY00510430,834.60,Revenue,Ustigate Ltd
Brighton & Hove City Council,http://statistics.data.gov.uk/id/local-authority/00ML,Non I&E,BVANON,Cap - Education Services,4ED,New Construction n Conversion,PB,Level not required,NR5026,03/10/2012,PAY00510431,570.05,Capital,John Farrington & Co Ltd
Brighton & Hove City Council,http://statistics.data.gov.uk/id/local-authority/00ML,Non I&E,BVANON,Cap - Housing Services - GF,4HG,Capital Grants,PF,Level not required,NR5012,03/10/2012,PAY00510432,5220.00,Capital,Allen & Joy Ltd
Brighton & Hove City Council,http://statistics.data.gov.uk/id/local-authority/00ML,Adult Social Care,BVASOC,S Svcs - Learning Disability,LDY,Transport Related,D,Direct Transport Costs,DA,03/10/2012,PAY00510433,260.56,Revenue,Colas Limited
Brighton & Hove City Council,http://statistics.data.gov.uk/id/local-authority/00ML,Adult Social Care,BVASOC,S Svcs - Older People Svcs,PPL,Transport Related,D,Direct Transport Costs,DA,03/10/2012,PAY00510433,650.22,Revenue,Colas Limited
Brighton & Hove City Council,http://statistics.data.gov.uk/id/local-authority/00ML,Central Support and Overheads,BVACEN,Support Services (SSC),PPT,Transport Related,D,Direct Transport Costs,DA,03/10/2012,PAY00510433,-224.00,Revenue,Colas Limited
Brighton & Hove City Council,http://statistics.data.gov.uk/id/local-authority/00ML,Environment & Regulatory Serv,BVAERS,Management Services (DEC),MGT,Transport Related,D,Direct Transport Costs,DA,03/10/2012,PAY00510433,1496.14,Revenue,Colas Limited
Brighton & Hove City Council,http://statistics.data.gov.uk/id/local-authority/00ML,Environment & Regulatory Serv,BVAERS,Waste Management,WMT,Transport Related,D,Direct Transport Costs,DA,03/10/2012,PAY00510433,757.75,Revenue,Colas Limited
Brighton & Hove City Council,http://statistics.data.gov.uk/id/local-authority/00ML,Housing Revenue Account,BVAHOU,Hsing Management - HRA,HGM,Transport Related,D,Direct Transport Costs,DA,03/10/2012,PAY00510433,10.50,Revenue,Colas Limited
Brighton & Hove City Council,http://statistics.data.gov.uk/id/local-authority/00ML,Non I&E,BVANON,Collection Fund,7WW,Unalalysed-Income,9998,Level not required,NR5037,03/10/2012,PAY00510434,3393.93,Collection Fund,Edburton Contractors Ltd
Brighton & Hove City Council,http://statistics.data.gov.uk/id/local-authority/00ML,Central Support and Overheads,BVACEN,Support Services (SSC),PPT,Premises Related,C,Repair Maint n Alterations,CA,03/10/2012,PAY00510435,205.00,Revenue,P H Buxton & Sons Ltd
Brighton & Hove City Council,http://statistics.data.gov.uk/id/local-authority/00ML,Central Support and Overheads,BVACEN,Support Services (SSC),PPT,Supplies and Services,E,Miscellaneous Expenses,EM,03/10/2012,PAY00510435,5713.75,Revenue,P H Buxton & Sons Ltd
Brighton & Hove City Council,http://statistics.data.gov.uk/id/local-authority/00ML,Central Support and Overheads,BVACEN,Support Services (SSC),PPT,Premises Related,C,Repair Maint n Alterations,CA,03/10/2012,PAY00510436,5452.36,Revenue,P H Beck Ltd
Brighton & Hove City Council,http://statistics.data.gov.uk/id/local-authority/00ML,Cultural and Related Serv,BVACUL,Recreation and sport,REC,Premises Related,C,Repair Maint n Alterations,CA,03/10/2012,PAY00510436,55.00,Revenue,P H Beck Ltd
Brighton & Hove City Council,http://statistics.data.gov.uk/id/local-authority/00ML,Library Services,BVACUL,Library Service,LBR,Premises Related,C,Repair Maint n Alterations,CA,03/10/2012,PAY00510436,100.00,Revenue,P H Beck Ltd
Brighton & Hove City Council,http://statistics.data.gov.uk/id/local-authority/00ML,Non I&E,BVANON,Cap - Transport,4TR,New Construction n Conversion,PB,Level not required,NR5026,03/10/2012,PAY00510437,10696.09,Capital,R J Dance (Contractors) Ltd
Brighton & Hove City Council,http://statistics.data.gov.uk/id/local-authority/00ML,Central Support and Overheads,BVACEN,Support Services (SSC),PPT,Premises Related,C,Repair Maint n Alterations,CA,03/10/2012,PAY00510438,7294.36,Revenue,Techelec (Brighton) Ltd
Brighton & Hove City Council,http://statistics.data.gov.uk/id/local-authority/00ML,Education Services,BVAEDU,Ed - EY - Central,EAE,Premises Related,C,Repair Maint n Alterations,CA,03/10/2012,PAY00510438,214.55,Revenue,Techelec (Brighton) Ltd
Brighton & Hove City Council,http://statistics.data.gov.uk/id/local-authority/00ML,Non I&E,BVANON,Cap - Education Services,4ED,New Construction n Conversion,PB,Level not required,NR5026,03/10/2012,PAY00510438,4985.00,Capital,Techelec (Brighton) Ltd
Brighton & Hove City Council,http://statistics.data.gov.uk/id/local-authority/00ML,Non I&E,BVANON,Cap - Other Env Services,4EV,New Construction n Conversion,PB,Level not required,NR5026,03/10/2012,PAY00510439,91993.42,Capital,Westridge Construction Ltd
Brighton & Hove City Council,http://statistics.data.gov.uk/id/local-authority/00ML,Non I&E,BVANON,Cap - Transport,4TR,New Construction n Conversion,PB,Level not required,NR5026,03/10/2012,PAY00510439,333038.71,Capital,Westridge Construction Ltd
Brighton & Hove City Council,http://statistics.data.gov.uk/id/local-authority/00ML,Non I&E,BVANON,Cap - Transport,4TR,New Construction n Conversion,PB,Level not required,NR5026,03/10/2012,PAY00510440,6829.14,Capital,C J Thorne & Co Ltd
Brighton & Hove City Council,http://statistics.data.gov.uk/id/local-authority/00ML,Adult Social Care,BVASOC,S Svcs - Learning Disability,LDY,Customer n Client Receipts,M,Fees n Charges,MB,03/10/2012,PAY00510441,-12.00,Revenue,Mencap H & S Region 4
Brighton & Hove City Council,http://statistics.data.gov.uk/id/local-authority/00ML,Adult Social Care,BVASOC,S Svcs - Learning Disability,LDY,Third Party Payments,F,Other Establishments,FH,03/10/2012,PAY00510441,1533.76,Revenue,Mencap H & S Region 4
Brighton & Hove City Council,http://statistics.data.gov.uk/id/local-authority/00ML,Education Services,BVAEDU,Ed - Ed Other - Other,ENF,Premises Related,C,Repair Maint n Alterations,CA,03/10/2012,PAY00510442,116.00,Revenue,Catercraft Supplies Ltd
Brighton & Hove City Council,http://statistics.data.gov.uk/id/local-authority/00ML,Non I&E,BVANON,Cap - Education Services,4ED,New Construction n Conversion,PB,Level not required,NR5026,03/10/2012,PAY00510442,896.00,Capital,Catercraft Supplies Ltd
Brighton & Hove City Council,http://statistics.data.gov.uk/id/local-authority/00ML,Adult Social Care,BVASOC,S Svcs - Older People Svcs,PPL,Transport Related,D,Direct Transport Costs,DA,03/10/2012,PAY00510443,632.62,Revenue,Tate Bros Ltd
Brighton & Hove City Council,http://statistics.data.gov.uk/id/local-authority/00ML,Central Support and Overheads,BVACEN,Support Services (SSC),PPT,Supplies and Services,E,Communications n Computing,EH,03/10/2012,PAY00510444,1540.42,Revenue,Specialist Computer Centres Plc
Brighton & Hove City Council,http://statistics.data.gov.uk/id/local-authority/00ML,Children�s Social Care,BVACSC,Child Srvcs - Com & Scl Work,FCW,Supplies and Services,E,Communications n Computing,EH,03/10/2012,PAY00510444,17.68,Revenue,Specialist Computer Centres Plc
Brighton & Hove City Council,http://statistics.data.gov.uk/id/local-authority/00ML,Central Support and Overheads,BVACEN,Support Services (SSC),PPT,Transport Related,D,Public Transport,DD,03/10/2012,PAY00510445,1767.00,Revenue,Brighton & Hove Radio Cabs Ltd
Brighton & Hove City Council,http://statistics.data.gov.uk/id/local-authority/00ML,Adult Social Care,BVASOC,S Svcs - Older People Svcs,PPL,Indirect Employees,B,Misc Employee Costs,BP,03/10/2012,PAY00510446,155.00,Revenue,Brighton & Hove Bus & Coach Co Ltd
Brighton & Hove City Council,http://statistics.data.gov.uk/id/local-authority/00ML,Children�s Social Care,BVACSC,Child Srvcs - Fostering,FLF,Third Party Payments,F,Other Establishments,FH,03/10/2012,PAY00510446,1454.60,Revenue,Brighton & Hove Bus & Coach Co Ltd
Brighton & Hove City Council,http://statistics.data.gov.uk/id/local-authority/00ML,Children�s Social Care,BVACSC,Child Srvcs - Leaving Care,FAL,Transfer Payments,G,Other Transfer Payments,GD,03/10/2012,PAY00510446,236.55,Revenue,Brighton & Hove Bus & Coach Co Ltd
Brighton & Hove City Council,http://statistics.data.gov.uk/id/local-authority/00ML,Environment & Regulatory Serv,BVAERS,Environmental Health,EVH,Transport Related,D,Contract Hire n Operating Leas,DB,03/10/2012,PAY00510446,1116.12,Revenue,Brighton & Hove Bus & Coach Co Ltd
Brighton & Hove City Council,http://statistics.data.gov.uk/id/local-authority/00ML,Environment & Regulatory Serv,BVAERS,Environmental Health,EVH,Transport Related,D,Direct Transport Costs,DA,03/10/2012,PAY00510446,1580.05,Revenue,Brighton & Hove Bus & Coach Co Ltd
Brighton & Hove City Council,http://statistics.data.gov.uk/id/local-authority/00ML,Highways and Transportation,BVAHRT,Public transport,PTR,Transport Related,D,Public Transport,DD,03/10/2012,PAY00510446,741487.50,Revenue,Brighton & Hove Bus & Coach Co Ltd
Brighton & Hove City Council,http://statistics.data.gov.uk/id/local-authority/00ML,Adult Social Care,BVASOC,S Svcs - Learning Disability,LDY,Premises Related,C,Water Services,CE,03/10/2012,PAY00510449,1049.36,Revenue,Southern Water Services Ltd
Brighton & Hove City Council,http://statistics.data.gov.uk/id/local-authority/00ML,Adult Social Care,BVASOC,S Svcs - Older People Svcs,PPL,Premises Related,C,Water Services,CE,03/10/2012,PAY00510449,1991.39,Revenue,Southern Water Services Ltd
Brighton & Hove City Council,http://statistics.data.gov.uk/id/local-authority/00ML,Central Support and Overheads,BVACEN,Support Services (SSC),PPT,Premises Related,C,Water Services,CE,03/10/2012,PAY00510449,9847.59,Revenue,Southern Water Services Ltd
Brighton & Hove City Council,http://statistics.data.gov.uk/id/local-authority/00ML,Central Support and Overheads,BVACEN,Trading Services,TRD,Premises Related,C,Water Services,CE,03/10/2012,PAY00510449,740.07,Revenue,Southern Water Services Ltd
Brighton & Hove City Council,http://statistics.data.gov.uk/id/local-authority/00ML,Cultural and Related Serv,BVACUL,Culture & Heritage,CHG,Premises Related,C,Water Services,CE,03/10/2012,PAY00510449,4320.91,Revenue,Southern Water Services Ltd
Brighton & Hove City Council,http://statistics.data.gov.uk/id/local-authority/00ML,Cultural and Related Serv,BVACUL,Highways and Roads - Mntnce,HRM,Premises Related,C,Water Services,CE,03/10/2012,PAY00510449,192.31,Revenue,Southern Water Services Ltd
Brighton & Hove City Council,http://statistics.data.gov.uk/id/local-authority/00ML,Cultural and Related Serv,BVACUL,Management Services (DEC),MGT,Premises Related,C,Water Services,CE,03/10/2012,PAY00510449,88.27,Revenue,Southern Water Services Ltd
Brighton & Hove City Council,http://statistics.data.gov.uk/id/local-authority/00ML,Cultural and Related Serv,BVACUL,Open Spaces,PEN,Premises Related,C,Water Services,CE,03/10/2012,PAY00510449,1364.41,Revenue,Southern Water Services Ltd
Brighton & Hove City Council,http://statistics.data.gov.uk/id/local-authority/00ML,Cultural and Related Serv,BVACUL,Recreation and sport,REC,Premises Related,C,Water Services,CE,03/10/2012,PAY00510449,1188.90,Revenue,Southern Water Services Ltd
Brighton & Hove City Council,http://statistics.data.gov.uk/id/local-authority/00ML,Environment & Regulatory Serv,BVAERS,Community Safety,CMY,Premises Related,C,Water Services,CE,03/10/2012,PAY00510449,231.22,Revenue,Southern Water Services Ltd
Brighton & Hove City Council,http://statistics.data.gov.uk/id/local-authority/00ML,Environment & Regulatory Serv,BVAERS,Environmental Health,EVH,Premises Related,C,Water Services,CE,03/10/2012,PAY00510449,15231.75,Revenue,Southern Water Services Ltd
Brighton & Hove City Council,http://statistics.data.gov.uk/id/local-authority/00ML,Highways and Transportation,BVAHRT,Parking Services,PRK,Premises Related,C,Water Services,CE,03/10/2012,PAY00510449,205.43,Revenue,Southern Water Services Ltd
Brighton & Hove City Council,http://statistics.data.gov.uk/id/local-authority/00ML,Housing General Fund,BVAHOG,Homelessness,HML,Premises Related,C,Water Services,CE,03/10/2012,PAY00510449,5928.11,Revenue,Southern Water Services Ltd
Brighton & Hove City Council,http://statistics.data.gov.uk/id/local-authority/00ML,Housing Revenue Account,BVAHOU,Hsing Management - HRA,HGM,Premises Related,C,Water Services,CE,03/10/2012,PAY00510449,448.78,Revenue,Southern Water Services Ltd
Brighton & Hove City Council,http://statistics.data.gov.uk/id/local-authority/00ML,Library Services,BVACUL,Library Service,LBR,Premises Related,C,Water Services,CE,03/10/2012,PAY00510449,357.65,Revenue,Southern Water Services Ltd
Brighton & Hove City Council,http://statistics.data.gov.uk/id/local-authority/00ML,Cultural and Related Serv,BVACUL,Recreation and sport,REC,Premises Related,C,Repair Maint n Alterations,CA,03/10/2012,PAY00510450,365.00,Revenue,Thomas Locksmiths Ltd
Brighton & Hove City Council,http://statistics.data.gov.uk/id/local-authority/00ML,Housing Revenue Account,BVAHOU,Hsing Management - HRA,HGM,Supplies and Services,E,Equip't Furniture n Materials,EA,03/10/2012,PAY00510450,216.67,Revenue,Thomas Locksmiths Ltd
Brighton & Hove City Council,http://statistics.data.gov.uk/id/local-authority/00ML,Adult Social Care,BVASOC,S Svcs - Older People Svcs,PPL,Customer n Client Receipts,M,Fees n Charges,MB,03/10/2012,PAY00510452,-446.52,Revenue,Cavell House Care Home
Brighton & Hove City Council,http://statistics.data.gov.uk/id/local-authority/00ML,Adult Social Care,BVASOC,S Svcs - Older People Svcs,PPL,Third Party Payments,F,Other Establishments,FH,03/10/2012,PAY00510452,2266.16,Revenue,Cavell House Care Home
Brighton & Hove City Council,http://statistics.data.gov.uk/id/local-authority/00ML,Non I&E,BVANON,Collection Fund,7WW,Unalalysed-Income,9998,Level not required,NR5037,03/10/2012,PAY00510453,5874.48,Collection Fund,Mercedes Benz of Brighton Ltd
Brighton & Hove City Council,http://statistics.data.gov.uk/id/local-authority/00ML,Non I&E,BVANON,Collection Fund,7WW,Unalalysed-Income,9998,Level not required,NR5037,03/10/2012,PAY00510454,5176.64,Collection Fund,Mazars LLP
Brighton & Hove City Council,http://statistics.data.gov.uk/id/local-authority/00ML,Housing General Fund,BVAHOG,Homelessness,HML,Premises Related,C,Rents Payable,CC,03/10/2012,PAY00510455,790.00,Revenue,Priors Letting Agency
Brighton & Hove City Council,http://statistics.data.gov.uk/id/local-authority/00ML,Housing General Fund,BVAHOG,Homelessness,HML,Premises Related,C,Rents Payable,CC,03/10/2012,PAY00510456,765.00,Revenue,Payment to Individual
Brighton & Hove City Council,http://statistics.data.gov.uk/id/local-authority/00ML,Cultural and Related Serv,BVACUL,Culture & Heritage,CHG,Supplies and Services,E,Services,EF,03/10/2012,PAY00510458,980.00,Revenue,Payment to Individual
Brighton & Hove City Council,http://statistics.data.gov.uk/id/local-authority/00ML,Housing General Fund,BVAHOG,Homelessness,HML,Premises Related,C,Rents Payable,CC,03/10/2012,PAY00510459,800.00,Revenue,Payment to Individual
Brighton & Hove City Council,http://statistics.data.gov.uk/id/local-authority/00ML,Housing General Fund,BVAHOG,Homelessness,HML,Premises Related,C,Rents Payable,CC,03/10/2012,PAY00510461,2400.00,Revenue,First Charterhouse Enterprises Ltd
Brighton & Hove City Council,http://statistics.data.gov.uk/id/local-authority/00ML,Housing General Fund,BVAHOG,Homelessness,HML,Premises Related,C,Rents Payable,CC,03/10/2012,PAY00510465,850.00,Revenue,Payment to Individual
Brighton & Hove City Council,http://statistics.data.gov.uk/id/local-authority/00ML,Housing Revenue Account,BVAHOU,Hsing Management - HRA,HGM,Supplies and Services,E,Communications n Computing,EH,03/10/2012,PAY00510466,1280.00,Revenue,Northgate Information Solutions UK Ltd
Brighton & Hove City Council,http://statistics.data.gov.uk/id/local-authority/00ML,Housing General Fund,BVAHOG,Homelessness,HML,Premises Related,C,Rents Payable,CC,03/10/2012,PAY00510469,950.00,Revenue,Payment to Individual
Brighton & Hove City Council,http://statistics.data.gov.uk/id/local-authority/00ML,Planning and Development,BVAPLA,Economic Development,ECD,Supplies and Services,E,Grants n Subscriptions,EK,03/10/2012,PAY00510472,5000.00,Revenue,Community Assoc-Portsalde South
Brighton & Hove City Council,http://statistics.data.gov.uk/id/local-authority/00ML,Housing General Fund,BVAHOG,Homelessness,HML,Premises Related,C,Rents Payable,CC,03/10/2012,PAY00510473,870.00,Revenue,Payment to Individual
Brighton & Hove City Council,http://statistics.data.gov.uk/id/local-authority/00ML,Housing General Fund,BVAHOG,Homelessness,HML,Premises Related,C,Rents Payable,CC,03/10/2012,PAY00510474,805.00,Revenue,Payment to Individual
Brighton & Hove City Council,http://statistics.data.gov.uk/id/local-authority/00ML,Housing General Fund,BVAHOG,Homelessness,HML,Premises Related,C,Rents Payable,CC,03/10/2012,PAY00510475,760.00,Revenue,Sareen Properties & Co
Brighton & Hove City Council,http://statistics.data.gov.uk/id/local-authority/00ML,Housing General Fund,BVAHOG,Homelessness,HML,Premises Related,C,Rents Payable,CC,03/10/2012,PAY00510476,1650.00,Revenue,Payment to Individual
Brighton & Hove City Council,http://statistics.data.gov.uk/id/local-authority/00ML,Cultural and Related Serv,BVACUL,Recreation and sport,REC,Supplies and Services,E,Miscellaneous Expenses,EM,03/10/2012,PAY00510480,5000.00,Revenue,Murray Media Ltd
Brighton & Hove City Council,http://statistics.data.gov.uk/id/local-authority/00ML,Housing General Fund,BVAHOG,Homelessness,HML,Premises Related,C,Rents Payable,CC,03/10/2012,PAY00510484,790.00,Revenue,Payment to Individual
Brighton & Hove City Council,http://statistics.data.gov.uk/id/local-authority/00ML,Cultural and Related Serv,BVACUL,Culture & Heritage,CHG,Supplies and Services,E,Services,EF,03/10/2012,PAY00510485,966.00,Revenue,Payment to Individual
Brighton & Hove City Council,http://statistics.data.gov.uk/id/local-authority/00ML,Housing General Fund,BVAHOG,Homelessness,HML,Premises Related,C,Rents Payable,CC,03/10/2012,PAY00510494,1000.00,Revenue,Eagle Estates Ltd
Brighton & Hove City Council,http://statistics.data.gov.uk/id/local-authority/00ML,Cultural and Related Serv,BVACUL,Tourism,TRM,Supplies and Services,E,Miscellaneous Expenses,EM,03/10/2012,PAY00510497,546.00,Revenue,Snooze Guesthouse
Brighton & Hove City Council,http://statistics.data.gov.uk/id/local-authority/00ML,Housing General Fund,BVAHOG,Homelessness,HML,Premises Related,C,Rents Payable,CC,03/10/2012,PAY00510498,800.00,Revenue,Geneva Investment Group Ltd
Brighton & Hove City Council,http://statistics.data.gov.uk/id/local-authority/00ML,Housing General Fund,BVAHOG,Homelessness,HML,Premises Related,C,Rents Payable,CC,03/10/2012,PAY00510499,520.00,Revenue,C V Howard Investments Ltd
Brighton & Hove City Council,http://statistics.data.gov.uk/id/local-authority/00ML,Library Services,BVACUL,Library Service,LBR,Indirect Employees,B,Training,BM,03/10/2012,PAY00510500,590.00,Revenue,Payment to Individual
Brighton & Hove City Council,http://statistics.data.gov.uk/id/local-authority/00ML,Education Services,BVAEDU,Ed - EY - Central,EAE,Supplies and Services,E,Catering,EB,03/10/2012,PAY00510503,1296.70,Revenue,Snickle Doodle Cafe
Brighton & Hove City Council,http://statistics.data.gov.uk/id/local-authority/00ML,Housing General Fund,BVAHOG,Homelessness,HML,Premises Related,C,Rents Payable,CC,03/10/2012,PAY00510504,850.00,Revenue,Payment to Individual
Brighton & Hove City Council,http://statistics.data.gov.uk/id/local-authority/00ML,Housing General Fund,BVAHOG,Homelessness,HML,Premises Related,C,Rents Payable,CC,03/10/2012,PAY00510505,1275.00,Revenue,Payment to Individual
Brighton & Hove City Council,http://statistics.data.gov.uk/id/local-authority/00ML,Housing General Fund,BVAHOG,Homelessness,HML,Premises Related,C,Rents Payable,CC,03/10/2012,PAY00510509,740.00,Revenue,Payment to Individual
Brighton & Hove City Council,http://statistics.data.gov.uk/id/local-authority/00ML,Central Support and Overheads,BVACEN,Support Services (SSC),PPT,Premises Related,C,Repair Maint n Alterations,CA,03/10/2012,PAY00510510,3379.00,Revenue,Heritage Testing Limited
Brighton & Hove City Council,http://statistics.data.gov.uk/id/local-authority/00ML,Housing General Fund,BVAHOG,Homelessness,HML,Premises Related,C,Rents Payable,CC,03/10/2012,PAY00510512,775.00,Revenue,Payment to Individual
Brighton & Hove City Council,http://statistics.data.gov.uk/id/local-authority/00ML,Housing General Fund,BVAHOG,Homelessness,HML,Supplies and Services,E,Miscellaneous Expenses,EM,03/10/2012,PAY00510519,2436.80,Revenue,Bishop`s Move
Brighton & Hove City Council,http://statistics.data.gov.uk/id/local-authority/00ML,Planning and Development,BVAPLA,Economic Development,ECD,Supplies and Services,E,Miscellaneous Expenses,EM,03/10/2012,PAY00510520,1000.00,Revenue,Brighton & Hove Food Partnership
Brighton & Hove City Council,http://statistics.data.gov.uk/id/local-authority/00ML,Housing General Fund,BVAHOG,Homelessness,HML,Premises Related,C,Rents Payable,CC,03/10/2012,PAY00510522,1050.00,Revenue,Payment to Individual
Brighton & Hove City Council,http://statistics.data.gov.uk/id/local-authority/00ML,Housing General Fund,BVAHOG,Homelessness,HML,Premises Related,C,Rents Payable,CC,03/10/2012,PAY00510525,770.00,Revenue,Payment to Individual
Brighton & Hove City Council,http://statistics.data.gov.uk/id/local-authority/00ML,Environment & Regulatory Serv,BVAERS,Management Services (DEC),MGT,Transport Related,D,Direct Transport Costs,DA,03/10/2012,PAY00510528,562.95,Revenue,Lifestyle Ford Ltd
Brighton & Hove City Council,http://statistics.data.gov.uk/id/local-authority/00ML,Housing General Fund,BVAHOG,Homelessness,HML,Premises Related,C,Rents Payable,CC,03/10/2012,PAY00510530,1220.00,Revenue,Payment to Individual
Brighton & Hove City Council,http://statistics.data.gov.uk/id/local-authority/00ML,Housing General Fund,BVAHOG,Homelessness,HML,Premises Related,C,Rents Payable,CC,03/10/2012,PAY00510533,1120.00,Revenue,Payment to Individual
Brighton & Hove City Council,http://statistics.data.gov.uk/id/local-authority/00ML,Planning and Development,BVAPLA,Economic Development,ECD,Supplies and Services,E,Miscellaneous Expenses,EM,03/10/2012,PAY00510536,1000.00,Revenue,Payment to Individual
Brighton & Hove City Council,http://statistics.data.gov.uk/id/local-authority/00ML,Housing General Fund,BVAHOG,Homelessness,HML,Premises Related,C,Rents Payable,CC,03/10/2012,PAY00510537,800.00,Revenue,Payment to Individual
Brighton & Hove City Council,http://statistics.data.gov.uk/id/local-authority/00ML,Central Support and Overheads,BVACEN,Support Services (SSC),PPT,Supplies and Services,E,Services,EF,03/10/2012,PAY00510538,5202.00,Revenue,Croydon Council
Brighton & Hove City Council,http://statistics.data.gov.uk/id/local-authority/00ML,Housing General Fund,BVAHOG,Homelessness,HML,Premises Related,C,Rents Payable,CC,03/10/2012,PAY00510541,975.00,Revenue,CRK Housing
Brighton & Hove City Council,http://statistics.data.gov.uk/id/local-authority/00ML,Housing General Fund,BVAHOG,Homelessness,HML,Premises Related,C,Rents Payable,CC,03/10/2012,PAY00510546,850.00,Revenue,Payment to Individual
Brighton & Hove City Council,http://statistics.data.gov.uk/id/local-authority/00ML,Adult Social Care,BVASOC,S Svcs - Asylum Seekers,AYL,Third Party Payments,F,Other Establishments,FH,03/10/2012,PAY00510547,1772.12,Revenue,Filsham Lodge 
Brighton & Hove City Council,http://statistics.data.gov.uk/id/local-authority/00ML,Adult Social Care,BVASOC,S Svcs - Older People Svcs,PPL,Customer n Client Receipts,M,Fees n Charges,MB,03/10/2012,PAY00510547,-1151.44,Revenue,Filsham Lodge 
Brighton & Hove City Council,http://statistics.data.gov.uk/id/local-authority/00ML,Adult Social Care,BVASOC,S Svcs - Older People Svcs,PPL,Third Party Payments,F,Other Establishments,FH,03/10/2012,PAY00510547,3650.64,Revenue,Filsham Lodge 
Brighton & Hove City Council,http://statistics.data.gov.uk/id/local-authority/00ML,Central Support and Overheads,BVACEN,Support Services (SSC),PPT,Supplies and Services,E,Miscellaneous Expenses,EM,03/10/2012,PAY00510548,2554.00,Revenue,Asbestos Damage Limitation Limited
Brighton & Hove City Council,http://statistics.data.gov.uk/id/local-authority/00ML,Housing General Fund,BVAHOG,Homelessness,HML,Premises Related,C,Rents Payable,CC,03/10/2012,PAY00510549,825.00,Revenue,Payment to Individual
Brighton & Hove City Council,http://statistics.data.gov.uk/id/local-authority/00ML,Housing General Fund,BVAHOG,Hsing Welfare,HGW,Transfer Payments,G,Supporting People,GF,03/10/2012,PAY00510550,671.34,Revenue,Saxon Weald
Brighton & Hove City Council,http://statistics.data.gov.uk/id/local-authority/00ML,Housing General Fund,BVAHOG,Homelessness,HML,Premises Related,C,Rents Payable,CC,03/10/2012,PAY00510553,1600.00,Revenue,Payment to Individual
Brighton & Hove City Council,http://statistics.data.gov.uk/id/local-authority/00ML,Highways and Transportation,BVAHRT,Transport plan policy strategy,TPP,Supplies and Services,E,Equip't Furniture n Materials,EA,03/10/2012,PAY00510555,3135.00,Revenue,Red Zulu Limited
Brighton & Hove City Council,http://statistics.data.gov.uk/id/local-authority/00ML,Non I&E,BVANON,Cap - Libs Culture & Hertage,4LH,New Construction n Conversion,PB,Level not required,NR5026,03/10/2012,PAY00510557,10498.00,Capital,Capita Symonds Ltd
Brighton & Hove City Council,http://statistics.data.gov.uk/id/local-authority/00ML,Housing General Fund,BVAHOG,Homelessness,HML,Premises Related,C,Rents Payable,CC,03/10/2012,PAY00510559,800.00,Revenue,Payment to Individual
Brighton & Hove City Council,http://statistics.data.gov.uk/id/local-authority/00ML,Housing General Fund,BVAHOG,Homelessness,HML,Premises Related,C,Rents Payable,CC,03/10/2012,PAY00510560,775.00,Revenue,Payment to Individual
Brighton & Hove City Council,http://statistics.data.gov.uk/id/local-authority/00ML,Housing General Fund,BVAHOG,Homelessness,HML,Premises Related,C,Rents Payable,CC,03/10/2012,PAY00510561,1765.00,Revenue,Payment to Individual
Brighton & Hove City Council,http://statistics.data.gov.uk/id/local-authority/00ML,Adult Social Care,BVASOC,S Svcs - Learning Disability,LDY,Third Party Payments,F,Other Establishments,FH,03/10/2012,PAY00510564,12570.29,Revenue,Arundel Domiciliary Care Services
Brighton & Hove City Council,http://statistics.data.gov.uk/id/local-authority/00ML,Housing Revenue Account,BVAHOU,Hsing Management - HRA,HGM,Premises Related,C,Cleaning n Domestic Supps,CH,03/10/2012,PAY00510565,656.00,Revenue,RJN Chemicals Ltd
Brighton & Hove City Council,http://statistics.data.gov.uk/id/local-authority/00ML,Adult Social Care,BVASOC,S Svcs - Physical Disability,PDY,Third Party Payments,F,Other Establishments,FH,03/10/2012,PAY00510566,4897.50,Revenue,Action for Blind People
Brighton & Hove City Council,http://statistics.data.gov.uk/id/local-authority/00ML,Housing General Fund,BVAHOG,Homelessness,HML,Premises Related,C,Rents Payable,CC,03/10/2012,PAY00510568,650.00,Revenue,Payment to Individual
Brighton & Hove City Council,http://statistics.data.gov.uk/id/local-authority/00ML,Housing General Fund,BVAHOG,Homelessness,HML,Premises Related,C,Rents Payable,CC,03/10/2012,PAY00510569,750.00,Revenue,Payment to Individual
Brighton & Hove City Council,http://statistics.data.gov.uk/id/local-authority/00ML,Non I&E,BVANON,Cap - Transport,4TR,New Construction n Conversion,PB,Level not required,NR5026,03/10/2012,PAY00510574,535.80,Capital,Party on the Grass
Brighton & Hove City Council,http://statistics.data.gov.uk/id/local-authority/00ML,Children�s Social Care,BVACSC,Child Srvcs - Other,FAX,Supplies and Services,E,Services,EF,03/10/2012,PAY00510575,5780.55,Revenue,Alan Bedford Consulting
Brighton & Hove City Council,http://statistics.data.gov.uk/id/local-authority/00ML,Planning and Development,BVAPLA,Economic Development,ECD,Supplies and Services,E,Grants n Subscriptions,EK,03/10/2012,PAY00510576,2000.00,Revenue,Livestock
Brighton & Hove City Council,http://statistics.data.gov.uk/id/local-authority/00ML,Housing General Fund,BVAHOG,Homelessness,HML,Premises Related,C,Rents Payable,CC,03/10/2012,PAY00510577,725.00,Revenue,Payment to Individual
Brighton & Hove City Council,http://statistics.data.gov.uk/id/local-authority/00ML,Housing General Fund,BVAHOG,Homelessness,HML,Premises Related,C,Rents Payable,CC,03/10/2012,PAY00510578,1025.00,Revenue,Payment to Individual
Brighton & Hove City Council,http://statistics.data.gov.uk/id/local-authority/00ML,Housing General Fund,BVAHOG,Homelessness,HML,Premises Related,C,Rents Payable,CC,03/10/2012,PAY00510581,825.00,Revenue,Payment to Individual
Brighton & Hove City Council,http://statistics.data.gov.uk/id/local-authority/00ML,Housing General Fund,BVAHOG,Homelessness,HML,Premises Related,C,Rents Payable,CC,03/10/2012,PAY00510582,1250.00,Revenue,Payment to Individual
Brighton & Hove City Council,http://statistics.data.gov.uk/id/local-authority/00ML,Housing General Fund,BVAHOG,Homelessness,HML,Premises Related,C,Rents Payable,CC,03/10/2012,PAY00510586,750.00,Revenue,Payment to Individual
Brighton & Hove City Council,http://statistics.data.gov.uk/id/local-authority/00ML,Housing General Fund,BVAHOG,Homelessness,HML,Premises Related,C,Rents Payable,CC,03/10/2012,PAY00510587,1120.00,Revenue,Payment to Individual
Brighton & Hove City Council,http://statistics.data.gov.uk/id/local-authority/00ML,Housing General Fund,BVAHOG,Homelessness,HML,Premises Related,C,Rents Payable,CC,03/10/2012,PAY00510588,1250.00,Revenue,Payment to Individual
Brighton & Hove City Council,http://statistics.data.gov.uk/id/local-authority/00ML,Housing General Fund,BVAHOG,Homelessness,HML,Premises Related,C,Rents Payable,CC,03/10/2012,PAY00510589,825.00,Revenue,L B Longley Investments Limited (1)
Brighton & Hove City Council,http://statistics.data.gov.uk/id/local-authority/00ML,Non I&E,BVANON,Balance Sheet GFND,9ZZ,Current Assets,ZAB,Short Term Debtors,ZABC,03/10/2012,PAY00510591,0.00,Balance Sheet,St Lukes Primary School
Brighton & Hove City Council,http://statistics.data.gov.uk/id/local-authority/00ML,Housing General Fund,BVAHOG,Homelessness,HML,Premises Related,C,Rents Payable,CC,03/10/2012,PAY00510597,760.00,Revenue,Payment to Individual
Brighton & Hove City Council,http://statistics.data.gov.uk/id/local-authority/00ML,Housing General Fund,BVAHOG,Homelessness,HML,Premises Related,C,Rents Payable,CC,03/10/2012,PAY00510599,800.00,Revenue,Payment to Individual
Brighton & Hove City Council,http://statistics.data.gov.uk/id/local-authority/00ML,Central Support and Overheads,BVACEN,Support Services (SSC),PPT,Indirect Employees,B,Advertising,BA,03/10/2012,PAY00510601,16752.30,Revenue,Gatenby Sanderson Ltd
Brighton & Hove City Council,http://statistics.data.gov.uk/id/local-authority/00ML,Housing General Fund,BVAHOG,Homelessness,HML,Premises Related,C,Rents Payable,CC,03/10/2012,PAY00510603,850.00,Revenue,Payment to Individual
Brighton & Hove City Council,http://statistics.data.gov.uk/id/local-authority/00ML,Housing General Fund,BVAHOG,Homelessness,HML,Premises Related,C,Rents Payable,CC,03/10/2012,PAY00510606,849.00,Revenue,Payment to Individual
Brighton & Hove City Council,http://statistics.data.gov.uk/id/local-authority/00ML,Central Support and Overheads,BVACEN,Support Services (SSC),PPT,Supplies and Services,E,Services,EF,03/10/2012,PAY00510608,3000.00,Revenue,Payment to Individual
Brighton & Hove City Council,http://statistics.data.gov.uk/id/local-authority/00ML,Housing General Fund,BVAHOG,Homelessness,HML,Premises Related,C,Rents Payable,CC,03/10/2012,PAY00510609,880.00,Revenue,Payment to Individual
Brighton & Hove City Council,http://statistics.data.gov.uk/id/local-authority/00ML,Housing General Fund,BVAHOG,Homelessness,HML,Premises Related,C,Rents Payable,CC,03/10/2012,PAY00510613,1179.00,Revenue,Payment to Individual
Brighton & Hove City Council,http://statistics.data.gov.uk/id/local-authority/00ML,Housing General Fund,BVAHOG,Homelessness,HML,Premises Related,C,Rents Payable,CC,03/10/2012,PAY00510614,900.00,Revenue,Payment to Individual
Brighton & Hove City Council,http://statistics.data.gov.uk/id/local-authority/00ML,Central Support and Overheads,BVACEN,Support Services (SSC),PPT,Premises Related,C,Repair Maint n Alterations,CA,03/10/2012,PAY00510615,3086.93,Revenue,Hertel Solutions Ltd
Brighton & Hove City Council,http://statistics.data.gov.uk/id/local-authority/00ML,Central Support and Overheads,BVACEN,Support Services (SSC),PPT,Indirect Employees,B,Training,BM,03/10/2012,PAY00510620,1040.00,Revenue,Redactive Events Ltd
Brighton & Hove City Council,http://statistics.data.gov.uk/id/local-authority/00ML,Housing General Fund,BVAHOG,Homelessness,HML,Premises Related,C,Rents Payable,CC,03/10/2012,PAY00510628,1100.00,Revenue,Payment to Individual
Brighton & Hove City Council,http://statistics.data.gov.uk/id/local-authority/00ML,Cultural and Related Serv,BVACUL,Culture & Heritage,CHG,Supplies and Services,E,Services,EF,03/10/2012,PAY00510630,510.00,Revenue,Association for Heritage Interpretation
Brighton & Hove City Council,http://statistics.data.gov.uk/id/local-authority/00ML,Housing General Fund,BVAHOG,Homelessness,HML,Premises Related,C,Rents Payable,CC,03/10/2012,PAY00510631,750.00,Revenue,Payment to Individual
Brighton & Hove City Council,http://statistics.data.gov.uk/id/local-authority/00ML,Non I&E,BVANON,Cap - Education Services,4ED,New Construction n Conversion,PB,Level not required,NR5026,03/10/2012,PAY00510637,1320.00,Capital,The Civil Engineering Practice Ltd
Brighton & Hove City Council,http://statistics.data.gov.uk/id/local-authority/00ML,Cultural and Related Serv,BVACUL,Recreation and sport,REC,Supplies and Services,E,Services,EF,03/10/2012,PAY00510639,6900.00,Revenue,Brighton and Hove 10:10 CIC
Brighton & Hove City Council,http://statistics.data.gov.uk/id/local-authority/00ML,Housing General Fund,BVAHOG,Homelessness,HML,Premises Related,C,Rents Payable,CC,03/10/2012,PAY00510642,1950.00,Revenue,Payment to Individual
Brighton & Hove City Council,http://statistics.data.gov.uk/id/local-authority/00ML,Non I&E,BVANON,Collection Fund,7WW,Unalalysed-Income,9998,Level not required,NR5037,03/10/2012,PAY00510644,1100.00,Collection Fund,Church Events Ltd
Brighton & Hove City Council,http://statistics.data.gov.uk/id/local-authority/00ML,Adult Social Care,BVASOC,S Svcs - Older People Svcs,PPL,Customer n Client Receipts,M,Fees n Charges,MB,03/10/2012,PAY00510645,-56.37,Revenue,Hazelgrove Nursing Home
Brighton & Hove City Council,http://statistics.data.gov.uk/id/local-authority/00ML,Adult Social Care,BVASOC,S Svcs - Older People Svcs,PPL,Third Party Payments,F,Other Establishments,FH,03/10/2012,PAY00510645,618.60,Revenue,Hazelgrove Nursing Home
Brighton & Hove City Council,http://statistics.data.gov.uk/id/local-authority/00ML,Adult Social Care,BVASOC,S Svcs - Older People Svcs,PPL,Customer n Client Receipts,M,Fees n Charges,MB,03/10/2012,PAY00510647,-641.72,Revenue,S E S Care Homes Ltd
Brighton & Hove City Council,http://statistics.data.gov.uk/id/local-authority/00ML,Adult Social Care,BVASOC,S Svcs - Older People Svcs,PPL,Third Party Payments,F,Other Establishments,FH,03/10/2012,PAY00510647,1489.76,Revenue,S E S Care Homes Ltd
Brighton & Hove City Council,http://statistics.data.gov.uk/id/local-authority/00ML,Adult Social Care,BVASOC,S Svcs - Older People Svcs,PPL,Supplies and Services,E,Miscellaneous Expenses,EM,03/10/2012,PAY00510649,698.74,Revenue,Payment to Individual
Brighton & Hove City Council,http://statistics.data.gov.uk/id/local-authority/00ML,Education Services,BVAEDU,Ed - EY - Central,EAE,Supplies and Services,E,Grants n Subscriptions,EK,03/10/2012,PAY00510656,1785.00,Revenue,Payment to Individual
Brighton & Hove City Council,http://statistics.data.gov.uk/id/local-authority/00ML,Planning and Development,BVAPLA,Economic Development,ECD,Supplies and Services,E,Grants n Subscriptions,EK,03/10/2012,PAY00510660,2000.00,Revenue,The Mens Network
Brighton & Hove City Council,http://statistics.data.gov.uk/id/local-authority/00ML,Housing General Fund,BVAHOG,Homelessness,HML,Premises Related,C,Rents Payable,CC,03/10/2012,PAY00510662,750.00,Revenue,Payment to Individual
Brighton & Hove City Council,http://statistics.data.gov.uk/id/local-authority/00ML,Housing General Fund,BVAHOG,Homelessness,HML,Premises Related,C,Rents Payable,CC,03/10/2012,PAY00510663,1100.00,Revenue,Payment to Individual
Brighton & Hove City Council,http://statistics.data.gov.uk/id/local-authority/00ML,Non I&E,BVANON,Collection Fund,7WW,Unalalysed-Income,9998,Level not required,NR5037,03/10/2012,PAY00510672,2381.32,Collection Fund,Ips Pensionbuilder. Acumen Trust
Brighton & Hove City Council,http://statistics.data.gov.uk/id/local-authority/00ML,Children�s Social Care,BVACSC,Child Srvcs - Other,FAX,Supplies and Services,E,Services,EF,03/10/2012,PAY00510674,1510.00,Revenue,Payment to Individual
Brighton & Hove City Council,http://statistics.data.gov.uk/id/local-authority/00ML,Housing General Fund,BVAHOG,Hsing Strat Advice and RSLs,HGR,Direct Employees,A,Salaries,AA,03/10/2012,PAY00510675,1050.00,Revenue,Deboxing Ltd
Brighton & Hove City Council,http://statistics.data.gov.uk/id/local-authority/00ML,Housing Revenue Account,BVAHOU,Hsing Management - HRA,HGM,Premises Related,C,Repair Maint n Alterations,CA,03/10/2012,PAY00510676,8904.65,Revenue,Liftec Lifts Ltd
Brighton & Hove City Council,http://statistics.data.gov.uk/id/local-authority/00ML,Non I&E,BVANON,Cap - Housing Services - HRA,4HR,New Construction n Conversion,PB,Level not required,NR5026,03/10/2012,PAY00510676,426989.00,Capital,Liftec Lifts Ltd
Brighton & Hove City Council,http://statistics.data.gov.uk/id/local-authority/00ML,Housing General Fund,BVAHOG,Homelessness,HML,Premises Related,C,Rents Payable,CC,03/10/2012,PAY00510678,950.00,Revenue,Payment to Individual
Brighton & Hove City Council,http://statistics.data.gov.uk/id/local-authority/00ML,Housing General Fund,BVAHOG,Homelessness,HML,Premises Related,C,Rents Payable,CC,03/10/2012,PAY00510679,800.00,Revenue,Payment to Individual
Brighton & Hove City Council,http://statistics.data.gov.uk/id/local-authority/00ML,Adult Social Care,BVASOC,S Svcs - Learning Disability,LDY,Customer n Client Receipts,M,Fees n Charges,MB,03/10/2012,PAY00510681,-385.40,Revenue,Zero Three Care Homes
Brighton & Hove City Council,http://statistics.data.gov.uk/id/local-authority/00ML,Adult Social Care,BVASOC,S Svcs - Learning Disability,LDY,Third Party Payments,F,Other Establishments,FH,03/10/2012,PAY00510681,10646.80,Revenue,Zero Three Care Homes
Brighton & Hove City Council,http://statistics.data.gov.uk/id/local-authority/00ML,Environment & Regulatory Serv,BVAERS,Waste Management,WMT,Third Party Payments,F,Other Agencies,FL,03/10/2012,PAY00510685,558.59,Revenue,Magpie Recycling Co-Operative Ltd
Brighton & Hove City Council,http://statistics.data.gov.uk/id/local-authority/00ML,Education Services,BVAEDU,Ed - Secondary Ed,EJE,Premises Related,C,Cleaning n Domestic Supps,CH,03/10/2012,PAY00510686,1878.50,Revenue,Ocean Contract Cleaning Ltd
Brighton & Hove City Council,http://statistics.data.gov.uk/id/local-authority/00ML,Cultural and Related Serv,BVACUL,Recreation and sport,REC,Premises Related,C,Repair Maint n Alterations,CA,03/10/2012,PAY00510688,742.80,Revenue,XL Plumbing & Heating Ltd
Brighton & Hove City Council,http://statistics.data.gov.uk/id/local-authority/00ML,Housing General Fund,BVAHOG,Homelessness,HML,Premises Related,C,Rents Payable,CC,03/10/2012,PAY00510689,620.00,Revenue,Payment to Individual
Brighton & Hove City Council,http://statistics.data.gov.uk/id/local-authority/00ML,Housing General Fund,BVAHOG,Homelessness,HML,Premises Related,C,Rents Payable,CC,03/10/2012,PAY00510690,790.00,Revenue,Payment to Individual
Brighton & Hove City Council,http://statistics.data.gov.uk/id/local-authority/00ML,Housing General Fund,BVAHOG,Homelessness,HML,Premises Related,C,Rents Payable,CC,03/10/2012,PAY00510693,825.00,Revenue,Payment to Individual
Brighton & Hove City Council,http://statistics.data.gov.uk/id/local-authority/00ML,Non I&E,BVANON,Cap - Education Services,4ED,New Construction n Conversion,PB,Level not required,NR5026,03/10/2012,PAY00510697,540.00,Capital,Independent Asbestos Services Ltd
Brighton & Hove City Council,http://statistics.data.gov.uk/id/local-authority/00ML,Children�s Social Care,BVACSC,Child Srvcs - Other,FAX,Supplies and Services,E,Communications n Computing,EH,03/10/2012,PAY00510698,10000.00,Revenue,FutureGov Ltd
Brighton & Hove City Council,http://statistics.data.gov.uk/id/local-authority/00ML,Housing General Fund,BVAHOG,Homelessness,HML,Customer n Client Receipts,M,Fees n Charges,MB,03/10/2012,PAY00510699,107429.00,Revenue,Brighton and Hove Seaside Community Homes Ltd
Brighton & Hove City Council,http://statistics.data.gov.uk/id/local-authority/00ML,Adult Social Care,BVASOC,S Svcs - Older People Svcs,PPL,Third Party Payments,F,Other Establishments,FH,03/10/2012,PAY00510701,2168.00,Revenue,Life Style Care (2011) PLC
Brighton & Hove City Council,http://statistics.data.gov.uk/id/local-authority/00ML,Non I&E,BVANON,Balance Sheet GFND,9ZZ,Current Assets,ZAB,Short Term Debtors,ZABC,03/10/2012,PAY00510702,0.00,Balance Sheet,Balfour Primary School
Brighton & Hove City Council,http://statistics.data.gov.uk/id/local-authority/00ML,Housing General Fund,BVAHOG,Homelessness,HML,Premises Related,C,Rents Payable,CC,03/10/2012,PAY00510703,1000.00,Revenue,Payment to Individual
Brighton & Hove City Council,http://statistics.data.gov.uk/id/local-authority/00ML,Adult Social Care,BVASOC,S Svcs - Older People Svcs,PPL,Third Party Payments,F,Other Establishments,FH,03/10/2012,PAY00510705,1780.00,Revenue,HC-One Limited
Brighton & Hove City Council,http://statistics.data.gov.uk/id/local-authority/00ML,Central Support and Overheads,BVACEN,Holding Accounts,PPH,Transport Related,D,Direct Transport Costs,DA,03/10/2012,PAY00510709,9653.06,Revenue,Allstar Business Solutions Ltd
Brighton & Hove City Council,http://statistics.data.gov.uk/id/local-authority/00ML,Central Support and Overheads,BVACEN,Support Services (SSC),PPT,Transport Related,D,Direct Transport Costs,DA,03/10/2012,PAY00510709,89.40,Revenue,Allstar Business Solutions Ltd
Brighton & Hove City Council,http://statistics.data.gov.uk/id/local-authority/00ML,Non I&E,BVANON,Collection Fund,7WW,Unalalysed-Income,9998,Level not required,NR5037,03/10/2012,PAY00510710,6545.09,Collection Fund,Equantra Ltd
Brighton & Hove City Council,http://statistics.data.gov.uk/id/local-authority/00ML,Housing General Fund,BVAHOG,Homelessness,HML,Premises Related,C,Rents Payable,CC,03/10/2012,PAY00510712,750.00,Revenue,Payment to Individual
Brighton & Hove City Council,http://statistics.data.gov.uk/id/local-authority/00ML,Housing General Fund,BVAHOG,Homelessness,HML,Premises Related,C,Rents Payable,CC,03/10/2012,PAY00510720,950.00,Revenue,Payment to Individual
Brighton & Hove City Council,http://statistics.data.gov.uk/id/local-authority/00ML,Children�s Social Care,BVACSC,Child Srvcs - Fostering,FLF,Third Party Payments,F,Other Establishments,FH,03/10/2012,PAY00510726,514.40,Revenue,Fostercare UK Ltd
Brighton & Hove City Council,http://statistics.data.gov.uk/id/local-authority/00ML,Planning and Development,BVAPLA,Economic Development,ECD,Supplies and Services,E,Grants n Subscriptions,EK,03/10/2012,PAY00510730,3000.00,Revenue,Brighton Judo Club
Brighton & Hove City Council,http://statistics.data.gov.uk/id/local-authority/00ML,Non I&E,BVANON,Cap - Other Env Services,4EV,Vehicles,PE1,Level not required,NR5032,03/10/2012,PAY00510731,22809.20,Capital,Motorline Toyota Gatwick
Brighton & Hove City Council,http://statistics.data.gov.uk/id/local-authority/00ML,Cultural and Related Serv,BVACUL,Recreation and sport,REC,Supplies and Services,E,Services,EF,03/10/2012,PAY00510740,8572.50,Revenue,Solar Architecture Ltd
Brighton & Hove City Council,http://statistics.data.gov.uk/id/local-authority/00ML,Housing General Fund,BVAHOG,Homelessness,HML,Premises Related,C,Rents Payable,CC,03/10/2012,PAY00510745,1400.00,Revenue,Mayco Properties Limited
Brighton & Hove City Council,http://statistics.data.gov.uk/id/local-authority/00ML,Housing General Fund,BVAHOG,Homelessness,HML,Premises Related,C,Rents Payable,CC,03/10/2012,PAY00510751,750.00,Revenue,Payment to Individual
Brighton & Hove City Council,http://statistics.data.gov.uk/id/local-authority/00ML,Housing General Fund,BVAHOG,Homelessness,HML,Premises Related,C,Rents Payable,CC,03/10/2012,PAY00510753,800.00,Revenue,Payment to Individual
Brighton & Hove City Council,http://statistics.data.gov.uk/id/local-authority/00ML,Cultural and Related Serv,BVACUL,Recreation and sport,REC,Supplies and Services,E,Equip't Furniture n Materials,EA,03/10/2012,PAY00510770,1924.00,Revenue,SBS Ltd
Brighton & Hove City Council,http://statistics.data.gov.uk/id/local-authority/00ML,Housing General Fund,BVAHOG,Homelessness,HML,Premises Related,C,Rents Payable,CC,03/10/2012,PAY00510775,1499.00,Revenue,Payment to Individual
Brighton & Hove City Council,http://statistics.data.gov.uk/id/local-authority/00ML,Environment & Regulatory Serv,BVAERS,Management Services (DEC),MGT,Transport Related,D,Direct Transport Costs,DA,03/10/2012,PAY00510782,4426.00,Revenue,S & B Commercials Plc
Brighton & Hove City Council,http://statistics.data.gov.uk/id/local-authority/00ML,Non I&E,BVANON,Collection Fund,7WW,Unalalysed-Income,9998,Level not required,NR5037,03/10/2012,PAY00510790,1092.57,Collection Fund,Payment to Individual
Brighton & Hove City Council,http://statistics.data.gov.uk/id/local-authority/00ML,Non I&E,BVANON,Collection Fund,7WW,Unalalysed-Income,9998,Level not required,NR5037,03/10/2012,PAY00510802,1087.92,Collection Fund,Payment to Individual
Brighton & Hove City Council,http://statistics.data.gov.uk/id/local-authority/00ML,Non I&E,BVANON,Collection Fund,7WW,Unalalysed-Income,9998,Level not required,NR5037,03/10/2012,PAY00510812,529.00,Collection Fund,Payment to Individual
Brighton & Hove City Council,http://statistics.data.gov.uk/id/local-authority/00ML,Non I&E,BVANON,Balance Sheet HRA,9HZ,Current Assets,ZAB,Short Term Debtors,ZABC,03/10/2012,PAY00510818,1831.01,Balance Sheet,Payment to Individual
Brighton & Hove City Council,http://statistics.data.gov.uk/id/local-authority/00ML,Planning and Development,BVAPLA,Economic Development,ECD,Supplies and Services,E,Grants n Subscriptions,EK,03/10/2012,PAY00510820,1500.00,Revenue,Stay Up Late
Brighton & Hove City Council,http://statistics.data.gov.uk/id/local-authority/00ML,Planning and Development,BVAPLA,Economic Development,ECD,Supplies and Services,E,Grants n Subscriptions,EK,03/10/2012,PAY00510821,1500.00,Revenue,The Friends of Hangleton park
Brighton & Hove City Council,http://statistics.data.gov.uk/id/local-authority/00ML,Non I&E,BVANON,Balance Sheet GFND,9ZZ,Current Liabilities,ZBA,Short Term Creditors,ZBAC,03/10/2012,PAY00510824,1408.00,Balance Sheet,Payment to Individual
Brighton & Hove City Council,http://statistics.data.gov.uk/id/local-authority/00ML,Highways and Transportation,BVAHRT,Highways and Roads - Mntnce,HRM,Customer n Client Receipts,M,Fees n Charges,MB,03/10/2012,PAY00510834,2915.00,Revenue,Flycreative Ltd
Brighton & Hove City Council,http://statistics.data.gov.uk/id/local-authority/00ML,Non I&E,BVANON,Collection Fund,7WW,Unalalysed-Income,9998,Level not required,NR5037,03/10/2012,PAY00510835,786.34,Collection Fund,Payment to Individual
Brighton & Hove City Council,http://statistics.data.gov.uk/id/local-authority/00ML,Non I&E,BVANON,Collection Fund,7WW,Unalalysed-Income,9998,Level not required,NR5037,03/10/2012,PAY00510836,1184.64,Collection Fund,Payment to Individual
Brighton & Hove City Council,http://statistics.data.gov.uk/id/local-authority/00ML,Non I&E,BVANON,Collection Fund,7WW,Unalalysed-Income,9998,Level not required,NR5037,03/10/2012,PAY00510837,2470.84,Collection Fund,Messrs J Wilson & C Bloomfield
Brighton & Hove City Council,http://statistics.data.gov.uk/id/local-authority/00ML,Non-BHC Organisations,BVANON,Trusts,TRT,Supplies and Services,E,Grants n Subscriptions,EK,03/10/2012,PAY00510839,500.00,Revenue,Get Creative Brighton
Brighton & Hove City Council,http://statistics.data.gov.uk/id/local-authority/00ML,Children�s Social Care,BVACSC,Child Srvcs - Adoption,FAA,Third Party Payments,F,Other Establishments,FH,03/10/2012,PAY00510841,9000.00,Revenue,Payment to Individual
Brighton & Hove City Council,http://statistics.data.gov.uk/id/local-authority/00ML,Non I&E,BVANON,Collection Fund,7WW,Unalalysed-Income,9998,Level not required,NR5037,03/10/2012,PAY00510844,874.65,Collection Fund,Payment to Individual
Brighton & Hove City Council,http://statistics.data.gov.uk/id/local-authority/00ML,Non I&E,BVANON,Collection Fund,7WW,Unalalysed-Income,9998,Level not required,NR5037,03/10/2012,PAY00510868,520.38,Collection Fund,Payment to Individual
Brighton & Hove City Council,http://statistics.data.gov.uk/id/local-authority/00ML,Non I&E,BVANON,Collection Fund,7WW,Unalalysed-Income,9998,Level not required,NR5037,03/10/2012,PAY00510891,768.20,Collection Fund,Payment to Individual
Brighton & Hove City Council,http://statistics.data.gov.uk/id/local-authority/00ML,Housing General Fund,BVAHOG,Homelessness,HML,Premises Related,C,Rents Payable,CC,03/10/2012,PAY00510895,1100.00,Revenue,Payment to Individual
Brighton & Hove City Council,http://statistics.data.gov.uk/id/local-authority/00ML,Education Services,BVAEDU,Ed - Srvcs YP - Ad & Cmty Ln,ENA,Supplies and Services,E,Equip't Furniture n Materials,EA,03/10/2012,PAY00510896,540.47,Revenue,CIT Vendor Finance (UK) Limited
Brighton & Hove City Council,http://statistics.data.gov.uk/id/local-authority/00ML,Adult Social Care,BVASOC,S Svcs - Mental Health,MHT,Third Party Payments,F,Other Establishments,FH,04/10/2012,PAY493926,549.00,Revenue,Payment to Individual
Brighton & Hove City Council,http://statistics.data.gov.uk/id/local-authority/00ML,Education Services,BVAEDU,Ed - EY - PVI,ENP,Supplies and Services,E,Grants n Subscriptions,EK,04/10/2012,PAY493939,1300.00,Revenue,Penhill Playgroup
Brighton & Hove City Council,http://statistics.data.gov.uk/id/local-authority/00ML,Non I&E,BVANON,Cap - Housing Services - GF,4HG,Capital Grants,PF,Level not required,NR5012,04/10/2012,PAY493956,3870.38,Capital,Guinness South
Brighton & Hove City Council,http://statistics.data.gov.uk/id/local-authority/00ML,Adult Social Care,BVASOC,S Svcs - Older People Svcs,PPL,Supplies and Services,E,Catering,EB,04/10/2012,PAY493960,906.51,Revenue,Payment to Individual
Brighton & Hove City Council,http://statistics.data.gov.uk/id/local-authority/00ML,Non I&E,BVANON,Collection Fund,7WW,Unalalysed-Income,9998,Level not required,NR5037,04/10/2012,PAY493984,701.87,Collection Fund,Payment to Individual
Brighton & Hove City Council,http://statistics.data.gov.uk/id/local-authority/00ML,Non I&E,BVANON,Collection Fund,7WW,Unalalysed-Income,9998,Level not required,NR5037,04/10/2012,PAY493985,831.61,Collection Fund,Payment to Individual
Brighton & Hove City Council,http://statistics.data.gov.uk/id/local-authority/00ML,Non I&E,BVANON,Collection Fund,7WW,Unalalysed-Income,9998,Level not required,NR5037,04/10/2012,PAY493986,1194.10,Collection Fund,Payment to Individual
Brighton & Hove City Council,http://statistics.data.gov.uk/id/local-authority/00ML,Environment & Regulatory Serv,BVAERS,Cem Crem and Mortuary Services,CCM,Premises Related,C,Repair Maint n Alterations,CA,04/10/2012,PAY493995,876.50,Revenue,Pelican Road Services Ltd
Brighton & Hove City Council,http://statistics.data.gov.uk/id/local-authority/00ML,Central Support and Overheads,BVACEN,Support Services (SSC),PPT,Supplies and Services,E,Services,EF,04/10/2012,PAY494000,3001.00,Revenue,Payment to Individual
Brighton & Hove City Council,http://statistics.data.gov.uk/id/local-authority/00ML,Central Support and Overheads,BVACEN,Support Services (SSC),PPT,Supplies and Services,E,Services,EF,04/10/2012,PAY494001,9055.00,Revenue,Payment to Individual
Brighton & Hove City Council,http://statistics.data.gov.uk/id/local-authority/00ML,Central Support and Overheads,BVACEN,Support Services (SSC),PPT,Supplies and Services,E,Services,EF,04/10/2012,PAY494002,2471.00,Revenue,Payment to Individual
Brighton & Hove City Council,http://statistics.data.gov.uk/id/local-authority/00ML,Central Support and Overheads,BVACEN,Support Services (SSC),PPT,Supplies and Services,E,Services,EF,04/10/2012,PAY494003,2130.00,Revenue,Payment to Individual
Brighton & Hove City Council,http://statistics.data.gov.uk/id/local-authority/00ML,Central Support and Overheads,BVACEN,Support Services (SSC),PPT,Supplies and Services,E,Services,EF,04/10/2012,PAY494004,924.00,Revenue,Payment to Individual
Brighton & Hove City Council,http://statistics.data.gov.uk/id/local-authority/00ML,Central Support and Overheads,BVACEN,Support Services (SSC),PPT,Supplies and Services,E,Services,EF,04/10/2012,PAY494005,4956.00,Revenue,Payment to Individual
Brighton & Hove City Council,http://statistics.data.gov.uk/id/local-authority/00ML,Central Support and Overheads,BVACEN,Support Services (SSC),PPT,Supplies and Services,E,Services,EF,04/10/2012,PAY494006,5721.00,Revenue,Payment to Individual
Brighton & Hove City Council,http://statistics.data.gov.uk/id/local-authority/00ML,Central Support and Overheads,BVACEN,Support Services (SSC),PPT,Supplies and Services,E,Services,EF,04/10/2012,PAY494007,920.00,Revenue,Payment to Individual
Brighton & Hove City Council,http://statistics.data.gov.uk/id/local-authority/00ML,Planning and Development,BVAPLA,Economic Development,ECD,Supplies and Services,E,Grants n Subscriptions,EK,04/10/2012,PAY494009,1500.00,Revenue,All Different All Equal
Brighton & Hove City Council,http://statistics.data.gov.uk/id/local-authority/00ML,Cultural and Related Serv,BVACUL,Culture & Heritage,CHG,Supplies and Services,E,Services,EF,05/10/2012,PAY00510899,999.60,Revenue,Southampton City Council
Brighton & Hove City Council,http://statistics.data.gov.uk/id/local-authority/00ML,Housing General Fund,BVAHOG,Homelessness,HML,Premises Related,C,Rents Payable,CC,05/10/2012,PAY00510900,775.00,Revenue,Payment to Individual
Brighton & Hove City Council,http://statistics.data.gov.uk/id/local-authority/00ML,Cultural and Related Serv,BVACUL,Culture & Heritage,CHG,Supplies and Services,E,Goods for Resale,EG,05/10/2012,PAY00510901,607.18,Revenue,Keycraft
Brighton & Hove City Council,http://statistics.data.gov.uk/id/local-authority/00ML,Housing General Fund,BVAHOG,Homelessness,HML,Premises Related,C,Rents Payable,CC,05/10/2012,PAY00510903,599.00,Revenue,Payment to Individual
Brighton & Hove City Council,http://statistics.data.gov.uk/id/local-authority/00ML,Children�s Social Care,BVACSC,Child Srvcs - Other Fam Supp,FFX,Transfer Payments,G,Other Transfer Payments,GD,05/10/2012,PAY00510904,1400.00,Revenue,Greenways Guest House
Brighton & Hove City Council,http://statistics.data.gov.uk/id/local-authority/00ML,Cultural and Related Serv,BVACUL,Culture & Heritage,CHG,Supplies and Services,E,Services,EF,05/10/2012,PAY00510905,1500.00,Revenue,Lianne Jarrett Associates
Brighton & Hove City Council,http://statistics.data.gov.uk/id/local-authority/00ML,Children�s Social Care,BVACSC,Child Srvcs - Other Fam Supp,FFX,Transfer Payments,G,Other Transfer Payments,GD,05/10/2012,PAY00510906,800.00,Revenue,Uden Lets
Brighton & Hove City Council,http://statistics.data.gov.uk/id/local-authority/00ML,Cultural and Related Serv,BVACUL,Culture & Heritage,CHG,Supplies and Services,E,Goods for Resale,EG,05/10/2012,PAY00510907,532.88,Revenue,Ahmad Tea Ltd
Brighton & Hove City Council,http://statistics.data.gov.uk/id/local-authority/00ML,Housing General Fund,BVAHOG,Homelessness,HML,Premises Related,C,Rents Payable,CC,05/10/2012,PAY00510909,665.00,Revenue,Payment to Individual
Brighton & Hove City Council,http://statistics.data.gov.uk/id/local-authority/00ML,Children�s Social Care,BVACSC,Child Srvcs - Fostering,FLF,Third Party Payments,F,Other Establishments,FH,05/10/2012,PAY00510912,1042.28,Revenue,Payment to Individual
Brighton & Hove City Council,http://statistics.data.gov.uk/id/local-authority/00ML,Adult Social Care,BVASOC,S Svcs - Older People Svcs,PPL,Customer n Client Receipts,M,Fees n Charges,MB,05/10/2012,PAY00510919,-1022.30,Revenue,Charlesworth Rest Home
Brighton & Hove City Council,http://statistics.data.gov.uk/id/local-authority/00ML,Adult Social Care,BVASOC,S Svcs - Older People Svcs,PPL,Third Party Payments,F,Other Establishments,FH,05/10/2012,PAY00510919,2070.00,Revenue,Charlesworth Rest Home
Brighton & Hove City Council,http://statistics.data.gov.uk/id/local-authority/00ML,Adult Social Care,BVASOC,S Svcs - Older People Svcs,PPL,Customer n Client Receipts,M,Fees n Charges,MB,05/10/2012,PAY00510920,1958.29,Revenue,Rosecroft Registered Rest Home
Brighton & Hove City Council,http://statistics.data.gov.uk/id/local-authority/00ML,Adult Social Care,BVASOC,S Svcs - Older People Svcs,PPL,Customer n Client Receipts,M,Fees n Charges,MB,05/10/2012,PAY00510921,-476.80,Revenue,Greenways Rest Home
Brighton & Hove City Council,http://statistics.data.gov.uk/id/local-authority/00ML,Adult Social Care,BVASOC,S Svcs - Older People Svcs,PPL,Third Party Payments,F,Other Establishments,FH,05/10/2012,PAY00510921,1440.63,Revenue,Greenways Rest Home
Brighton & Hove City Council,http://statistics.data.gov.uk/id/local-authority/00ML,Cultural and Related Serv,BVACUL,Culture & Heritage,CHG,Supplies and Services,E,Goods for Resale,EG,05/10/2012,PAY00510922,589.99,Revenue,Container Group Buying
Brighton & Hove City Council,http://statistics.data.gov.uk/id/local-authority/00ML,Adult Social Care,BVASOC,S Svcs - Mental Health,MHT,Third Party Payments,F,Other Establishments,FH,05/10/2012,PAY00510923,225.62,Revenue,Mears Care
Brighton & Hove City Council,http://statistics.data.gov.uk/id/local-authority/00ML,Adult Social Care,BVASOC,S Svcs - Older People Svcs,PPL,Customer n Client Receipts,M,Fees n Charges,MB,05/10/2012,PAY00510923,-351.00,Revenue,Mears Care
Brighton & Hove City Council,http://statistics.data.gov.uk/id/local-authority/00ML,Adult Social Care,BVASOC,S Svcs - Older People Svcs,PPL,Third Party Payments,F,Other Establishments,FH,05/10/2012,PAY00510923,2200.79,Revenue,Mears Care
Brighton & Hove City Council,http://statistics.data.gov.uk/id/local-authority/00ML,Adult Social Care,BVASOC,S Svcs - Physical Disability,PDY,Third Party Payments,F,Other Establishments,FH,05/10/2012,PAY00510923,478.32,Revenue,Mears Care
Brighton & Hove City Council,http://statistics.data.gov.uk/id/local-authority/00ML,Adult Social Care,BVASOC,S Svcs - Learning Disability,LDY,Third Party Payments,F,Other Establishments,FH,05/10/2012,PAY00510924,8082.69,Revenue,Chailey Heritage School
Brighton & Hove City Council,http://statistics.data.gov.uk/id/local-authority/00ML,Adult Social Care,BVASOC,S Svcs - Learning Disability,LDY,Premises Related,C,Repair Maint n Alterations,CA,05/10/2012,PAY00510925,175.00,Revenue,TSS Facilities Ltd
Brighton & Hove City Council,http://statistics.data.gov.uk/id/local-authority/00ML,Central Support and Overheads,BVACEN,Support Services (SSC),PPT,Premises Related,C,Repair Maint n Alterations,CA,05/10/2012,PAY00510925,2463.47,Revenue,TSS Facilities Ltd
Brighton & Hove City Council,http://statistics.data.gov.uk/id/local-authority/00ML,Children�s Social Care,BVACSC,Child Srvcs - Fostering,FLF,Third Party Payments,F,Other Establishments,FH,05/10/2012,PAY00510932,1422.54,Revenue,Families for Children (South) Ltd
Brighton & Hove City Council,http://statistics.data.gov.uk/id/local-authority/00ML,Children�s Social Care,BVACSC,Child Srvcs - Leaving Care,FAL,Transfer Payments,G,Other Transfer Payments,GD,05/10/2012,PAY00510932,6915.30,Revenue,Families for Children (South) Ltd
Brighton & Hove City Council,http://statistics.data.gov.uk/id/local-authority/00ML,Housing Revenue Account,BVAHOU,Hsing Management - HRA,HGM,Supplies and Services,E,Equip't Furniture n Materials,EA,05/10/2012,PAY00510933,501.60,Revenue,Portsdown Office Furniture
Brighton & Hove City Council,http://statistics.data.gov.uk/id/local-authority/00ML,Non I&E,BVANON,Balance Sheet GFND,9ZZ,Current Assets,ZAB,Short Term Debtors,ZABC,05/10/2012,PAY00510933,0.00,Balance Sheet,Portsdown Office Furniture
Brighton & Hove City Council,http://statistics.data.gov.uk/id/local-authority/00ML,Highways and Transportation,BVAHRT,Highways and Roads - Mntnce,HRM,Supplies and Services,E,Services,EF,05/10/2012,PAY00510934,551.75,Revenue,Amey OW Limited
Brighton & Hove City Council,http://statistics.data.gov.uk/id/local-authority/00ML,Non I&E,BVANON,Cap - Transport,4TR,New Construction n Conversion,PB,Level not required,NR5026,05/10/2012,PAY00510934,36167.69,Capital,Amey OW Limited
Brighton & Hove City Council,http://statistics.data.gov.uk/id/local-authority/00ML,Cultural and Related Serv,BVACUL,Tourism,TRM,Supplies and Services,E,Miscellaneous Expenses,EM,05/10/2012,PAY00510937,3500.00,Revenue,Tourism South East
Brighton & Hove City Council,http://statistics.data.gov.uk/id/local-authority/00ML,Adult Social Care,BVASOC,S Svcs - Learning Disability,LDY,Customer n Client Receipts,M,Fees n Charges,MB,05/10/2012,PAY00510939,-2019.40,Revenue,Southdown Housing Association
Brighton & Hove City Council,http://statistics.data.gov.uk/id/local-authority/00ML,Adult Social Care,BVASOC,S Svcs - Learning Disability,LDY,Third Party Payments,F,Other Establishments,FH,05/10/2012,PAY00510939,132278.32,Revenue,Southdown Housing Association
Brighton & Hove City Council,http://statistics.data.gov.uk/id/local-authority/00ML,Non I&E,BVANON,Cap - Housing Services - HRA,4HR,New Construction n Conversion,PB,Level not required,NR5026,05/10/2012,PAY00510940,8583.67,Capital,Access Mobility
Brighton & Hove City Council,http://statistics.data.gov.uk/id/local-authority/00ML,Central Support and Overheads,BVACEN,Support Services (SSC),PPT,Supplies and Services,E,Services,EF,05/10/2012,PAY00510945,1290.00,Revenue,Environment Agency
Brighton & Hove City Council,http://statistics.data.gov.uk/id/local-authority/00ML,Cultural and Related Serv,BVACUL,Culture & Heritage,CHG,Supplies and Services,E,Goods for Resale,EG,05/10/2012,PAY00510946,965.40,Revenue,Catch Publishing
Brighton & Hove City Council,http://statistics.data.gov.uk/id/local-authority/00ML,Central Support and Overheads,BVACEN,Support Services (SSC),PPT,Premises Related,C,Repair Maint n Alterations,CA,05/10/2012,PAY00510947,31505.00,Revenue,Brighton Dome & Festival Ltd
Brighton & Hove City Council,http://statistics.data.gov.uk/id/local-authority/00ML,Adult Social Care,BVASOC,S Svcs - Learning Disability,LDY,Customer n Client Receipts,M,Fees n Charges,MB,05/10/2012,PAY00510948,-476.80,Revenue,Honeybourne House Ltd
Brighton & Hove City Council,http://statistics.data.gov.uk/id/local-authority/00ML,Adult Social Care,BVASOC,S Svcs - Learning Disability,LDY,Third Party Payments,F,Other Establishments,FH,05/10/2012,PAY00510948,2868.40,Revenue,Honeybourne House Ltd
Brighton & Hove City Council,http://statistics.data.gov.uk/id/local-authority/00ML,Children�s Social Care,BVACSC,Child Srvcs - Leaving Care,FAL,Transfer Payments,G,Other Transfer Payments,GD,05/10/2012,PAY00510952,2435.67,Revenue,Asphaleia Ltd
Brighton & Hove City Council,http://statistics.data.gov.uk/id/local-authority/00ML,Education Services,BVAEDU,Ed - Ed Other - LA Attrib Sch,ELA,Third Party Payments,F,Other Local Authorities,FB,05/10/2012,PAY00510953,1866.93,Revenue,London Borough of Sutton
Brighton & Hove City Council,http://statistics.data.gov.uk/id/local-authority/00ML,Central Support and Overheads,BVACEN,Non service costs,NVC,Capital Financing Costs,J,Interest payable,JN,05/10/2012,PAY00510954,1007.32,Revenue,Asset Advantage Limited
Brighton & Hove City Council,http://statistics.data.gov.uk/id/local-authority/00ML,Cultural and Related Serv,BVACUL,Culture & Heritage,CHG,Supplies and Services,E,Miscellaneous Expenses,EM,05/10/2012,PAY00510956,3432.00,Revenue,Select Security & Stewarding Ltd
Brighton & Hove City Council,http://statistics.data.gov.uk/id/local-authority/00ML,Adult Social Care,BVASOC,S Svcs - Older People Svcs,PPL,Customer n Client Receipts,M,Fees n Charges,MB,05/10/2012,PAY00510961,-1260.11,Revenue,Westholme Clinic Ltd
Brighton & Hove City Council,http://statistics.data.gov.uk/id/local-authority/00ML,Adult Social Care,BVASOC,S Svcs - Older People Svcs,PPL,Third Party Payments,F,Other Establishments,FH,05/10/2012,PAY00510961,4565.06,Revenue,Westholme Clinic Ltd
Brighton & Hove City Council,http://statistics.data.gov.uk/id/local-authority/00ML,Cultural and Related Serv,BVACUL,Culture & Heritage,CHG,Supplies and Services,E,Goods for Resale,EG,05/10/2012,PAY00510962,803.39,Revenue,Bookspeed
Brighton & Hove City Council,http://statistics.data.gov.uk/id/local-authority/00ML,Adult Social Care,BVASOC,S Svcs - Asylum Seekers,AYL,Third Party Payments,F,Other Establishments,FH,05/10/2012,PAY00510964,762.30,Revenue,MACS
Brighton & Hove City Council,http://statistics.data.gov.uk/id/local-authority/00ML,Adult Social Care,BVASOC,S Svcs - Mental Health,MHT,Third Party Payments,F,Other Establishments,FH,05/10/2012,PAY00510964,370.00,Revenue,MACS
Brighton & Hove City Council,http://statistics.data.gov.uk/id/local-authority/00ML,Adult Social Care,BVASOC,S Svcs - Physical Disability,PDY,Third Party Payments,F,Other Establishments,FH,05/10/2012,PAY00510964,335.70,Revenue,MACS
Brighton & Hove City Council,http://statistics.data.gov.uk/id/local-authority/00ML,Central Services to the Public,BVACEN,Elections,ELE,Supplies and Services,E,Communications n Computing,EH,05/10/2012,PAY00510965,1351.49,Revenue,Royal Mail Group Ltd
Brighton & Hove City Council,http://statistics.data.gov.uk/id/local-authority/00ML,Central Support and Overheads,BVACEN,Holding Accounts,PPH,Supplies and Services,E,Communications n Computing,EH,05/10/2012,PAY00510965,6935.57,Revenue,Royal Mail Group Ltd
Brighton & Hove City Council,http://statistics.data.gov.uk/id/local-authority/00ML,Central Support and Overheads,BVACEN,Support Services (SSC),PPT,Supplies and Services,E,Communications n Computing,EH,05/10/2012,PAY00510965,0.78,Revenue,Royal Mail Group Ltd
Brighton & Hove City Council,http://statistics.data.gov.uk/id/local-authority/00ML,Central Support and Overheads,BVACEN,Support Services (SSC),PPT,Supplies and Services,E,Services,EF,05/10/2012,PAY00510965,2389.99,Revenue,Royal Mail Group Ltd
Brighton & Hove City Council,http://statistics.data.gov.uk/id/local-authority/00ML,Library Services,BVACUL,Library Service,LBR,Supplies and Services,E,Communications n Computing,EH,05/10/2012,PAY00510965,81.39,Revenue,Royal Mail Group Ltd
Brighton & Hove City Council,http://statistics.data.gov.uk/id/local-authority/00ML,Planning and Development,BVAPLA,Environmental Initiatives,EVN,Supplies and Services,E,Communications n Computing,EH,05/10/2012,PAY00510965,46.01,Revenue,Royal Mail Group Ltd
Brighton & Hove City Council,http://statistics.data.gov.uk/id/local-authority/00ML,Highways and Transportation,BVAHRT,Highways and Roads - Mntnce,HRM,Customer n Client Receipts,M,Fees n Charges,MB,05/10/2012,PAY00510966,3993.68,Revenue,Halcrow Group Ltd
Brighton & Hove City Council,http://statistics.data.gov.uk/id/local-authority/00ML,Non I&E,BVANON,Cap - Other Env Services,4EV,New Construction n Conversion,PB,Level not required,NR5026,05/10/2012,PAY00510966,14552.92,Capital,Halcrow Group Ltd
Brighton & Hove City Council,http://statistics.data.gov.uk/id/local-authority/00ML,Education Services,BVAEDU,Ed - EY - Central,EAE,Supplies and Services,E,Miscellaneous Expenses,EM,05/10/2012,PAY00510976,1125.00,Revenue,BeCCA Pre-School Playgroup
Brighton & Hove City Council,http://statistics.data.gov.uk/id/local-authority/00ML,Cultural and Related Serv,BVACUL,Culture & Heritage,CHG,Supplies and Services,E,Goods for Resale,EG,05/10/2012,PAY00510978,764.88,Revenue,Payment to Individual
Brighton & Hove City Council,http://statistics.data.gov.uk/id/local-authority/00ML,Adult Social Care,BVASOC,S Svcs - Mental Health,MHT,Third Party Payments,F,Other Establishments,FH,05/10/2012,PAY00510979,10.87,Revenue,Care UK Homecare
Brighton & Hove City Council,http://statistics.data.gov.uk/id/local-authority/00ML,Adult Social Care,BVASOC,S Svcs - Older People Svcs,PPL,Customer n Client Receipts,M,Fees n Charges,MB,05/10/2012,PAY00510979,9261.91,Revenue,Care UK Homecare
Brighton & Hove City Council,http://statistics.data.gov.uk/id/local-authority/00ML,Adult Social Care,BVASOC,S Svcs - Older People Svcs,PPL,Third Party Payments,F,Other Establishments,FH,05/10/2012,PAY00510979,7453.88,Revenue,Care UK Homecare
Brighton & Hove City Council,http://statistics.data.gov.uk/id/local-authority/00ML,Adult Social Care,BVASOC,S Svcs - Physical Disability,PDY,Customer n Client Receipts,M,Fees n Charges,MB,05/10/2012,PAY00510979,-97.00,Revenue,Care UK Homecare
Brighton & Hove City Council,http://statistics.data.gov.uk/id/local-authority/00ML,Adult Social Care,BVASOC,S Svcs - Physical Disability,PDY,Third Party Payments,F,Other Establishments,FH,05/10/2012,PAY00510979,951.53,Revenue,Care UK Homecare
Brighton & Hove City Council,http://statistics.data.gov.uk/id/local-authority/00ML,Non I&E,BVANON,Cap - Transport,4TR,Vehicles,PE1,Level not required,NR5032,05/10/2012,PAY00510980,549249.00,Capital,Dennis Eagle Ltd
Brighton & Hove City Council,http://statistics.data.gov.uk/id/local-authority/00ML,Children�s Social Care,BVACSC,Child Srvcs - Leaving Care,FAL,Transfer Payments,G,Other Transfer Payments,GD,05/10/2012,PAY00510981,2141.52,Revenue,Sussex Central YMCA
Brighton & Hove City Council,http://statistics.data.gov.uk/id/local-authority/00ML,Adult Social Care,BVASOC,S Svcs - Older People Svcs,PPL,Customer n Client Receipts,M,Fees n Charges,MB,05/10/2012,PAY00510982,-2208.60,Revenue,Fitzroy Lodge
Brighton & Hove City Council,http://statistics.data.gov.uk/id/local-authority/00ML,Adult Social Care,BVASOC,S Svcs - Older People Svcs,PPL,Third Party Payments,F,Other Establishments,FH,05/10/2012,PAY00510982,9730.81,Revenue,Fitzroy Lodge
Brighton & Hove City Council,http://statistics.data.gov.uk/id/local-authority/00ML,Adult Social Care,BVASOC,S Svcs - Older People Svcs,PPL,Customer n Client Receipts,M,Fees n Charges,MB,05/10/2012,PAY00510983,-1123.89,Revenue,Westerleigh Nursing Home
Brighton & Hove City Council,http://statistics.data.gov.uk/id/local-authority/00ML,Adult Social Care,BVASOC,S Svcs - Older People Svcs,PPL,Third Party Payments,F,Other Establishments,FH,05/10/2012,PAY00510983,5186.85,Revenue,Westerleigh Nursing Home
Brighton & Hove City Council,http://statistics.data.gov.uk/id/local-authority/00ML,Cultural and Related Serv,BVACUL,Highways and Roads - Mntnce,HRM,Premises Related,C,Repair Maint n Alterations,CA,05/10/2012,PAY00510987,1104.80,Revenue,FJS Building & Property Maintenance Ltd
Brighton & Hove City Council,http://statistics.data.gov.uk/id/local-authority/00ML,Environment & Regulatory Serv,BVAERS,Management Services (DEC),MGT,Transport Related,D,Direct Transport Costs,DA,05/10/2012,PAY00510992,988.59,Revenue,Geesink Norba Ltd
Brighton & Hove City Council,http://statistics.data.gov.uk/id/local-authority/00ML,Housing General Fund,BVAHOG,Hsing Welfare,HGW,Transfer Payments,G,Supporting People,GF,05/10/2012,PAY00510993,1160.44,Revenue,Payment to Individual
Brighton & Hove City Council,http://statistics.data.gov.uk/id/local-authority/00ML,Children�s Social Care,BVACSC,Child Srvcs - Other Fam Supp,FFX,Transfer Payments,G,Other Transfer Payments,GD,05/10/2012,PAY00510996,3125.80,Revenue,Extratime Ltd
Brighton & Hove City Council,http://statistics.data.gov.uk/id/local-authority/00ML,Adult Social Care,BVASOC,S Svcs - Older People Svcs,PPL,Customer n Client Receipts,M,Fees n Charges,MB,05/10/2012,PAY00510997,-496.00,Revenue,Saga Homecare
Brighton & Hove City Council,http://statistics.data.gov.uk/id/local-authority/00ML,Adult Social Care,BVASOC,S Svcs - Older People Svcs,PPL,Third Party Payments,F,Other Establishments,FH,05/10/2012,PAY00510997,1930.64,Revenue,Saga Homecare
Brighton & Hove City Council,http://statistics.data.gov.uk/id/local-authority/00ML,Adult Social Care,BVASOC,S Svcs - Supported Employment,EMP,Premises Related,C,Rents Payable,CC,05/10/2012,PAY00510999,12305.00,Revenue,Bizspace Ltd
Brighton & Hove City Council,http://statistics.data.gov.uk/id/local-authority/00ML,Adult Social Care,BVASOC,S Svcs - Older People Svcs,PPL,Customer n Client Receipts,M,Fees n Charges,MB,05/10/2012,PAY00511000,2975.38,Revenue,Prime Care Community Services Ltd
Brighton & Hove City Council,http://statistics.data.gov.uk/id/local-authority/00ML,Adult Social Care,BVASOC,S Svcs - Older People Svcs,PPL,Third Party Payments,F,Other Establishments,FH,05/10/2012,PAY00511000,1685.44,Revenue,Prime Care Community Services Ltd
Brighton & Hove City Council,http://statistics.data.gov.uk/id/local-authority/00ML,Adult Social Care,BVASOC,S Svcs - Physical Disability,PDY,Customer n Client Receipts,M,Fees n Charges,MB,05/10/2012,PAY00511000,961.50,Revenue,Prime Care Community Services Ltd
Brighton & Hove City Council,http://statistics.data.gov.uk/id/local-authority/00ML,Adult Social Care,BVASOC,S Svcs - Physical Disability,PDY,Third Party Payments,F,Other Establishments,FH,05/10/2012,PAY00511000,581.62,Revenue,Prime Care Community Services Ltd
Brighton & Hove City Council,http://statistics.data.gov.uk/id/local-authority/00ML,Corporate Income & Expenditure,BVAOEX,Non service costs,NVC,Premises Related,C,Departmental Administration,CHA,05/10/2012,PAY00511002,3967.00,Revenue,Savills Commercial Ltd
Brighton & Hove City Council,http://statistics.data.gov.uk/id/local-authority/00ML,Housing General Fund,BVAHOG,Homelessness,HML,Premises Related,C,Rents Payable,CC,05/10/2012,PAY00511004,1968.04,Revenue,Sanctuary Housing Association
Brighton & Hove City Council,http://statistics.data.gov.uk/id/local-authority/00ML,Housing General Fund,BVAHOG,Homelessness,HML,Premises Related,C,Rents Payable,CC,05/10/2012,PAY00511005,8881.74,Revenue,KEM Property Services Ltd
Brighton & Hove City Council,http://statistics.data.gov.uk/id/local-authority/00ML,Housing General Fund,BVAHOG,Homelessness,HML,Premises Related,C,Rents Payable,CC,05/10/2012,PAY00511010,800.00,Revenue,Payment to Individual
Brighton & Hove City Council,http://statistics.data.gov.uk/id/local-authority/00ML,Housing General Fund,BVAHOG,Homelessness,HML,Premises Related,C,Cleaning n Domestic Supps,CH,05/10/2012,PAY00511020,712.99,Revenue,Tim Jordan Grounds Maintenance Ltd
Brighton & Hove City Council,http://statistics.data.gov.uk/id/local-authority/00ML,Housing General Fund,BVAHOG,Homelessness,HML,Premises Related,C,Repair Maint n Alterations,CA,05/10/2012,PAY00511020,14262.33,Revenue,Tim Jordan Grounds Maintenance Ltd
Brighton & Hove City Council,http://statistics.data.gov.uk/id/local-authority/00ML,Housing General Fund,BVAHOG,Homelessness,HML,Supplies and Services,E,Miscellaneous Expenses,EM,05/10/2012,PAY00511020,706.24,Revenue,Tim Jordan Grounds Maintenance Ltd
Brighton & Hove City Council,http://statistics.data.gov.uk/id/local-authority/00ML,Non I&E,BVANON,Cap - Education Services,4ED,New Construction n Conversion,PB,Level not required,NR5026,05/10/2012,PAY00511020,490.00,Capital,Tim Jordan Grounds Maintenance Ltd
Brighton & Hove City Council,http://statistics.data.gov.uk/id/local-authority/00ML,Non I&E,BVANON,Cap - Housing Services - GF,4HG,Capital Grants,PF,Level not required,NR5012,05/10/2012,PAY00511021,9937.83,Capital,Climate Energy Ltd
Brighton & Hove City Council,http://statistics.data.gov.uk/id/local-authority/00ML,Adult Social Care,BVASOC,S Svcs - Learning Disability,LDY,Customer n Client Receipts,M,Fees n Charges,MB,05/10/2012,PAY00511022,-878.00,Revenue,Frances Taylor Fdn B&H Home Care Service
Brighton & Hove City Council,http://statistics.data.gov.uk/id/local-authority/00ML,Adult Social Care,BVASOC,S Svcs - Learning Disability,LDY,Third Party Payments,F,Other Establishments,FH,05/10/2012,PAY00511022,9939.82,Revenue,Frances Taylor Fdn B&H Home Care Service
Brighton & Hove City Council,http://statistics.data.gov.uk/id/local-authority/00ML,Adult Social Care,BVASOC,S Svcs - Older People Svcs,PPL,Third Party Payments,F,Other Establishments,FH,05/10/2012,PAY00511022,430.80,Revenue,Frances Taylor Fdn B&H Home Care Service
Brighton & Hove City Council,http://statistics.data.gov.uk/id/local-authority/00ML,Non I&E,BVANON,Cap - Education Services,4ED,New Construction n Conversion,PB,Level not required,NR5026,05/10/2012,PAY00511025,19929.34,Capital,SMS (Southern) Ltd
Brighton & Hove City Council,http://statistics.data.gov.uk/id/local-authority/00ML,Central Support and Overheads,BVACEN,Support Services (SSC),PPT,Supplies and Services,E,Miscellaneous Expenses,EM,05/10/2012,PAY00511028,3000.00,Revenue,AWCFA Limited
Brighton & Hove City Council,http://statistics.data.gov.uk/id/local-authority/00ML,Housing General Fund,BVAHOG,Homelessness,HML,Direct Employees,A,Salaries,AA,05/10/2012,PAY00511029,1080.00,Revenue,Payment to Individual
Brighton & Hove City Council,http://statistics.data.gov.uk/id/local-authority/00ML,Housing General Fund,BVAHOG,Homelessness,HML,Premises Related,C,Rents Payable,CC,05/10/2012,PAY00511030,725.00,Revenue,Payment to Individual
Brighton & Hove City Council,http://statistics.data.gov.uk/id/local-authority/00ML,Adult Social Care,BVASOC,S Svcs - Older People Svcs,PPL,Customer n Client Receipts,M,Fees n Charges,MB,05/10/2012,PAY00511031,-1365.43,Revenue,Glentworth Nursing Home
Brighton & Hove City Council,http://statistics.data.gov.uk/id/local-authority/00ML,Adult Social Care,BVASOC,S Svcs - Older People Svcs,PPL,Third Party Payments,F,Other Establishments,FH,05/10/2012,PAY00511031,4464.61,Revenue,Glentworth Nursing Home
Brighton & Hove City Council,http://statistics.data.gov.uk/id/local-authority/00ML,Children�s Social Care,BVACSC,Child Srvcs - Direct Pymts,FFD,Third Party Payments,F,Other Establishments,FH,05/10/2012,PAY00511032,608.15,Revenue,Payment to Individual
Brighton & Hove City Council,http://statistics.data.gov.uk/id/local-authority/00ML,Non I&E,BVANON,Cap - Other Env Services,4EV,New Construction n Conversion,PB,Level not required,NR5026,05/10/2012,PAY00511034,13987.98,Capital,Portakabin Limited
Brighton & Hove City Council,http://statistics.data.gov.uk/id/local-authority/00ML,Central Support and Overheads,BVACEN,Support Services (SSC),PPT,Premises Related,C,Repair Maint n Alterations,CA,05/10/2012,PAY00511035,708.35,Revenue,Frankham Consultancy Group Ltd
Brighton & Hove City Council,http://statistics.data.gov.uk/id/local-authority/00ML,Adult Social Care,BVASOC,S Svcs - Mental Health,MHT,Third Party Payments,F,Other Establishments,FH,05/10/2012,PAY00511037,108.76,Revenue,Agincare UK Ltd
Brighton & Hove City Council,http://statistics.data.gov.uk/id/local-authority/00ML,Adult Social Care,BVASOC,S Svcs - Older People Svcs,PPL,Customer n Client Receipts,M,Fees n Charges,MB,05/10/2012,PAY00511037,-1124.25,Revenue,Agincare UK Ltd
Brighton & Hove City Council,http://statistics.data.gov.uk/id/local-authority/00ML,Adult Social Care,BVASOC,S Svcs - Older People Svcs,PPL,Third Party Payments,F,Other Establishments,FH,05/10/2012,PAY00511037,6503.92,Revenue,Agincare UK Ltd
Brighton & Hove City Council,http://statistics.data.gov.uk/id/local-authority/00ML,Adult Social Care,BVASOC,S Svcs - Physical Disability,PDY,Customer n Client Receipts,M,Fees n Charges,MB,05/10/2012,PAY00511037,-38.00,Revenue,Agincare UK Ltd
Brighton & Hove City Council,http://statistics.data.gov.uk/id/local-authority/00ML,Adult Social Care,BVASOC,S Svcs - Physical Disability,PDY,Third Party Payments,F,Other Establishments,FH,05/10/2012,PAY00511037,258.00,Revenue,Agincare UK Ltd
Brighton & Hove City Council,http://statistics.data.gov.uk/id/local-authority/00ML,Adult Social Care,BVASOC,S Svcs - Older People Svcs,PPL,Third Party Payments,F,Other Establishments,FH,05/10/2012,PAY00511039,577.80,Revenue,Payment to Individual
Brighton & Hove City Council,http://statistics.data.gov.uk/id/local-authority/00ML,Adult Social Care,BVASOC,S Svcs - Learning Disability,LDY,Premises Related,C,Repair Maint n Alterations,CA,05/10/2012,PAY00511040,500.00,Revenue,Lee Sullivan Contract Flooring Limited
Brighton & Hove City Council,http://statistics.data.gov.uk/id/local-authority/00ML,Central Support and Overheads,BVACEN,Support Services (SSC),PPT,Premises Related,C,Repair Maint n Alterations,CA,05/10/2012,PAY00511040,3963.50,Revenue,Lee Sullivan Contract Flooring Limited
Brighton & Hove City Council,http://statistics.data.gov.uk/id/local-authority/00ML,Education Services,BVAEDU,Ed - Ed Other - Other,ENF,Premises Related,C,Repair Maint n Alterations,CA,05/10/2012,PAY00511040,200.00,Revenue,Lee Sullivan Contract Flooring Limited
Brighton & Hove City Council,http://statistics.data.gov.uk/id/local-authority/00ML,Education Services,BVAEDU,Ed - EY - Central,EAE,Premises Related,C,Repair Maint n Alterations,CA,05/10/2012,PAY00511040,110.50,Revenue,Lee Sullivan Contract Flooring Limited
Brighton & Hove City Council,http://statistics.data.gov.uk/id/local-authority/00ML,Central Support and Overheads,BVACEN,Support Services (SSC),PPT,Supplies and Services,E,Services,EF,05/10/2012,PAY00511043,3731.47,Revenue,NPS South East Ltd
Brighton & Hove City Council,http://statistics.data.gov.uk/id/local-authority/00ML,Education Services,BVAEDU,Ed - Ed Other - Other,ENF,Third Party Payments,F,Other Local Authorities,FB,05/10/2012,PAY00511043,4159.09,Revenue,NPS South East Ltd
Brighton & Hove City Council,http://statistics.data.gov.uk/id/local-authority/00ML,Non I&E,BVANON,Cap - Education Services,4ED,New Construction n Conversion,PB,Level not required,NR5026,05/10/2012,PAY00511043,26462.05,Capital,NPS South East Ltd
Brighton & Hove City Council,http://statistics.data.gov.uk/id/local-authority/00ML,Planning and Development,BVAPLA,Economic Development,ECD,Customer n Client Receipts,M,Rents,MC,05/10/2012,PAY00511044,6060.00,Revenue,Cluttons LLP
Brighton & Hove City Council,http://statistics.data.gov.uk/id/local-authority/00ML,Planning and Development,BVAPLA,Economic Development,ECD,Premises Related,C,Rents Payable,CC,05/10/2012,PAY00511044,65939.63,Revenue,Cluttons LLP
Brighton & Hove City Council,http://statistics.data.gov.uk/id/local-authority/00ML,Housing General Fund,BVAHOG,Homelessness,HML,Premises Related,C,Rents Payable,CC,05/10/2012,PAY00511045,800.00,Revenue,Payment to Individual
Brighton & Hove City Council,http://statistics.data.gov.uk/id/local-authority/00ML,Non I&E,BVANON,Cap - Libs Culture & Hertage,4LH,New Construction n Conversion,PB,Level not required,NR5026,05/10/2012,PAY00511046,6276.25,Capital,The Right Solution Ltd
Brighton & Hove City Council,http://statistics.data.gov.uk/id/local-authority/00ML,Housing General Fund,BVAHOG,Homelessness,HML,Premises Related,C,Rents Payable,CC,05/10/2012,PAY00511047,900.00,Revenue,Payment to Individual
Brighton & Hove City Council,http://statistics.data.gov.uk/id/local-authority/00ML,Non I&E,BVANON,Collection Fund,7WW,Unalalysed-Income,9998,Level not required,NR5037,05/10/2012,PAY00511049,1633.81,Collection Fund,Uniparts Automotive Ltd
Brighton & Hove City Council,http://statistics.data.gov.uk/id/local-authority/00ML,Highways and Transportation,BVAHRT,Parking Services,PRK,Supplies and Services,E,Equip't Furniture n Materials,EA,05/10/2012,PAY00511050,51799.44,Revenue,Parkeon Ltd
Brighton & Hove City Council,http://statistics.data.gov.uk/id/local-authority/00ML,Education Services,BVAEDU,Ed - EY - Central,EAE,Supplies and Services,E,Miscellaneous Expenses,EM,05/10/2012,PAY00511052,660.00,Revenue,Pixies Childcare Ltd
Brighton & Hove City Council,http://statistics.data.gov.uk/id/local-authority/00ML,Cultural and Related Serv,BVACUL,Recreation and sport,REC,Supplies and Services,E,Miscellaneous Expenses,EM,05/10/2012,PAY00511053,2552.00,Revenue,Reed Business Information Ltd
Brighton & Hove City Council,http://statistics.data.gov.uk/id/local-authority/00ML,Non I&E,BVANON,Cap - Education Services,4ED,New Construction n Conversion,PB,Level not required,NR5026,05/10/2012,PAY00511054,1780.00,Capital,E N V Surveys Ltd
Brighton & Hove City Council,http://statistics.data.gov.uk/id/local-authority/00ML,Children�s Social Care,BVACSC,Child Srvcs - Other Fam Supp,FFX,Transfer Payments,G,Other Transfer Payments,GD,05/10/2012,PAY00511056,850.00,Revenue,Khalil Properties
Brighton & Hove City Council,http://statistics.data.gov.uk/id/local-authority/00ML,Environment & Regulatory Serv,BVAERS,Management Services (DEC),MGT,Transport Related,D,Direct Transport Costs,DA,05/10/2012,PAY00511057,989.85,Revenue,Farid UK Ltd
Brighton & Hove City Council,http://statistics.data.gov.uk/id/local-authority/00ML,Housing General Fund,BVAHOG,Homelessness,HML,Premises Related,C,Rents Payable,CC,05/10/2012,PAY00511058,2325.00,Revenue,Marchmont Estates Ltd
Brighton & Hove City Council,http://statistics.data.gov.uk/id/local-authority/00ML,Adult Social Care,BVASOC,S Svcs - Older People Svcs,PPL,Supplies and Services,E,Catering,EB,05/10/2012,PAY00511059,656.46,Revenue,West Horsley Dairy Ltd
Brighton & Hove City Council,http://statistics.data.gov.uk/id/local-authority/00ML,Highways and Transportation,BVAHRT,Highways and Roads - Mntnce,HRM,Customer n Client Receipts,M,Fees n Charges,MB,05/10/2012,PAY00511062,1946.00,Revenue,Maltaward (Barriers) Ltd
Brighton & Hove City Council,http://statistics.data.gov.uk/id/local-authority/00ML,Adult Social Care,BVASOC,S Svcs - Older People Svcs,PPL,Customer n Client Receipts,M,Fees n Charges,MB,05/10/2012,PAY00511064,-634.20,Revenue,Appletree House Care Home
Brighton & Hove City Council,http://statistics.data.gov.uk/id/local-authority/00ML,Adult Social Care,BVASOC,S Svcs - Older People Svcs,PPL,Third Party Payments,F,Other Establishments,FH,05/10/2012,PAY00511064,1421.40,Revenue,Appletree House Care Home
Brighton & Hove City Council,http://statistics.data.gov.uk/id/local-authority/00ML,Highways and Transportation,BVAHRT,Parking Services,PRK,Premises Related,C,Repair Maint n Alterations,CA,05/10/2012,PAY00511065,2810.00,Revenue,Lee Hire Ltd
Brighton & Hove City Council,http://statistics.data.gov.uk/id/local-authority/00ML,Non I&E,BVANON,Cap - Transport,4TR,New Construction n Conversion,PB,Level not required,NR5026,05/10/2012,PAY00511065,20.00,Capital,Lee Hire Ltd
Brighton & Hove City Council,http://statistics.data.gov.uk/id/local-authority/00ML,Central Support and Overheads,BVACEN,Support Services (SSC),PPT,Premises Related,C,Repair Maint n Alterations,CA,05/10/2012,PAY00511069,602.06,Revenue,AM Fire & Security Group
Brighton & Hove City Council,http://statistics.data.gov.uk/id/local-authority/00ML,Cultural and Related Serv,BVACUL,Recreation and sport,REC,Premises Related,C,Repair Maint n Alterations,CA,05/10/2012,PAY00511070,908.10,Revenue,Andrews Sykes Group PLC
Brighton & Hove City Council,http://statistics.data.gov.uk/id/local-authority/00ML,Cultural and Related Serv,BVACUL,Culture & Heritage,CHG,Supplies and Services,E,Print Stat & Gen Office Exps,ED,05/10/2012,PAY00511071,3206.50,Revenue,Brighton & Sussex Sign Co
Brighton & Hove City Council,http://statistics.data.gov.uk/id/local-authority/00ML,Adult Social Care,BVASOC,S Svcs - Older People Svcs,PPL,Supplies and Services,E,Catering,EB,05/10/2012,PAY00511072,924.40,Revenue,3663 BFS Group Ltd
Brighton & Hove City Council,http://statistics.data.gov.uk/id/local-authority/00ML,Cultural and Related Serv,BVACUL,Culture & Heritage,CHG,Supplies and Services,E,Catering,EB,05/10/2012,PAY00511072,614.99,Revenue,3663 BFS Group Ltd
Brighton & Hove City Council,http://statistics.data.gov.uk/id/local-authority/00ML,Housing General Fund,BVAHOG,Homelessness,HML,Premises Related,C,Cleaning n Domestic Supps,CH,05/10/2012,PAY00511072,19.58,Revenue,3663 BFS Group Ltd
Brighton & Hove City Council,http://statistics.data.gov.uk/id/local-authority/00ML,Housing General Fund,BVAHOG,Homelessness,HML,Supplies and Services,E,Catering,EB,05/10/2012,PAY00511072,216.71,Revenue,3663 BFS Group Ltd
Brighton & Hove City Council,http://statistics.data.gov.uk/id/local-authority/00ML,Adult Social Care,BVASOC,S Svcs - Mental Health,MHT,Third Party Payments,F,Other Establishments,FH,05/10/2012,PAY00511073,10331.50,Revenue,Brighton Housing Trust
Brighton & Hove City Council,http://statistics.data.gov.uk/id/local-authority/00ML,Cultural and Related Serv,BVACUL,Culture & Heritage,CHG,Supplies and Services,E,Goods for Resale,EG,05/10/2012,PAY00511077,1308.69,Revenue,Carole Group Ltd
Brighton & Hove City Council,http://statistics.data.gov.uk/id/local-authority/00ML,Environment & Regulatory Serv,BVAERS,Street Cleansing,CLE,Supplies and Services,E,Equip't Furniture n Materials,EA,05/10/2012,PAY00511078,634.24,Revenue,C Brewer & Sons Ltd
Brighton & Hove City Council,http://statistics.data.gov.uk/id/local-authority/00ML,Central Support and Overheads,BVACEN,Support Services (SSC),PPT,Premises Related,C,Repair Maint n Alterations,CA,05/10/2012,PAY00511079,741.09,Revenue,Chubb Electronic Security Ltd
Brighton & Hove City Council,http://statistics.data.gov.uk/id/local-authority/00ML,Corporate Income & Expenditure,BVAOEX,Non service costs,NVC,Premises Related,C,Departmental Administration,CHA,05/10/2012,PAY00511080,3966.68,Revenue,Cluttons
Brighton & Hove City Council,http://statistics.data.gov.uk/id/local-authority/00ML,Cultural and Related Serv,BVACUL,Open Spaces,PEN,Third Party Payments,F,Private Contractors,FJ,05/10/2012,PAY00511081,1980.00,Revenue,Connick Tree Care Brighton Ltd
Brighton & Hove City Council,http://statistics.data.gov.uk/id/local-authority/00ML,Education Services,BVAEDU,Ed - Primary Ed,EHE,Supplies and Services,E,Miscellaneous Expenses,EM,05/10/2012,PAY00511086,49232.00,Revenue,East Sussex County Council
Brighton & Hove City Council,http://statistics.data.gov.uk/id/local-authority/00ML,Environment & Regulatory Serv,BVAERS,Waste Management,WMT,Supplies and Services,E,Equip't Furniture n Materials,EA,05/10/2012,PAY00511087,672.00,Revenue,Egbert H Taylor & Company Ltd
Brighton & Hove City Council,http://statistics.data.gov.uk/id/local-authority/00ML,Children�s Social Care,BVACSC,Child Srvcs - Fostering,FLF,Third Party Payments,F,Other Establishments,FH,05/10/2012,PAY00511088,390.00,Revenue,Payment to Individual
Brighton & Hove City Council,http://statistics.data.gov.uk/id/local-authority/00ML,Children�s Social Care,BVACSC,Child Srvcs - Leaving Care,FAL,Third Party Payments,F,Other Establishments,FH,05/10/2012,PAY00511088,84.00,Revenue,Payment to Individual
Brighton & Hove City Council,http://statistics.data.gov.uk/id/local-authority/00ML,Children�s Social Care,BVACSC,Child Srvcs - Leaving Care,FAL,Transfer Payments,G,Other Transfer Payments,GD,05/10/2012,PAY00511088,239.00,Revenue,Payment to Individual
Brighton & Hove City Council,http://statistics.data.gov.uk/id/local-authority/00ML,Children�s Social Care,BVACSC,Child Srvcs - Fostering,FLF,Third Party Payments,F,Other Establishments,FH,05/10/2012,PAY00511089,817.65,Revenue,Payment to Individual
Brighton & Hove City Council,http://statistics.data.gov.uk/id/local-authority/00ML,Children�s Social Care,BVACSC,Child Srvcs - Fostering,FLF,Third Party Payments,F,Other Establishments,FH,05/10/2012,PAY00511090,1133.00,Revenue,Payment to Individual
Brighton & Hove City Council,http://statistics.data.gov.uk/id/local-authority/00ML,Children�s Social Care,BVACSC,Child Srvcs - Fostering,FLF,Third Party Payments,F,Other Establishments,FH,05/10/2012,PAY00511092,681.00,Revenue,Payment to Individual
Brighton & Hove City Council,http://statistics.data.gov.uk/id/local-authority/00ML,Children�s Social Care,BVACSC,Child Srvcs - Fostering,FLF,Third Party Payments,F,Other Establishments,FH,05/10/2012,PAY00511093,780.00,Revenue,Payment to Individual
Brighton & Hove City Council,http://statistics.data.gov.uk/id/local-authority/00ML,Children�s Social Care,BVACSC,Child Srvcs - Leaving Care,FAL,Third Party Payments,F,Other Establishments,FH,05/10/2012,PAY00511093,84.00,Revenue,Payment to Individual
Brighton & Hove City Council,http://statistics.data.gov.uk/id/local-authority/00ML,Children�s Social Care,BVACSC,Child Srvcs - Leaving Care,FAL,Transfer Payments,G,Other Transfer Payments,GD,05/10/2012,PAY00511093,175.00,Revenue,Payment to Individual
Brighton & Hove City Council,http://statistics.data.gov.uk/id/local-authority/00ML,Children�s Social Care,BVACSC,Child Srvcs - Fostering,FLF,Third Party Payments,F,Other Establishments,FH,05/10/2012,PAY00511100,433.00,Revenue,Payment to Individual
Brighton & Hove City Council,http://statistics.data.gov.uk/id/local-authority/00ML,Children�s Social Care,BVACSC,Child Srvcs - Leaving Care,FAL,Third Party Payments,F,Other Establishments,FH,05/10/2012,PAY00511100,61.00,Revenue,Payment to Individual
Brighton & Hove City Council,http://statistics.data.gov.uk/id/local-authority/00ML,Children�s Social Care,BVACSC,Child Srvcs - Leaving Care,FAL,Transfer Payments,G,Other Transfer Payments,GD,05/10/2012,PAY00511100,175.00,Revenue,Payment to Individual
Brighton & Hove City Council,http://statistics.data.gov.uk/id/local-authority/00ML,Children�s Social Care,BVACSC,Child Srvcs - Fostering,FLF,Third Party Payments,F,Other Establishments,FH,05/10/2012,PAY00511101,390.00,Revenue,Payment to Individual
Brighton & Hove City Council,http://statistics.data.gov.uk/id/local-authority/00ML,Children�s Social Care,BVACSC,Child Srvcs - Leaving Care,FAL,Third Party Payments,F,Other Establishments,FH,05/10/2012,PAY00511101,168.00,Revenue,Payment to Individual
Brighton & Hove City Council,http://statistics.data.gov.uk/id/local-authority/00ML,Children�s Social Care,BVACSC,Child Srvcs - Leaving Care,FAL,Transfer Payments,G,Other Transfer Payments,GD,05/10/2012,PAY00511101,478.00,Revenue,Payment to Individual
Brighton & Hove City Council,http://statistics.data.gov.uk/id/local-authority/00ML,Children�s Social Care,BVACSC,Child Srvcs - Leaving Care,FAL,Third Party Payments,F,Other Establishments,FH,05/10/2012,PAY00511102,145.00,Revenue,Payment to Individual
Brighton & Hove City Council,http://statistics.data.gov.uk/id/local-authority/00ML,Children�s Social Care,BVACSC,Child Srvcs - Leaving Care,FAL,Transfer Payments,G,Other Transfer Payments,GD,05/10/2012,PAY00511102,478.00,Revenue,Payment to Individual
Brighton & Hove City Council,http://statistics.data.gov.uk/id/local-authority/00ML,Children�s Social Care,BVACSC,Child Srvcs - Adoption,FAA,Third Party Payments,F,Other Establishments,FH,05/10/2012,PAY00511106,709.30,Revenue,Payment to Individual
Brighton & Hove City Council,http://statistics.data.gov.uk/id/local-authority/00ML,Children�s Social Care,BVACSC,Child Srvcs - Fostering,FLF,Third Party Payments,F,Other Establishments,FH,05/10/2012,PAY00511107,671.00,Revenue,Payment to Individual
Brighton & Hove City Council,http://statistics.data.gov.uk/id/local-authority/00ML,Children�s Social Care,BVACSC,Child Srvcs - Fostering,FLF,Third Party Payments,F,Other Establishments,FH,05/10/2012,PAY00511108,990.30,Revenue,Payment to Individual
Brighton & Hove City Council,http://statistics.data.gov.uk/id/local-authority/00ML,Children�s Social Care,BVACSC,Child Srvcs - Fostering,FLF,Third Party Payments,F,Other Establishments,FH,05/10/2012,PAY00511109,636.00,Revenue,Payment to Individual
Brighton & Hove City Council,http://statistics.data.gov.uk/id/local-authority/00ML,Children�s Social Care,BVACSC,Child Srvcs - Fostering,FLF,Third Party Payments,F,Other Establishments,FH,05/10/2012,PAY00511110,1077.80,Revenue,Payment to Individual
Brighton & Hove City Council,http://statistics.data.gov.uk/id/local-authority/00ML,Children�s Social Care,BVACSC,Child Srvcs - Fostering,FLF,Third Party Payments,F,Other Establishments,FH,05/10/2012,PAY00511116,808.00,Revenue,Payment to Individual
Brighton & Hove City Council,http://statistics.data.gov.uk/id/local-authority/00ML,Children�s Social Care,BVACSC,Child Srvcs - Fostering,FLF,Third Party Payments,F,Other Establishments,FH,05/10/2012,PAY00511121,100.00,Revenue,Payment to Individual
Brighton & Hove City Council,http://statistics.data.gov.uk/id/local-authority/00ML,Children�s Social Care,BVACSC,Child Srvcs - Leaving Care,FAL,Transfer Payments,G,Other Transfer Payments,GD,05/10/2012,PAY00511121,1114.00,Revenue,Payment to Individual
Brighton & Hove City Council,http://statistics.data.gov.uk/id/local-authority/00ML,Children�s Social Care,BVACSC,Child Srvcs - Fostering,FLF,Third Party Payments,F,Other Establishments,FH,05/10/2012,PAY00511122,318.00,Revenue,Payment to Individual
Brighton & Hove City Council,http://statistics.data.gov.uk/id/local-authority/00ML,Children�s Social Care,BVACSC,Child Srvcs - Leaving Care,FAL,Third Party Payments,F,Other Establishments,FH,05/10/2012,PAY00511122,84.00,Revenue,Payment to Individual
Brighton & Hove City Council,http://statistics.data.gov.uk/id/local-authority/00ML,Children�s Social Care,BVACSC,Child Srvcs - Leaving Care,FAL,Transfer Payments,G,Other Transfer Payments,GD,05/10/2012,PAY00511122,175.00,Revenue,Payment to Individual
Brighton & Hove City Council,http://statistics.data.gov.uk/id/local-authority/00ML,Children�s Social Care,BVACSC,Child Srvcs - Fostering,FLF,Third Party Payments,F,Other Establishments,FH,05/10/2012,PAY00511126,781.00,Revenue,Payment to Individual
Brighton & Hove City Council,http://statistics.data.gov.uk/id/local-authority/00ML,Children�s Social Care,BVACSC,Child Srvcs - Fostering,FLF,Third Party Payments,F,Other Establishments,FH,05/10/2012,PAY00511127,784.85,Revenue,Payment to Individual
Brighton & Hove City Council,http://statistics.data.gov.uk/id/local-authority/00ML,Children�s Social Care,BVACSC,Child Srvcs - Fostering,FLF,Third Party Payments,F,Other Establishments,FH,05/10/2012,PAY00511128,1026.00,Revenue,Payment to Individual
Brighton & Hove City Council,http://statistics.data.gov.uk/id/local-authority/00ML,Children�s Social Care,BVACSC,Child Srvcs - Fostering,FLF,Third Party Payments,F,Other Establishments,FH,05/10/2012,PAY00511129,776.30,Revenue,Payment to Individual
Brighton & Hove City Council,http://statistics.data.gov.uk/id/local-authority/00ML,Children�s Social Care,BVACSC,Child Srvcs - Fostering,FLF,Third Party Payments,F,Other Establishments,FH,05/10/2012,PAY00511130,780.00,Revenue,Payment to Individual
Brighton & Hove City Council,http://statistics.data.gov.uk/id/local-authority/00ML,Children�s Social Care,BVACSC,Child Srvcs - Fostering,FLF,Third Party Payments,F,Other Establishments,FH,05/10/2012,PAY00511134,743.00,Revenue,Payment to Individual
Brighton & Hove City Council,http://statistics.data.gov.uk/id/local-authority/00ML,Children�s Social Care,BVACSC,Child Srvcs - Fostering,FLF,Third Party Payments,F,Other Establishments,FH,05/10/2012,PAY00511154,561.84,Revenue,Payment to Individual
Brighton & Hove City Council,http://statistics.data.gov.uk/id/local-authority/00ML,Children�s Social Care,BVACSC,Child Srvcs - Fostering,FLF,Third Party Payments,F,Other Establishments,FH,05/10/2012,PAY00511158,671.00,Revenue,Payment to Individual
Brighton & Hove City Council,http://statistics.data.gov.uk/id/local-authority/00ML,Children�s Social Care,BVACSC,Child Srvcs - Fostering,FLF,Third Party Payments,F,Other Establishments,FH,05/10/2012,PAY00511159,721.00,Revenue,Payment to Individual
Brighton & Hove City Council,http://statistics.data.gov.uk/id/local-authority/00ML,Children�s Social Care,BVACSC,Child Srvcs - Leaving Care,FAL,Third Party Payments,F,Other Establishments,FH,05/10/2012,PAY00511159,-78.43,Revenue,Payment to Individual
Brighton & Hove City Council,http://statistics.data.gov.uk/id/local-authority/00ML,Children�s Social Care,BVACSC,Child Srvcs - Leaving Care,FAL,Transfer Payments,G,Other Transfer Payments,GD,05/10/2012,PAY00511159,-21.57,Revenue,Payment to Individual
Brighton & Hove City Council,http://statistics.data.gov.uk/id/local-authority/00ML,Children�s Social Care,BVACSC,Child Srvcs - Fostering,FLF,Third Party Payments,F,Other Establishments,FH,05/10/2012,PAY00511171,780.00,Revenue,Payment to Individual
Brighton & Hove City Council,http://statistics.data.gov.uk/id/local-authority/00ML,Children�s Social Care,BVACSC,Child Srvcs - Fostering,FLF,Third Party Payments,F,Other Establishments,FH,05/10/2012,PAY00511184,1061.00,Revenue,Payment to Individual
Brighton & Hove City Council,http://statistics.data.gov.uk/id/local-authority/00ML,Children�s Social Care,BVACSC,Child Srvcs - Adoption,FAA,Third Party Payments,F,Other Establishments,FH,05/10/2012,PAY00511185,570.37,Revenue,Payment to Individual
Brighton & Hove City Council,http://statistics.data.gov.uk/id/local-authority/00ML,Children�s Social Care,BVACSC,Child Srvcs - Fostering,FLF,Third Party Payments,F,Other Establishments,FH,05/10/2012,PAY00511186,671.00,Revenue,Payment to Individual
Brighton & Hove City Council,http://statistics.data.gov.uk/id/local-authority/00ML,Children�s Social Care,BVACSC,Child Srvcs - Fostering,FLF,Third Party Payments,F,Other Establishments,FH,05/10/2012,PAY00511193,1061.00,Revenue,Payment to Individual
Brighton & Hove City Council,http://statistics.data.gov.uk/id/local-authority/00ML,Children�s Social Care,BVACSC,Child Srvcs - Fostering,FLF,Third Party Payments,F,Other Establishments,FH,05/10/2012,PAY00511195,587.70,Revenue,Payment to Individual
Brighton & Hove City Council,http://statistics.data.gov.uk/id/local-authority/00ML,Children�s Social Care,BVACSC,Child Srvcs - Fostering,FLF,Third Party Payments,F,Other Establishments,FH,05/10/2012,PAY00511199,1315.00,Revenue,Payment to Individual
Brighton & Hove City Council,http://statistics.data.gov.uk/id/local-authority/00ML,Children�s Social Care,BVACSC,Child Srvcs - Fostering,FLF,Third Party Payments,F,Other Establishments,FH,05/10/2012,PAY00511200,636.00,Revenue,Payment to Individual
Brighton & Hove City Council,http://statistics.data.gov.uk/id/local-authority/00ML,Children�s Social Care,BVACSC,Child Srvcs - Fostering,FLF,Third Party Payments,F,Other Establishments,FH,05/10/2012,PAY00511203,780.00,Revenue,Payment to Individual
Brighton & Hove City Council,http://statistics.data.gov.uk/id/local-authority/00ML,Children�s Social Care,BVACSC,Child Srvcs - Fostering,FLF,Third Party Payments,F,Other Establishments,FH,05/10/2012,PAY00511204,706.00,Revenue,Payment to Individual
Brighton & Hove City Council,http://statistics.data.gov.uk/id/local-authority/00ML,Children�s Social Care,BVACSC,Child Srvcs - Fostering,FLF,Third Party Payments,F,Other Establishments,FH,05/10/2012,PAY00511206,513.22,Revenue,Payment to Individual
Brighton & Hove City Council,http://statistics.data.gov.uk/id/local-authority/00ML,Children�s Social Care,BVACSC,Child Srvcs - Fostering,FLF,Third Party Payments,F,Other Establishments,FH,05/10/2012,PAY00511207,629.00,Revenue,Payment to Individual
Brighton & Hove City Council,http://statistics.data.gov.uk/id/local-authority/00ML,Children�s Social Care,BVACSC,Child Srvcs - Fostering,FLF,Third Party Payments,F,Other Establishments,FH,05/10/2012,PAY00511209,865.10,Revenue,Payment to Individual
Brighton & Hove City Council,http://statistics.data.gov.uk/id/local-authority/00ML,Children�s Social Care,BVACSC,Child Srvcs - Fostering,FLF,Third Party Payments,F,Other Establishments,FH,05/10/2012,PAY00511214,816.39,Revenue,Payment to Individual
Brighton & Hove City Council,http://statistics.data.gov.uk/id/local-authority/00ML,Children�s Social Care,BVACSC,Child Srvcs - Fostering,FLF,Third Party Payments,F,Other Establishments,FH,05/10/2012,PAY00511215,1170.00,Revenue,Payment to Individual
Brighton & Hove City Council,http://statistics.data.gov.uk/id/local-authority/00ML,Children�s Social Care,BVACSC,Child Srvcs - Other Fam Supp,FFX,Transfer Payments,G,Other Transfer Payments,GD,05/10/2012,PAY00511216,1170.00,Revenue,Payment to Individual
Brighton & Hove City Council,http://statistics.data.gov.uk/id/local-authority/00ML,Children�s Social Care,BVACSC,Child Srvcs - Fostering,FLF,Third Party Payments,F,Other Establishments,FH,05/10/2012,PAY00511218,1416.00,Revenue,Payment to Individual
Brighton & Hove City Council,http://statistics.data.gov.uk/id/local-authority/00ML,Children�s Social Care,BVACSC,Child Srvcs - Leaving Care,FAL,Third Party Payments,F,Other Establishments,FH,05/10/2012,PAY00511218,84.00,Revenue,Payment to Individual
Brighton & Hove City Council,http://statistics.data.gov.uk/id/local-authority/00ML,Children�s Social Care,BVACSC,Child Srvcs - Leaving Care,FAL,Transfer Payments,G,Other Transfer Payments,GD,05/10/2012,PAY00511218,175.00,Revenue,Payment to Individual
Brighton & Hove City Council,http://statistics.data.gov.uk/id/local-authority/00ML,Children�s Social Care,BVACSC,Child Srvcs - Adoption,FAA,Third Party Payments,F,Other Establishments,FH,05/10/2012,PAY00511221,251.98,Revenue,Payment to Individual
Brighton & Hove City Council,http://statistics.data.gov.uk/id/local-authority/00ML,Children�s Social Care,BVACSC,Child Srvcs - Fostering,FLF,Third Party Payments,F,Other Establishments,FH,05/10/2012,PAY00511221,318.00,Revenue,Payment to Individual
Brighton & Hove City Council,http://statistics.data.gov.uk/id/local-authority/00ML,Children�s Social Care,BVACSC,Child Srvcs - Adoption,FAA,Third Party Payments,F,Other Establishments,FH,05/10/2012,PAY00511224,61.84,Revenue,Payment to Individual
Brighton & Hove City Council,http://statistics.data.gov.uk/id/local-authority/00ML,Children�s Social Care,BVACSC,Child Srvcs - Fostering,FLF,Third Party Payments,F,Other Establishments,FH,05/10/2012,PAY00511224,743.00,Revenue,Payment to Individual
Brighton & Hove City Council,http://statistics.data.gov.uk/id/local-authority/00ML,Children�s Social Care,BVACSC,Child Srvcs - Adoption,FAA,Third Party Payments,F,Other Establishments,FH,05/10/2012,PAY00511225,688.83,Revenue,Payment to Individual
Brighton & Hove City Council,http://statistics.data.gov.uk/id/local-authority/00ML,Central Support and Overheads,BVACEN,Support Services (SSC),PPT,Supplies and Services,E,Services,EF,05/10/2012,PAY00511243,13454.25,Revenue,Hemsley Orrell P/ship
Brighton & Hove City Council,http://statistics.data.gov.uk/id/local-authority/00ML,Highways and Transportation,BVAHRT,Parking Services,PRK,Premises Related,C,Repair Maint n Alterations,CA,05/10/2012,PAY00511244,10625.49,Revenue,Hi Way Services Ltd
Brighton & Hove City Council,http://statistics.data.gov.uk/id/local-authority/00ML,Non I&E,BVANON,Cap - Transport,4TR,Plant Machinery n Equipment,PE2,Level not required,NR5025,05/10/2012,PAY00511244,9430.88,Capital,Hi Way Services Ltd
Brighton & Hove City Council,http://statistics.data.gov.uk/id/local-authority/00ML,Central Support and Overheads,BVACEN,Support Services (SSC),PPT,Premises Related,C,Cleaning n Domestic Supps,CH,05/10/2012,PAY00511246,511.12,Revenue,Initial Washroom Solutions
Brighton & Hove City Council,http://statistics.data.gov.uk/id/local-authority/00ML,Education Services,BVAEDU,Ed - Srvcs YP - Ad & Cmty Ln,ENA,Premises Related,C,Cleaning n Domestic Supps,CH,05/10/2012,PAY00511246,983.32,Revenue,Initial Washroom Solutions
Brighton & Hove City Council,http://statistics.data.gov.uk/id/local-authority/00ML,Non I&E,BVANON,Cap - Housing Services - HRA,4HR,New Construction n Conversion,PB,Level not required,NR5026,05/10/2012,PAY00511248,1641.73,Capital,J Davies Building Ltd
Brighton & Hove City Council,http://statistics.data.gov.uk/id/local-authority/00ML,Cultural and Related Serv,BVACUL,Culture & Heritage,CHG,Premises Related,C,Repair Maint n Alterations,CA,05/10/2012,PAY00511250,735.00,Revenue,J R Tasker Contractors Ltd
Brighton & Hove City Council,http://statistics.data.gov.uk/id/local-authority/00ML,Adult Social Care,BVASOC,S Svcs - Learning Disability,LDY,Supplies and Services,E,Miscellaneous Expenses,EM,05/10/2012,PAY00511251,31.25,Revenue,Kent County Council (KCS)
Brighton & Hove City Council,http://statistics.data.gov.uk/id/local-authority/00ML,Central Support and Overheads,BVACEN,Holding Accounts,PPH,Transport Related,D,Direct Transport Costs,DA,05/10/2012,PAY00511251,29060.00,Revenue,Kent County Council (KCS)
Brighton & Hove City Council,http://statistics.data.gov.uk/id/local-authority/00ML,Cultural and Related Serv,BVACUL,Culture & Heritage,CHG,Supplies and Services,E,Goods for Resale,EG,05/10/2012,PAY00511253,643.35,Revenue,Littlehampton Book Services Ltd
Brighton & Hove City Council,http://statistics.data.gov.uk/id/local-authority/00ML,Library Services,BVACUL,Library Service,LBR,Supplies and Services,E,Goods for Resale,EG,05/10/2012,PAY00511253,89.00,Revenue,Littlehampton Book Services Ltd
Brighton & Hove City Council,http://statistics.data.gov.uk/id/local-authority/00ML,Planning and Development,BVAPLA,Economic Development,ECD,Supplies and Services,E,Services,EF,05/10/2012,PAY00511255,11000.00,Revenue,Mott MacDonald Limited
Brighton & Hove City Council,http://statistics.data.gov.uk/id/local-authority/00ML,Adult Social Care,BVASOC,S Svcs - Other Adult Services,ADT,Indirect Employees,B,Training,BM,05/10/2012,PAY00511256,690.00,Revenue,Northbrook College Sussex
Brighton & Hove City Council,http://statistics.data.gov.uk/id/local-authority/00ML,Education Services,BVAEDU,Ed - Ed Other - Other,ENF,Premises Related,C,Repair Maint n Alterations,CA,05/10/2012,PAY00511260,714.00,Revenue,P & R Building Contractors Ltd
Brighton & Hove City Council,http://statistics.data.gov.uk/id/local-authority/00ML,Central Support and Overheads,BVACEN,Support Services (SSC),PPT,Supplies and Services,E,Communications n Computing,EH,05/10/2012,PAY00511261,1129.44,Revenue,Xerox (UK) Ltd
Brighton & Hove City Council,http://statistics.data.gov.uk/id/local-authority/00ML,Housing General Fund,BVAHOG,Homelessness,HML,Premises Related,C,Repair Maint n Alterations,CA,05/10/2012,PAY00511262,455.82,Revenue,Rentokil Pest Control UK
Brighton & Hove City Council,http://statistics.data.gov.uk/id/local-authority/00ML,Cultural and Related Serv,BVACUL,Management Services (DEC),MGT,Supplies and Services,E,Equip't Furniture n Materials,EA,05/10/2012,PAY00511263,200.00,Revenue,Same Sky Ltd
Brighton & Hove City Council,http://statistics.data.gov.uk/id/local-authority/00ML,Library Services,BVACUL,Library Service,LBR,Supplies and Services,E,Goods for Resale,EG,05/10/2012,PAY00511263,240.00,Revenue,Same Sky Ltd
Brighton & Hove City Council,http://statistics.data.gov.uk/id/local-authority/00ML,Adult Social Care,BVASOC,S Svcs - Older People Svcs,PPL,Premises Related,C,Energy Costs,CB,05/10/2012,PAY00511265,2244.22,Revenue,Emo Oil Ltd
Brighton & Hove City Council,http://statistics.data.gov.uk/id/local-authority/00ML,Adult Social Care,BVASOC,S Svcs - Older People Svcs,PPL,Supplies and Services,E,Equip't Furniture n Materials,EA,05/10/2012,PAY00511267,135.00,Revenue,Thomas Door & Window Controls Ltd
Brighton & Hove City Council,http://statistics.data.gov.uk/id/local-authority/00ML,Central Support and Overheads,BVACEN,Support Services (SSC),PPT,Premises Related,C,Repair Maint n Alterations,CA,05/10/2012,PAY00511267,470.00,Revenue,Thomas Door & Window Controls Ltd
Brighton & Hove City Council,http://statistics.data.gov.uk/id/local-authority/00ML,Cultural and Related Serv,BVACUL,Culture & Heritage,CHG,Premises Related,C,Repair Maint n Alterations,CA,05/10/2012,PAY00511267,1895.00,Revenue,Thomas Door & Window Controls Ltd
Brighton & Hove City Council,http://statistics.data.gov.uk/id/local-authority/00ML,Housing Revenue Account,BVAHOU,Hsing Management - HRA,HGM,Supplies and Services,E,Print Stat & Gen Office Exps,ED,05/10/2012,PAY00511267,120.00,Revenue,Thomas Door & Window Controls Ltd
Brighton & Hove City Council,http://statistics.data.gov.uk/id/local-authority/00ML,Planning and Development,BVAPLA,Economic Development,ECD,Premises Related,C,Repair Maint n Alterations,CA,05/10/2012,PAY00511267,75.00,Revenue,Thomas Door & Window Controls Ltd
Brighton & Hove City Council,http://statistics.data.gov.uk/id/local-authority/00ML,Education Services,BVAEDU,Ed - Special Ed,EKE,Premises Related,C,Rents Payable,CC,05/10/2012,PAY00511274,596.06,Revenue,Stiles Harold Williams Ltd
Brighton & Hove City Council,http://statistics.data.gov.uk/id/local-authority/00ML,Adult Social Care,BVASOC,S Svcs - Learning Disability,LDY,Premises Related,C,Cleaning n Domestic Supps,CH,05/10/2012,PAY00511279,41.01,Revenue,Wightman & Parrish Ltd
Brighton & Hove City Council,http://statistics.data.gov.uk/id/local-authority/00ML,Education Services,BVAEDU,Ed - EY - Central,EAE,Premises Related,C,Cleaning n Domestic Supps,CH,05/10/2012,PAY00511279,75.94,Revenue,Wightman & Parrish Ltd
Brighton & Hove City Council,http://statistics.data.gov.uk/id/local-authority/00ML,Education Services,BVAEDU,Ed - Srvcs YP - Youth Srvcs,ENY,Premises Related,C,Cleaning n Domestic Supps,CH,05/10/2012,PAY00511279,59.30,Revenue,Wightman & Parrish Ltd
Brighton & Hove City Council,http://statistics.data.gov.uk/id/local-authority/00ML,Housing General Fund,BVAHOG,Homelessness,HML,Premises Related,C,Cleaning n Domestic Supps,CH,05/10/2012,PAY00511279,119.69,Revenue,Wightman & Parrish Ltd
Brighton & Hove City Council,http://statistics.data.gov.uk/id/local-authority/00ML,Housing General Fund,BVAHOG,Homelessness,HML,Supplies and Services,E,Equip't Furniture n Materials,EA,05/10/2012,PAY00511279,174.91,Revenue,Wightman & Parrish Ltd
Brighton & Hove City Council,http://statistics.data.gov.uk/id/local-authority/00ML,Adult Social Care,BVASOC,S Svcs - Older People Svcs,PPL,Third Party Payments,F,Other Establishments,FH,05/10/2012,PAY00511280,1707.26,Revenue,Adelaide Nursing Home
Brighton & Hove City Council,http://statistics.data.gov.uk/id/local-authority/00ML,Education Services,BVAEDU,Ed - Ed Other - Other,ENF,Premises Related,C,Repair Maint n Alterations,CA,05/10/2012,PAY00511281,1410.00,Revenue,Allweather Roofing & Construction
Brighton & Hove City Council,http://statistics.data.gov.uk/id/local-authority/00ML,Non I&E,BVANON,Cap - Education Services,4ED,New Construction n Conversion,PB,Level not required,NR5026,05/10/2012,PAY00511281,3197.58,Capital,Allweather Roofing & Construction
Brighton & Hove City Council,http://statistics.data.gov.uk/id/local-authority/00ML,Adult Social Care,BVASOC,S Svcs - Older People Svcs,PPL,Customer n Client Receipts,M,Fees n Charges,MB,05/10/2012,PAY00511284,-578.97,Revenue,Grosvenor Lodge
Brighton & Hove City Council,http://statistics.data.gov.uk/id/local-authority/00ML,Adult Social Care,BVASOC,S Svcs - Older People Svcs,PPL,Third Party Payments,F,Other Establishments,FH,05/10/2012,PAY00511284,2448.00,Revenue,Grosvenor Lodge
Brighton & Hove City Council,http://statistics.data.gov.uk/id/local-authority/00ML,Adult Social Care,BVASOC,S Svcs - Physical Disability,PDY,Third Party Payments,F,Other Establishments,FH,05/10/2012,PAY00511286,3423.90,Revenue,Brambles MS Care Centre
Brighton & Hove City Council,http://statistics.data.gov.uk/id/local-authority/00ML,Adult Social Care,BVASOC,S Svcs - Learning Disability,LDY,Customer n Client Receipts,M,Fees n Charges,MB,05/10/2012,PAY00511287,-206.00,Revenue,Carewatch (Brighton & Hove)
Brighton & Hove City Council,http://statistics.data.gov.uk/id/local-authority/00ML,Adult Social Care,BVASOC,S Svcs - Learning Disability,LDY,Third Party Payments,F,Other Establishments,FH,05/10/2012,PAY00511287,1071.70,Revenue,Carewatch (Brighton & Hove)
Brighton & Hove City Council,http://statistics.data.gov.uk/id/local-authority/00ML,Adult Social Care,BVASOC,S Svcs - Mental Health,MHT,Customer n Client Receipts,M,Fees n Charges,MB,05/10/2012,PAY00511287,-126.00,Revenue,Carewatch (Brighton & Hove)
Brighton & Hove City Council,http://statistics.data.gov.uk/id/local-authority/00ML,Adult Social Care,BVASOC,S Svcs - Mental Health,MHT,Third Party Payments,F,Other Establishments,FH,05/10/2012,PAY00511287,740.20,Revenue,Carewatch (Brighton & Hove)
Brighton & Hove City Council,http://statistics.data.gov.uk/id/local-authority/00ML,Adult Social Care,BVASOC,S Svcs - Older People Svcs,PPL,Customer n Client Receipts,M,Fees n Charges,MB,05/10/2012,PAY00511287,-7599.75,Revenue,Carewatch (Brighton & Hove)
Brighton & Hove City Council,http://statistics.data.gov.uk/id/local-authority/00ML,Adult Social Care,BVASOC,S Svcs - Older People Svcs,PPL,Third Party Payments,F,Other Establishments,FH,05/10/2012,PAY00511287,50570.74,Revenue,Carewatch (Brighton & Hove)
Brighton & Hove City Council,http://statistics.data.gov.uk/id/local-authority/00ML,Adult Social Care,BVASOC,S Svcs - Other Adult Services,ADT,Third Party Payments,F,Other Establishments,FH,05/10/2012,PAY00511287,152.26,Revenue,Carewatch (Brighton & Hove)
Brighton & Hove City Council,http://statistics.data.gov.uk/id/local-authority/00ML,Adult Social Care,BVASOC,S Svcs - Physical Disability,PDY,Customer n Client Receipts,M,Fees n Charges,MB,05/10/2012,PAY00511287,-424.00,Revenue,Carewatch (Brighton & Hove)
Brighton & Hove City Council,http://statistics.data.gov.uk/id/local-authority/00ML,Adult Social Care,BVASOC,S Svcs - Physical Disability,PDY,Third Party Payments,F,Other Establishments,FH,05/10/2012,PAY00511287,9485.95,Revenue,Carewatch (Brighton & Hove)
Brighton & Hove City Council,http://statistics.data.gov.uk/id/local-authority/00ML,Adult Social Care,BVASOC,S Svcs - Mental Health,MHT,Customer n Client Receipts,M,Fees n Charges,MB,05/10/2012,PAY00511288,166.00,Revenue,Enara Community Care
Brighton & Hove City Council,http://statistics.data.gov.uk/id/local-authority/00ML,Adult Social Care,BVASOC,S Svcs - Mental Health,MHT,Third Party Payments,F,Other Establishments,FH,05/10/2012,PAY00511288,117.11,Revenue,Enara Community Care
